PublisherLabel,PublisherURI,"Body name","Body","Service area","Service division","Responsible unit","Expenses type","Date","Transaction","Amount","Supplier name"
"Bracknell Forest Council","http://opendatacommunities.org/id/unitary-authority/bracknell-forest","Bracknell Forest Council","00MA","Early Years and Childcare","Centrally managed Expenditure - Early Years","","Grants and Donations",16/02/2015 00:00:00,"30261025",531744.03,"VARIOUS"
"Bracknell Forest Council","http://opendatacommunities.org/id/unitary-authority/bracknell-forest","Bracknell Forest Council","00MA","Financial Adjustments - Cheques W/Back","Other Services","","Other Expenses",18/02/2015 00:00:00,"30261239",-249.11,"BRITISH GAS TRADING"
"Bracknell Forest Council","http://opendatacommunities.org/id/unitary-authority/bracknell-forest","Bracknell Forest Council","00MA","Financial Adjustments - Cheques W/Back","Other Services","","Other Expenses",18/02/2015 00:00:00,"30261244",-180,"BRITISH GAS TRADING"
"Bracknell Forest Council","http://opendatacommunities.org/id/unitary-authority/bracknell-forest","Bracknell Forest Council","00MA","Financial Adjustments - Cheques W/Back","Other Services","","Other Expenses",11/03/2015 00:00:00,"30263904",-252.85,"BRITISH GAS TRADING"
"Bracknell Forest Council","http://opendatacommunities.org/id/unitary-authority/bracknell-forest","Bracknell Forest Council","00MA","Financial Adjustments - Cheques W/Back","Other Services","","Other Expenses",03/03/2015 00:00:00,"30263914",-2351.82,"EDF ENERGY"
"Bracknell Forest Council","http://opendatacommunities.org/id/unitary-authority/bracknell-forest","Bracknell Forest Council","00MA","Early Years and Childcare","Centrally managed Expenditure - Early Years","","Grants and Donations",30/03/2015 00:00:00,"30264008",368,"REDACT -PERSONAL INFORMATION"
"Bracknell Forest Council","http://opendatacommunities.org/id/unitary-authority/bracknell-forest","Bracknell Forest Council","00MA","Early Years and Childcare","Centrally managed Expenditure - Early Years","","Grants and Donations",31/03/2014 00:00:00,"30264392",-427.6,"ST SEBASTIANS"
"Bracknell Forest Council","http://opendatacommunities.org/id/unitary-authority/bracknell-forest","Bracknell Forest Council","00MA","Early Years and Childcare","Centrally managed Expenditure - Early Years","","Grants and Donations",31/03/2014 00:00:00,"30264392",11006.32,"VARIOUS"
"Bracknell Forest Council","http://opendatacommunities.org/id/unitary-authority/bracknell-forest","Bracknell Forest Council","00MA","Early Years - 2 Year Olds","Early Year�s Free Entitlement","","Grants and Donations",31/03/2014 00:00:00,"30264392",20298,"VARIOUS"
"Bracknell Forest Council","http://opendatacommunities.org/id/unitary-authority/bracknell-forest","Bracknell Forest Council","00MA","Early Years and Childcare","Centrally managed Expenditure - Early Years","","Grants and Donations",01/04/2014 00:00:00,"30264399",587278,"VARIOUS"
"Bracknell Forest Council","http://opendatacommunities.org/id/unitary-authority/bracknell-forest","Bracknell Forest Council","00MA","Financial Adjustments - Cheques W/Back","Other Services","","Other Expenses",31/03/2015 00:00:00,"30264929",537.06,"BRITISH GAS TRADING"
"Bracknell Forest Council","http://opendatacommunities.org/id/unitary-authority/bracknell-forest","Bracknell Forest Council","00MA","Financial Adjustments - Cheques W/Back","Other Services","","Other Expenses",31/03/2015 00:00:00,"30264943",-537.06,"BRITISH GAS TRADING"
"Bracknell Forest Council","http://opendatacommunities.org/id/unitary-authority/bracknell-forest","Bracknell Forest Council","00MA","Financial Adjustments - Cheques W/Back","Other Services","","Other Expenses",31/03/2015 00:00:00,"30264945",537.06,"BRITISH GAS TRADING"
"Bracknell Forest Council","http://opendatacommunities.org/id/unitary-authority/bracknell-forest","Bracknell Forest Council","00MA","Homeless Families","Bed/Breakfast Accommodation","","Agency",17/05/2015 00:00:00,"30268660",978.65,"COMENSURA LTD"
"Bracknell Forest Council","http://opendatacommunities.org/id/unitary-authority/bracknell-forest","Bracknell Forest Council","00MA","Homeless Families","Bed/Breakfast Accommodation","","Agency",17/05/2015 00:00:00,"30268660",1231.2,"COMENSURA LTD"
"Bracknell Forest Council","http://opendatacommunities.org/id/unitary-authority/bracknell-forest","Bracknell Forest Council","00MA","Homeless Families","Bed/Breakfast Accommodation","","Agency",17/05/2015 00:00:00,"30268660",861.56,"COMENSURA LTD"
"Bracknell Forest Council","http://opendatacommunities.org/id/unitary-authority/bracknell-forest","Bracknell Forest Council","00MA","MC Management & Administration","Management & Administration","","Agency",17/05/2015 00:00:00,"30268660",1326.47,"COMENSURA LTD"
"Bracknell Forest Council","http://opendatacommunities.org/id/unitary-authority/bracknell-forest","Bracknell Forest Council","00MA","MC Management & Administration","Management & Administration","","Agency",17/05/2015 00:00:00,"30268660",22.95,"COMENSURA LTD"
"Bracknell Forest Council","http://opendatacommunities.org/id/unitary-authority/bracknell-forest","Bracknell Forest Council","00MA","MC Management & Administration","Management & Administration","","Agency",17/05/2015 00:00:00,"30268660",797.78,"COMENSURA LTD"
"Bracknell Forest Council","http://opendatacommunities.org/id/unitary-authority/bracknell-forest","Bracknell Forest Council","00MA","MC Management & Administration","Management & Administration","","Agency",17/05/2015 00:00:00,"30268660",4.5,"COMENSURA LTD"
"Bracknell Forest Council","http://opendatacommunities.org/id/unitary-authority/bracknell-forest","Bracknell Forest Council","00MA","MC Management & Administration","Management & Administration","","Agency",17/05/2015 00:00:00,"30268660",1311.4,"COMENSURA LTD"
"Bracknell Forest Council","http://opendatacommunities.org/id/unitary-authority/bracknell-forest","Bracknell Forest Council","00MA","Management & Administration","Management & Administration","","Agency",17/05/2015 00:00:00,"30268660",15.75,"COMENSURA LTD"
"Bracknell Forest Council","http://opendatacommunities.org/id/unitary-authority/bracknell-forest","Bracknell Forest Council","00MA","Management & Administration","Management & Administration","","Agency",17/05/2015 00:00:00,"30268660",1135.16,"COMENSURA LTD"
"Bracknell Forest Council","http://opendatacommunities.org/id/unitary-authority/bracknell-forest","Bracknell Forest Council","00MA","Benefits Administration","Housing Benefits Administration","","Agency",17/05/2015 00:00:00,"30268660",274.68,"COMENSURA LTD"
"Bracknell Forest Council","http://opendatacommunities.org/id/unitary-authority/bracknell-forest","Bracknell Forest Council","00MA","Joint Commissioning Team","Management & Administration","","Agency",17/05/2015 00:00:00,"30268660",270.16,"COMENSURA LTD"
"Bracknell Forest Council","http://opendatacommunities.org/id/unitary-authority/bracknell-forest","Bracknell Forest Council","00MA","Benefits Administration","Housing Benefits Administration","","Agency",17/05/2015 00:00:00,"30268660",937.6,"COMENSURA LTD"
"Bracknell Forest Council","http://opendatacommunities.org/id/unitary-authority/bracknell-forest","Bracknell Forest Council","00MA","Management & Administration","Management & Administration","","Agency",17/05/2015 00:00:00,"30268660",88.65,"COMENSURA LTD"
"Bracknell Forest Council","http://opendatacommunities.org/id/unitary-authority/bracknell-forest","Bracknell Forest Council","00MA","Management & Administration","Management & Administration","","Agency",17/05/2015 00:00:00,"30268660",925.96,"COMENSURA LTD"
"Bracknell Forest Council","http://opendatacommunities.org/id/unitary-authority/bracknell-forest","Bracknell Forest Council","00MA","Operational Costs","Short Term Support Other","","Agency",17/05/2015 00:00:00,"30268660",994.32,"COMENSURA LTD"
"Bracknell Forest Council","http://opendatacommunities.org/id/unitary-authority/bracknell-forest","Bracknell Forest Council","00MA","Heathlands EPH","Internal Services","","Agency",17/05/2015 00:00:00,"30268660",428.24,"COMENSURA LTD"
"Bracknell Forest Council","http://opendatacommunities.org/id/unitary-authority/bracknell-forest","Bracknell Forest Council","00MA","Benefits Administration","Housing Benefits Administration","","Agency",17/05/2015 00:00:00,"30268660",937.58,"COMENSURA LTD"
"Bracknell Forest Council","http://opendatacommunities.org/id/unitary-authority/bracknell-forest","Bracknell Forest Council","00MA","Operational Costs","Short Term Support Other","","Agency",17/05/2015 00:00:00,"30268660",6.3,"COMENSURA LTD"
"Bracknell Forest Council","http://opendatacommunities.org/id/unitary-authority/bracknell-forest","Bracknell Forest Council","00MA","Operational Costs","Short Term Support Other","","Agency",17/05/2015 00:00:00,"30268660",766.81,"COMENSURA LTD"
"Bracknell Forest Council","http://opendatacommunities.org/id/unitary-authority/bracknell-forest","Bracknell Forest Council","00MA","Public Health - Berkshire Shared Team","Public Health Teams","","Agency",17/05/2015 00:00:00,"30268660",371.68,"COMENSURA LTD"
"Bracknell Forest Council","http://opendatacommunities.org/id/unitary-authority/bracknell-forest","Bracknell Forest Council","00MA","Electoral Registration","Registration of Electors","","Agency",17/05/2015 00:00:00,"30268660",396.93,"COMENSURA LTD"
"Bracknell Forest Council","http://opendatacommunities.org/id/unitary-authority/bracknell-forest","Bracknell Forest Council","00MA","Heathlands EPH","Internal Services","","Agency",17/05/2015 00:00:00,"30268660",374.54,"COMENSURA LTD"
"Bracknell Forest Council","http://opendatacommunities.org/id/unitary-authority/bracknell-forest","Bracknell Forest Council","00MA","Heathlands EPH","Internal Services","","Agency",17/05/2015 00:00:00,"30268660",499.5,"COMENSURA LTD"
"Bracknell Forest Council","http://opendatacommunities.org/id/unitary-authority/bracknell-forest","Bracknell Forest Council","00MA","Heathlands EPH","Internal Services","","Agency",17/05/2015 00:00:00,"30268660",371.78,"COMENSURA LTD"
"Bracknell Forest Council","http://opendatacommunities.org/id/unitary-authority/bracknell-forest","Bracknell Forest Council","00MA","Heathlands EPH","Internal Services","","Agency",17/05/2015 00:00:00,"30268660",87.9,"COMENSURA LTD"
"Bracknell Forest Council","http://opendatacommunities.org/id/unitary-authority/bracknell-forest","Bracknell Forest Council","00MA","Heathlands EPH","Internal Services","","Agency",17/05/2015 00:00:00,"30268660",272.16,"COMENSURA LTD"
"Bracknell Forest Council","http://opendatacommunities.org/id/unitary-authority/bracknell-forest","Bracknell Forest Council","00MA","Heathlands EPH","Internal Services","","Agency",17/05/2015 00:00:00,"30268660",414.65,"COMENSURA LTD"
"Bracknell Forest Council","http://opendatacommunities.org/id/unitary-authority/bracknell-forest","Bracknell Forest Council","00MA","Heathlands EPH","Internal Services","","Agency",17/05/2015 00:00:00,"30268660",143.48,"COMENSURA LTD"
"Bracknell Forest Council","http://opendatacommunities.org/id/unitary-authority/bracknell-forest","Bracknell Forest Council","00MA","Heathlands EPH","Internal Services","","Agency",17/05/2015 00:00:00,"30268660",152.4,"COMENSURA LTD"
"Bracknell Forest Council","http://opendatacommunities.org/id/unitary-authority/bracknell-forest","Bracknell Forest Council","00MA","Electoral Registration","Registration of Electors","","Agency",17/05/2015 00:00:00,"30268660",272.7,"COMENSURA LTD"
"Bracknell Forest Council","http://opendatacommunities.org/id/unitary-authority/bracknell-forest","Bracknell Forest Council","00MA","Operational Costs","Short Term Support Other","","Agency",17/05/2015 00:00:00,"30268660",18,"COMENSURA LTD"
"Bracknell Forest Council","http://opendatacommunities.org/id/unitary-authority/bracknell-forest","Bracknell Forest Council","00MA","Operational Costs","Short Term Support Other","","Agency",17/05/2015 00:00:00,"30268660",1148.16,"COMENSURA LTD"
"Bracknell Forest Council","http://opendatacommunities.org/id/unitary-authority/bracknell-forest","Bracknell Forest Council","00MA","Management & Administration","Management & Administration","","Agency",17/05/2015 00:00:00,"30268660",51.3,"COMENSURA LTD"
"Bracknell Forest Council","http://opendatacommunities.org/id/unitary-authority/bracknell-forest","Bracknell Forest Council","00MA","Management & Administration","Management & Administration","","Agency",17/05/2015 00:00:00,"30268660",1162.16,"COMENSURA LTD"
"Bracknell Forest Council","http://opendatacommunities.org/id/unitary-authority/bracknell-forest","Bracknell Forest Council","00MA","Operational Costs","Short Term Support Other","","Agency",17/05/2015 00:00:00,"30268660",16.2,"COMENSURA LTD"
"Bracknell Forest Council","http://opendatacommunities.org/id/unitary-authority/bracknell-forest","Bracknell Forest Council","00MA","Operational Costs","Short Term Support Other","","Agency",17/05/2015 00:00:00,"30268660",702.24,"COMENSURA LTD"
"Bracknell Forest Council","http://opendatacommunities.org/id/unitary-authority/bracknell-forest","Bracknell Forest Council","00MA","Operational Costs","Short Term Support Other","","Agency",17/05/2015 00:00:00,"30268660",11.25,"COMENSURA LTD"
"Bracknell Forest Council","http://opendatacommunities.org/id/unitary-authority/bracknell-forest","Bracknell Forest Council","00MA","Operational Costs","Short Term Support Other","","Agency",17/05/2015 00:00:00,"30268660",702.24,"COMENSURA LTD"
"Bracknell Forest Council","http://opendatacommunities.org/id/unitary-authority/bracknell-forest","Bracknell Forest Council","00MA","Operational Costs","Short Term Support Other","","Agency",17/05/2015 00:00:00,"30268660",959.4,"COMENSURA LTD"
"Bracknell Forest Council","http://opendatacommunities.org/id/unitary-authority/bracknell-forest","Bracknell Forest Council","00MA","Operational Costs","Short Term Support Other","","Agency",17/05/2015 00:00:00,"30268660",699.13,"COMENSURA LTD"
"Bracknell Forest Council","http://opendatacommunities.org/id/unitary-authority/bracknell-forest","Bracknell Forest Council","00MA","Management & Administration","Management & Administration","","Agency",17/05/2015 00:00:00,"30268660",1091.6,"COMENSURA LTD"
"Bracknell Forest Council","http://opendatacommunities.org/id/unitary-authority/bracknell-forest","Bracknell Forest Council","00MA","Operational Costs","Short Term Support Other","","Agency",17/05/2015 00:00:00,"30268660",457.71,"COMENSURA LTD"
"Bracknell Forest Council","http://opendatacommunities.org/id/unitary-authority/bracknell-forest","Bracknell Forest Council","00MA","Heathlands EPH","Internal Services","","Agency",17/05/2015 00:00:00,"30268660",1787.42,"COMENSURA LTD"
"Bracknell Forest Council","http://opendatacommunities.org/id/unitary-authority/bracknell-forest","Bracknell Forest Council","00MA","Children & Family Duty Team","Social Work","","Agency",17/05/2015 00:00:00,"30268660",1864.8,"COMENSURA LTD"
"Bracknell Forest Council","http://opendatacommunities.org/id/unitary-authority/bracknell-forest","Bracknell Forest Council","00MA","Heathlands EPH","Internal Services","","Agency",17/05/2015 00:00:00,"30268660",399.55,"COMENSURA LTD"
"Bracknell Forest Council","http://opendatacommunities.org/id/unitary-authority/bracknell-forest","Bracknell Forest Council","00MA","Management & Administration","Management & Administration","","Agency",17/05/2015 00:00:00,"30268660",10.35,"COMENSURA LTD"
"Bracknell Forest Council","http://opendatacommunities.org/id/unitary-authority/bracknell-forest","Bracknell Forest Council","00MA","Management & Administration","Management & Administration","","Agency",17/05/2015 00:00:00,"30268660",897.3,"COMENSURA LTD"
"Bracknell Forest Council","http://opendatacommunities.org/id/unitary-authority/bracknell-forest","Bracknell Forest Council","00MA","Operational Costs","Short Term Support Other","","Agency",17/05/2015 00:00:00,"30268660",1199.25,"COMENSURA LTD"
"Bracknell Forest Council","http://opendatacommunities.org/id/unitary-authority/bracknell-forest","Bracknell Forest Council","00MA","Operational Costs","Short Term Support Other","","Agency",17/05/2015 00:00:00,"30268660",10.35,"COMENSURA LTD"
"Bracknell Forest Council","http://opendatacommunities.org/id/unitary-authority/bracknell-forest","Bracknell Forest Council","00MA","Operational Costs","Short Term Support Other","","Agency",17/05/2015 00:00:00,"30268660",1176.88,"COMENSURA LTD"
"Bracknell Forest Council","http://opendatacommunities.org/id/unitary-authority/bracknell-forest","Bracknell Forest Council","00MA","Children Aged Over 11","Social Work","","Agency",17/05/2015 00:00:00,"30268660",89.9,"COMENSURA LTD"
"Bracknell Forest Council","http://opendatacommunities.org/id/unitary-authority/bracknell-forest","Bracknell Forest Council","00MA","Bridgewell Unit","Short Term Support Other","","Agency",17/05/2015 00:00:00,"30268660",311.27,"COMENSURA LTD"
"Bracknell Forest Council","http://opendatacommunities.org/id/unitary-authority/bracknell-forest","Bracknell Forest Council","00MA","Bracknell Family Centre","Targeted Family Support","","Agency",17/05/2015 00:00:00,"30268660",935.76,"COMENSURA LTD"
"Bracknell Forest Council","http://opendatacommunities.org/id/unitary-authority/bracknell-forest","Bracknell Forest Council","00MA","Bridgewell Unit","Short Term Support Other","","Agency",17/05/2015 00:00:00,"30268660",310.84,"COMENSURA LTD"
"Bracknell Forest Council","http://opendatacommunities.org/id/unitary-authority/bracknell-forest","Bracknell Forest Council","00MA","Children Aged Under 11","Social Work","","Agency",17/05/2015 00:00:00,"30268660",1351.98,"COMENSURA LTD"
"Bracknell Forest Council","http://opendatacommunities.org/id/unitary-authority/bracknell-forest","Bracknell Forest Council","00MA","Children Aged Over 11","Social Work","","Agency",17/05/2015 00:00:00,"30268660",103.5,"COMENSURA LTD"
"Bracknell Forest Council","http://opendatacommunities.org/id/unitary-authority/bracknell-forest","Bracknell Forest Council","00MA","Children Aged Over 11","Social Work","","Agency",17/05/2015 00:00:00,"30268660",1389.35,"COMENSURA LTD"
"Bracknell Forest Council","http://opendatacommunities.org/id/unitary-authority/bracknell-forest","Bracknell Forest Council","00MA","Children Aged Over 11","Social Work","","Agency",17/05/2015 00:00:00,"30268660",87.75,"COMENSURA LTD"
"Bracknell Forest Council","http://opendatacommunities.org/id/unitary-authority/bracknell-forest","Bracknell Forest Council","00MA","Children Aged Over 11","Social Work","","Agency",17/05/2015 00:00:00,"30268660",1389.33,"COMENSURA LTD"
"Bracknell Forest Council","http://opendatacommunities.org/id/unitary-authority/bracknell-forest","Bracknell Forest Council","00MA","Development Control","Applications - Development Control","","Agency",17/05/2015 00:00:00,"30268660",1197.57,"COMENSURA LTD"
"Bracknell Forest Council","http://opendatacommunities.org/id/unitary-authority/bracknell-forest","Bracknell Forest Council","00MA","Sandhurst - Secondary","Delegated Secondary Schools Budgets","","Electricity",18/02/2015 00:00:00,"30261227",609.26,"BRITISH GAS TRADING - DD ONLY"
"Bracknell Forest Council","http://opendatacommunities.org/id/unitary-authority/bracknell-forest","Bracknell Forest Council","00MA","Christmas Lights and Decorations","Street Lighting","","Electricity",18/02/2015 00:00:00,"30261227",17.24,"BRITISH GAS TRADING - DD ONLY"
"Bracknell Forest Council","http://opendatacommunities.org/id/unitary-authority/bracknell-forest","Bracknell Forest Council","00MA","Town Centre Fountains","Community Parks & Open Spaces","","Electricity",18/02/2015 00:00:00,"30261227",62.91,"BRITISH GAS TRADING - DD ONLY"
"Bracknell Forest Council","http://opendatacommunities.org/id/unitary-authority/bracknell-forest","Bracknell Forest Council","00MA","Town Centre Fountains","Community Parks & Open Spaces","","Electricity",18/02/2015 00:00:00,"30261227",216.81,"BRITISH GAS TRADING - DD ONLY"
"Bracknell Forest Council","http://opendatacommunities.org/id/unitary-authority/bracknell-forest","Bracknell Forest Council","00MA","Town Centre Fountains","Community Parks & Open Spaces","","Electricity",18/02/2015 00:00:00,"30261227",164.56,"BRITISH GAS TRADING - DD ONLY"
"Bracknell Forest Council","http://opendatacommunities.org/id/unitary-authority/bracknell-forest","Bracknell Forest Council","00MA","Bridgewell Unit","Short Term Support Other","","Electricity",18/02/2015 00:00:00,"30261227",677.05,"BRITISH GAS TRADING - DD ONLY"
"Bracknell Forest Council","http://opendatacommunities.org/id/unitary-authority/bracknell-forest","Bracknell Forest Council","00MA","St Margaret Clitherow - Catholic Primary","Delegated Primary School Budgets","","Electricity",18/02/2015 00:00:00,"30261227",575.07,"BRITISH GAS TRADING - DD ONLY"
"Bracknell Forest Council","http://opendatacommunities.org/id/unitary-authority/bracknell-forest","Bracknell Forest Council","00MA","Winkfield St Mary�s - Primary","Delegated Primary School Budgets","","Electricity",18/02/2015 00:00:00,"30261227",436.11,"BRITISH GAS TRADING - DD ONLY"
"Bracknell Forest Council","http://opendatacommunities.org/id/unitary-authority/bracknell-forest","Bracknell Forest Council","00MA","St Michael�s (Easthampstead) - Primary","Delegated Primary School Budgets","","Electricity",18/02/2015 00:00:00,"30261227",466.58,"BRITISH GAS TRADING - DD ONLY"
"Bracknell Forest Council","http://opendatacommunities.org/id/unitary-authority/bracknell-forest","Bracknell Forest Council","00MA","St Michael�s (Easthampstead) - Primary","Delegated Primary School Budgets","","Electricity",18/02/2015 00:00:00,"30261227",83.41,"BRITISH GAS TRADING - DD ONLY"
"Bracknell Forest Council","http://opendatacommunities.org/id/unitary-authority/bracknell-forest","Bracknell Forest Council","00MA","St Michael�s (Easthampstead) - Primary","Delegated Primary School Budgets","","Electricity",18/02/2015 00:00:00,"30261227",30.46,"BRITISH GAS TRADING - DD ONLY"
"Bracknell Forest Council","http://opendatacommunities.org/id/unitary-authority/bracknell-forest","Bracknell Forest Council","00MA","Uplands - Primary","Delegated Primary School Budgets","","Electricity",18/02/2015 00:00:00,"30261227",266.43,"BRITISH GAS TRADING - DD ONLY"
"Bracknell Forest Council","http://opendatacommunities.org/id/unitary-authority/bracknell-forest","Bracknell Forest Council","00MA","Warfield CE - Primary","Delegated Primary School Budgets","","Electricity",18/02/2015 00:00:00,"30261227",665.16,"BRITISH GAS TRADING - DD ONLY"
"Bracknell Forest Council","http://opendatacommunities.org/id/unitary-authority/bracknell-forest","Bracknell Forest Council","00MA","Jennets Park Primary School","Delegated Primary School Budgets","","Electricity",18/02/2015 00:00:00,"30261227",607.63,"BRITISH GAS TRADING - DD ONLY"
"Bracknell Forest Council","http://opendatacommunities.org/id/unitary-authority/bracknell-forest","Bracknell Forest Council","00MA","Binfield CE - Primary","Delegated Primary School Budgets","","Electricity",18/02/2015 00:00:00,"30261227",974.76,"BRITISH GAS TRADING - DD ONLY"
"Bracknell Forest Council","http://opendatacommunities.org/id/unitary-authority/bracknell-forest","Bracknell Forest Council","00MA","Children Aged Under 11","Social Work","","Agency",17/05/2015 00:00:00,"30268660",18.9,"COMENSURA LTD"
"Bracknell Forest Council","http://opendatacommunities.org/id/unitary-authority/bracknell-forest","Bracknell Forest Council","00MA","Children Aged Under 11","Social Work","","Agency",17/05/2015 00:00:00,"30268660",1711.25,"COMENSURA LTD"
"Bracknell Forest Council","http://opendatacommunities.org/id/unitary-authority/bracknell-forest","Bracknell Forest Council","00MA","Children Aged Under 11","Social Work","","Agency",17/05/2015 00:00:00,"30268660",1278.9,"COMENSURA LTD"
"Bracknell Forest Council","http://opendatacommunities.org/id/unitary-authority/bracknell-forest","Bracknell Forest Council","00MA","Family Information Service","Universal Family Support","","Agency",17/05/2015 00:00:00,"30268660",129.44,"COMENSURA LTD"
"Bracknell Forest Council","http://opendatacommunities.org/id/unitary-authority/bracknell-forest","Bracknell Forest Council","00MA","Children Aged Over 11","Social Work","","Agency",17/05/2015 00:00:00,"30268660",64.8,"COMENSURA LTD"
"Bracknell Forest Council","http://opendatacommunities.org/id/unitary-authority/bracknell-forest","Bracknell Forest Council","00MA","Children Aged Over 11","Social Work","","Agency",17/05/2015 00:00:00,"30268660",125.86,"COMENSURA LTD"
"Bracknell Forest Council","http://opendatacommunities.org/id/unitary-authority/bracknell-forest","Bracknell Forest Council","00MA","Development Control","Applications - Development Control","","Agency",17/05/2015 00:00:00,"30268660",935.09,"COMENSURA LTD"
"Bracknell Forest Council","http://opendatacommunities.org/id/unitary-authority/bracknell-forest","Bracknell Forest Council","00MA","Bridgewell Unit","Short Term Support Other","","Agency",17/05/2015 00:00:00,"30268660",80.58,"COMENSURA LTD"
"Bracknell Forest Council","http://opendatacommunities.org/id/unitary-authority/bracknell-forest","Bracknell Forest Council","00MA","Children Aged Under 11","Social Work","","Agency",17/05/2015 00:00:00,"30268660",4,"COMENSURA LTD"
"Bracknell Forest Council","http://opendatacommunities.org/id/unitary-authority/bracknell-forest","Bracknell Forest Council","00MA","Leisure Centre - Catering General","Indoor Sports & Recreation Facilities","","Cost of Goods Sold",19/05/2015 00:00:00,"30268663",4.25,"CHRISTMAS BARKERY LTD"
"Bracknell Forest Council","http://opendatacommunities.org/id/unitary-authority/bracknell-forest","Bracknell Forest Council","00MA","Leisure Centre - Catering General","Indoor Sports & Recreation Facilities","","Cost of Goods Sold",19/05/2015 00:00:00,"30268663",4.75,"CHRISTMAS BARKERY LTD"
"Bracknell Forest Council","http://opendatacommunities.org/id/unitary-authority/bracknell-forest","Bracknell Forest Council","00MA","Leisure Centre - Catering General","Indoor Sports & Recreation Facilities","","Cost of Goods Sold",19/05/2015 00:00:00,"30268663",9.15,"CHRISTMAS BARKERY LTD"
"Bracknell Forest Council","http://opendatacommunities.org/id/unitary-authority/bracknell-forest","Bracknell Forest Council","00MA","Leisure Centre - Catering General","Indoor Sports & Recreation Facilities","","Cost of Goods Sold",19/05/2015 00:00:00,"30268663",6.05,"CHRISTMAS BARKERY LTD"
"Bracknell Forest Council","http://opendatacommunities.org/id/unitary-authority/bracknell-forest","Bracknell Forest Council","00MA","Leisure Centre - Catering General","Indoor Sports & Recreation Facilities","","Cost of Goods Sold",19/05/2015 00:00:00,"30268663",4.99,"CHRISTMAS BARKERY LTD"
"Bracknell Forest Council","http://opendatacommunities.org/id/unitary-authority/bracknell-forest","Bracknell Forest Council","00MA","Leisure Centre - Catering General","Indoor Sports & Recreation Facilities","","Cost of Goods Sold",19/05/2015 00:00:00,"30268663",8.02,"CHRISTMAS BARKERY LTD"
"Bracknell Forest Council","http://opendatacommunities.org/id/unitary-authority/bracknell-forest","Bracknell Forest Council","00MA","Leisure Centre - Catering General","Indoor Sports & Recreation Facilities","","Cost of Goods Sold",19/05/2015 00:00:00,"30268663",7.33,"CHRISTMAS BARKERY LTD"
"Bracknell Forest Council","http://opendatacommunities.org/id/unitary-authority/bracknell-forest","Bracknell Forest Council","00MA","Leisure Centre - Catering General","Indoor Sports & Recreation Facilities","","Cost of Goods Sold",19/05/2015 00:00:00,"30268663",9.44,"CHRISTMAS BARKERY LTD"
"Bracknell Forest Council","http://opendatacommunities.org/id/unitary-authority/bracknell-forest","Bracknell Forest Council","00MA","Leisure Centre - Catering General","Indoor Sports & Recreation Facilities","","Cost of Goods Sold",19/05/2015 00:00:00,"30268663",5.74,"CHRISTMAS BARKERY LTD"
"Bracknell Forest Council","http://opendatacommunities.org/id/unitary-authority/bracknell-forest","Bracknell Forest Council","00MA","Leisure Centre - Catering General","Indoor Sports & Recreation Facilities","","Cost of Goods Sold",15/05/2015 00:00:00,"30268663",203.38,"BRAKE BROS"
"Bracknell Forest Council","http://opendatacommunities.org/id/unitary-authority/bracknell-forest","Bracknell Forest Council","00MA","Leisure Centre - Catering General","Indoor Sports & Recreation Facilities","","Cost of Goods Sold",19/05/2015 00:00:00,"30268663",4.01,"CHRISTMAS BARKERY LTD"
"Bracknell Forest Council","http://opendatacommunities.org/id/unitary-authority/bracknell-forest","Bracknell Forest Council","00MA","Leisure Centre - Catering General","Indoor Sports & Recreation Facilities","","Cost of Goods Sold",19/05/2015 00:00:00,"30268663",4.75,"CHRISTMAS BARKERY LTD"
"Bracknell Forest Council","http://opendatacommunities.org/id/unitary-authority/bracknell-forest","Bracknell Forest Council","00MA","Leisure Centre - Catering General","Indoor Sports & Recreation Facilities","","Cost of Goods Sold",19/05/2015 00:00:00,"30268663",20.84,"CHRISTMAS BARKERY LTD"
"Bracknell Forest Council","http://opendatacommunities.org/id/unitary-authority/bracknell-forest","Bracknell Forest Council","00MA","Bridgewell Unit","Short Term Support Other","","Cost of Goods Sold",16/05/2015 00:00:00,"30268663",105.17,"J&S MEATS (ASCOT)"
"Bracknell Forest Council","http://opendatacommunities.org/id/unitary-authority/bracknell-forest","Bracknell Forest Council","00MA","Leisure Centre - Catering General","Indoor Sports & Recreation Facilities","","Cost of Goods Sold",15/05/2015 00:00:00,"30268663",181.01,"KENT FROZEN FOODS"
"Bracknell Forest Council","http://opendatacommunities.org/id/unitary-authority/bracknell-forest","Bracknell Forest Council","00MA","Leisure Centre - Catering General","Indoor Sports & Recreation Facilities","","Cost of Goods Sold",19/05/2015 00:00:00,"30268663",4.99,"CHRISTMAS BARKERY LTD"
"Bracknell Forest Council","http://opendatacommunities.org/id/unitary-authority/bracknell-forest","Bracknell Forest Council","00MA","Leisure Centre - Catering General","Indoor Sports & Recreation Facilities","","Cost of Goods Sold",19/05/2015 00:00:00,"30268663",6.03,"CHRISTMAS BARKERY LTD"
"Bracknell Forest Council","http://opendatacommunities.org/id/unitary-authority/bracknell-forest","Bracknell Forest Council","00MA","Leisure Centre - Catering General","Indoor Sports & Recreation Facilities","","Cost of Goods Sold",19/05/2015 00:00:00,"30268663",4.99,"CHRISTMAS BARKERY LTD"
"Bracknell Forest Council","http://opendatacommunities.org/id/unitary-authority/bracknell-forest","Bracknell Forest Council","00MA","Leisure Centre - Catering General","Indoor Sports & Recreation Facilities","","Cost of Goods Sold",19/05/2015 00:00:00,"30268663",7.33,"CHRISTMAS BARKERY LTD"
"Bracknell Forest Council","http://opendatacommunities.org/id/unitary-authority/bracknell-forest","Bracknell Forest Council","00MA","Leisure Centre - Catering General","Indoor Sports & Recreation Facilities","","Cost of Goods Sold",19/05/2015 00:00:00,"30268663",4.6,"CHRISTMAS BARKERY LTD"
"Bracknell Forest Council","http://opendatacommunities.org/id/unitary-authority/bracknell-forest","Bracknell Forest Council","00MA","Leisure Centre - Catering General","Indoor Sports & Recreation Facilities","","Cost of Goods Sold",13/05/2015 00:00:00,"30268663",36.11,"J&S MEATS (ASCOT)"
"Bracknell Forest Council","http://opendatacommunities.org/id/unitary-authority/bracknell-forest","Bracknell Forest Council","00MA","Leisure Centre - Catering General","Indoor Sports & Recreation Facilities","","Cost of Goods - Bar",14/05/2015 00:00:00,"30268663",192.56,"MATTHEW CLARK WHOLESALE"
"Bracknell Forest Council","http://opendatacommunities.org/id/unitary-authority/bracknell-forest","Bracknell Forest Council","00MA","Bridgewell Unit","Short Term Support Other","","Cost of Goods Sold",13/05/2015 00:00:00,"30268663",290.42,"3663"
"Bracknell Forest Council","http://opendatacommunities.org/id/unitary-authority/bracknell-forest","Bracknell Forest Council","00MA","Birch Hill - Primary","Delegated Primary School Budgets","","Electricity",18/02/2015 00:00:00,"30261227",1123.83,"BRITISH GAS TRADING - DD ONLY"
"Bracknell Forest Council","http://opendatacommunities.org/id/unitary-authority/bracknell-forest","Bracknell Forest Council","00MA","College Town - Infant & Nursery","Delegated Primary School Budgets","","Electricity",18/02/2015 00:00:00,"30261227",454.3,"BRITISH GAS TRADING - DD ONLY"
"Bracknell Forest Council","http://opendatacommunities.org/id/unitary-authority/bracknell-forest","Bracknell Forest Council","00MA","College Town - Infant & Nursery","Delegated Primary School Budgets","","Electricity",18/02/2015 00:00:00,"30261227",274.28,"BRITISH GAS TRADING - DD ONLY"
"Bracknell Forest Council","http://opendatacommunities.org/id/unitary-authority/bracknell-forest","Bracknell Forest Council","00MA","Bracknell Market","Bracknell Market","","Electricity",18/02/2015 00:00:00,"30261227",462.57,"BRITISH GAS TRADING - DD ONLY"
"Bracknell Forest Council","http://opendatacommunities.org/id/unitary-authority/bracknell-forest","Bracknell Forest Council","00MA","Kennel Lane","Delegated Special and Alternative Provision Budgets","","Electricity",18/02/2015 00:00:00,"30261227",1509.86,"BRITISH GAS TRADING - DD ONLY"
"Bracknell Forest Council","http://opendatacommunities.org/id/unitary-authority/bracknell-forest","Bracknell Forest Council","00MA","Leisure DSO - Downshire Golf Course","Golf Courses","","Electricity",18/02/2015 00:00:00,"30261227",233.21,"BRITISH GAS TRADING - DD ONLY"
"Bracknell Forest Council","http://opendatacommunities.org/id/unitary-authority/bracknell-forest","Bracknell Forest Council","00MA","Sandy Lane Primary School","Delegated Primary School Budgets","","Electricity",18/02/2015 00:00:00,"30261227",1167.92,"BRITISH GAS TRADING - DD ONLY"
"Bracknell Forest Council","http://opendatacommunities.org/id/unitary-authority/bracknell-forest","Bracknell Forest Council","00MA","Kennel Lane","Delegated Special and Alternative Provision Budgets","","Electricity",18/02/2015 00:00:00,"30261227",786.09,"BRITISH GAS TRADING - DD ONLY"
"Bracknell Forest Council","http://opendatacommunities.org/id/unitary-authority/bracknell-forest","Bracknell Forest Council","00MA","Lighting","Street Lighting","","Electricity",18/02/2015 00:00:00,"30261227",35.69,"BRITISH GAS TRADING - DD ONLY"
"Bracknell Forest Council","http://opendatacommunities.org/id/unitary-authority/bracknell-forest","Bracknell Forest Council","00MA","Lighting","Street Lighting","","Electricity",18/02/2015 00:00:00,"30261227",18.53,"BRITISH GAS TRADING - DD ONLY"
"Bracknell Forest Council","http://opendatacommunities.org/id/unitary-authority/bracknell-forest","Bracknell Forest Council","00MA","Lighting","Street Lighting","","Electricity",18/02/2015 00:00:00,"30261227",12.65,"BRITISH GAS TRADING - DD ONLY"
"Bracknell Forest Council","http://opendatacommunities.org/id/unitary-authority/bracknell-forest","Bracknell Forest Council","00MA","Lighting","Street Lighting","","Electricity",18/02/2015 00:00:00,"30261227",367.15,"BRITISH GAS TRADING - DD ONLY"
"Bracknell Forest Council","http://opendatacommunities.org/id/unitary-authority/bracknell-forest","Bracknell Forest Council","00MA","Lighting","Street Lighting","","Electricity",18/02/2015 00:00:00,"30261227",28.31,"BRITISH GAS TRADING - DD ONLY"
"Bracknell Forest Council","http://opendatacommunities.org/id/unitary-authority/bracknell-forest","Bracknell Forest Council","00MA","Lighting","Street Lighting","","Electricity",18/02/2015 00:00:00,"30261227",176.97,"BRITISH GAS TRADING - DD ONLY"
"Bracknell Forest Council","http://opendatacommunities.org/id/unitary-authority/bracknell-forest","Bracknell Forest Council","00MA","Lighting","Street Lighting","","Electricity",18/02/2015 00:00:00,"30261227",175.92,"BRITISH GAS TRADING - DD ONLY"
"Bracknell Forest Council","http://opendatacommunities.org/id/unitary-authority/bracknell-forest","Bracknell Forest Council","00MA","Depot Facilities","Construction and Property","","Electricity",18/02/2015 00:00:00,"30261227",941.41,"BRITISH GAS TRADING - DD ONLY"
"Bracknell Forest Council","http://opendatacommunities.org/id/unitary-authority/bracknell-forest","Bracknell Forest Council","00MA","Depot Facilities","Construction and Property","","Electricity",18/02/2015 00:00:00,"30261227",951.37,"BRITISH GAS TRADING - DD ONLY"
"Bracknell Forest Council","http://opendatacommunities.org/id/unitary-authority/bracknell-forest","Bracknell Forest Council","00MA","Bridgewell Unit","Short Term Support Other","","Cost of Goods Sold",13/05/2015 00:00:00,"30268663",51.51,"3663"
"Bracknell Forest Council","http://opendatacommunities.org/id/unitary-authority/bracknell-forest","Bracknell Forest Council","00MA","Leisure Centre - Catering General","Indoor Sports & Recreation Facilities","","Cost of Goods Sold",13/05/2015 00:00:00,"30268663",456.99,"3663"
"Bracknell Forest Council","http://opendatacommunities.org/id/unitary-authority/bracknell-forest","Bracknell Forest Council","00MA","Leisure Centre - Catering General","Indoor Sports & Recreation Facilities","","Cost of Goods Sold",13/05/2015 00:00:00,"30268663",7.63,"3663"
"Bracknell Forest Council","http://opendatacommunities.org/id/unitary-authority/bracknell-forest","Bracknell Forest Council","00MA","Leisure Centre - Catering General","Indoor Sports & Recreation Facilities","","Cost of Goods Sold",13/05/2015 00:00:00,"30268663",63.75,"3663"
"Bracknell Forest Council","http://opendatacommunities.org/id/unitary-authority/bracknell-forest","Bracknell Forest Council","00MA","Leisure Centre - Catering General","Indoor Sports & Recreation Facilities","","Cost of Goods Sold",15/05/2015 00:00:00,"30268663",254.68,"3663"
"Bracknell Forest Council","http://opendatacommunities.org/id/unitary-authority/bracknell-forest","Bracknell Forest Council","00MA","Leisure Centre - Catering General","Indoor Sports & Recreation Facilities","","Cost of Goods Sold",19/05/2015 00:00:00,"30268663",7.72,"CHRISTMAS BARKERY LTD"
"Bracknell Forest Council","http://opendatacommunities.org/id/unitary-authority/bracknell-forest","Bracknell Forest Council","00MA","Leisure Centre - Catering General","Indoor Sports & Recreation Facilities","","Cost of Goods Sold",19/05/2015 00:00:00,"30268663",4.99,"CHRISTMAS BARKERY LTD"
"Bracknell Forest Council","http://opendatacommunities.org/id/unitary-authority/bracknell-forest","Bracknell Forest Council","00MA","Easthampstead Park Centre - Catering","Premises Development","","Cost of Goods Sold",15/05/2015 00:00:00,"30268663",2.45,"BRAKE BROS"
"Bracknell Forest Council","http://opendatacommunities.org/id/unitary-authority/bracknell-forest","Bracknell Forest Council","00MA","Leisure DSO - Downshire Catering","Golf Courses","","Cost of Goods Sold",19/05/2015 00:00:00,"30268663",64.43,"CHRISTMAS BARKERY LTD"
"Bracknell Forest Council","http://opendatacommunities.org/id/unitary-authority/bracknell-forest","Bracknell Forest Council","00MA","Leisure DSO - Downshire Catering","Golf Courses","","Cost of Goods Sold",19/05/2015 00:00:00,"30268663",9.22,"CHRISTMAS BARKERY LTD"
"Bracknell Forest Council","http://opendatacommunities.org/id/unitary-authority/bracknell-forest","Bracknell Forest Council","00MA","Leisure DSO - Downshire Catering","Golf Courses","","Cost of Goods Sold",19/05/2015 00:00:00,"30268663",7.94,"CHRISTMAS BARKERY LTD"
"Bracknell Forest Council","http://opendatacommunities.org/id/unitary-authority/bracknell-forest","Bracknell Forest Council","00MA","Leisure DSO - Downshire Catering","Golf Courses","","Cost of Goods Sold",19/05/2015 00:00:00,"30268663",10.54,"CHRISTMAS BARKERY LTD"
"Bracknell Forest Council","http://opendatacommunities.org/id/unitary-authority/bracknell-forest","Bracknell Forest Council","00MA","Leisure DSO - Downshire Catering","Golf Courses","","Cost of Goods Sold",19/05/2015 00:00:00,"30268663",16.92,"CHRISTMAS BARKERY LTD"
"Bracknell Forest Council","http://opendatacommunities.org/id/unitary-authority/bracknell-forest","Bracknell Forest Council","00MA","Leisure DSO - Downshire Catering","Golf Courses","","Cost of Goods Sold",19/05/2015 00:00:00,"30268663",9.22,"CHRISTMAS BARKERY LTD"
"Bracknell Forest Council","http://opendatacommunities.org/id/unitary-authority/bracknell-forest","Bracknell Forest Council","00MA","Leisure DSO - Downshire Catering","Golf Courses","","Cost of Goods Sold",19/05/2015 00:00:00,"30268663",31.37,"CHRISTMAS BARKERY LTD"
"Bracknell Forest Council","http://opendatacommunities.org/id/unitary-authority/bracknell-forest","Bracknell Forest Council","00MA","Easthampstead Park Centre - Catering","Premises Development","","Cost of Goods Sold",14/05/2015 00:00:00,"30268663",56.4,"MATTHEW CLARK WHOLESALE"
"Bracknell Forest Council","http://opendatacommunities.org/id/unitary-authority/bracknell-forest","Bracknell Forest Council","00MA","St Michael�s (Sandhurst) - Primary","Delegated Primary School Budgets","","Electricity",18/02/2015 00:00:00,"30261227",477.84,"BRITISH GAS TRADING - DD ONLY"
"Bracknell Forest Council","http://opendatacommunities.org/id/unitary-authority/bracknell-forest","Bracknell Forest Council","00MA","Ascot Heath - Junior","Delegated Primary School Budgets","","Electricity",18/02/2015 00:00:00,"30261227",1154.96,"BRITISH GAS TRADING - DD ONLY"
"Bracknell Forest Council","http://opendatacommunities.org/id/unitary-authority/bracknell-forest","Bracknell Forest Council","00MA","Wildmoor Heath School","Delegated Primary School Budgets","","Electricity",18/02/2015 00:00:00,"30261227",432.96,"BRITISH GAS TRADING - DD ONLY"
"Bracknell Forest Council","http://opendatacommunities.org/id/unitary-authority/bracknell-forest","Bracknell Forest Council","00MA","Recreation Staff Accommodation","Indoor Sports & Recreation Facilities","","Electricity",18/02/2015 00:00:00,"30261227",37.55,"BRITISH GAS TRADING - DD ONLY"
"Bracknell Forest Council","http://opendatacommunities.org/id/unitary-authority/bracknell-forest","Bracknell Forest Council","00MA","Recreation Staff Accommodation","Indoor Sports & Recreation Facilities","","Electricity",18/02/2015 00:00:00,"30261227",72.29,"BRITISH GAS TRADING - DD ONLY"
"Bracknell Forest Council","http://opendatacommunities.org/id/unitary-authority/bracknell-forest","Bracknell Forest Council","00MA","Recreation Staff Accommodation","Indoor Sports & Recreation Facilities","","Electricity",18/02/2015 00:00:00,"30261227",83.77,"BRITISH GAS TRADING - DD ONLY"
"Bracknell Forest Council","http://opendatacommunities.org/id/unitary-authority/bracknell-forest","Bracknell Forest Council","00MA","Crowthorne Library","Branch Libraries","","Electricity",18/02/2015 00:00:00,"30261227",253.38,"BRITISH GAS TRADING - DD ONLY"
"Bracknell Forest Council","http://opendatacommunities.org/id/unitary-authority/bracknell-forest","Bracknell Forest Council","00MA","Harmans Water Library","Branch Libraries","","Electricity",18/02/2015 00:00:00,"30261227",73.08,"BRITISH GAS TRADING - DD ONLY"
"Bracknell Forest Council","http://opendatacommunities.org/id/unitary-authority/bracknell-forest","Bracknell Forest Council","00MA","Waymead - Short Stay","Internal Services","","Electricity",18/02/2015 00:00:00,"30261227",515.44,"BRITISH GAS TRADING - DD ONLY"
"Bracknell Forest Council","http://opendatacommunities.org/id/unitary-authority/bracknell-forest","Bracknell Forest Council","00MA","Waymead - Short Stay","Internal Services","","Electricity",18/02/2015 00:00:00,"30261227",116.26,"BRITISH GAS TRADING - DD ONLY"
"Bracknell Forest Council","http://opendatacommunities.org/id/unitary-authority/bracknell-forest","Bracknell Forest Council","00MA","Brakenhale - Secondary","Delegated Secondary Schools Budgets","","Electricity",18/02/2015 00:00:00,"30261227",574.89,"BRITISH GAS TRADING - DD ONLY"
"Bracknell Forest Council","http://opendatacommunities.org/id/unitary-authority/bracknell-forest","Bracknell Forest Council","00MA","Brakenhale - Secondary","Delegated Secondary Schools Budgets","","Electricity",18/02/2015 00:00:00,"30261227",126.93,"BRITISH GAS TRADING - DD ONLY"
"Bracknell Forest Council","http://opendatacommunities.org/id/unitary-authority/bracknell-forest","Bracknell Forest Council","00MA","Coopers Hill Youth Centre","Universal services for young people","","Electricity",18/02/2015 00:00:00,"30261227",361.68,"BRITISH GAS TRADING - DD ONLY"
"Bracknell Forest Council","http://opendatacommunities.org/id/unitary-authority/bracknell-forest","Bracknell Forest Council","00MA","Great Hollands Youth Centre","Universal services for young people","","Electricity",18/02/2015 00:00:00,"30261227",44.73,"BRITISH GAS TRADING - DD ONLY"
"Bracknell Forest Council","http://opendatacommunities.org/id/unitary-authority/bracknell-forest","Bracknell Forest Council","00MA","Public Conveniences","Public Conveniences","","Electricity",18/02/2015 00:00:00,"30261227",90.03,"BRITISH GAS TRADING - DD ONLY"
"Bracknell Forest Council","http://opendatacommunities.org/id/unitary-authority/bracknell-forest","Bracknell Forest Council","00MA","Public Conveniences","Public Conveniences","","Electricity",18/02/2015 00:00:00,"30261227",139.86,"BRITISH GAS TRADING - DD ONLY"
"Bracknell Forest Council","http://opendatacommunities.org/id/unitary-authority/bracknell-forest","Bracknell Forest Council","00MA","Public Conveniences","Public Conveniences","","Electricity",18/02/2015 00:00:00,"30261227",151.63,"BRITISH GAS TRADING - DD ONLY"
"Bracknell Forest Council","http://opendatacommunities.org/id/unitary-authority/bracknell-forest","Bracknell Forest Council","00MA","Meadow Vale - Primary","Delegated Primary School Budgets","","Electricity",18/02/2015 00:00:00,"30261227",1209.13,"BRITISH GAS TRADING - DD ONLY"
"Bracknell Forest Council","http://opendatacommunities.org/id/unitary-authority/bracknell-forest","Bracknell Forest Council","00MA","Owlsmoor - Primary","Delegated Primary School Budgets","","Electricity",18/02/2015 00:00:00,"30261227",1060.69,"BRITISH GAS TRADING - DD ONLY"
"Bracknell Forest Council","http://opendatacommunities.org/id/unitary-authority/bracknell-forest","Bracknell Forest Council","00MA","The Pines School","Delegated Primary School Budgets","","Electricity",18/02/2015 00:00:00,"30261227",769.27,"BRITISH GAS TRADING - DD ONLY"
"Bracknell Forest Council","http://opendatacommunities.org/id/unitary-authority/bracknell-forest","Bracknell Forest Council","00MA","Lily Hill Park Maintenance","Community Parks & Open Spaces","","Electricity",18/02/2015 00:00:00,"30261227",38.08,"BRITISH GAS TRADING - DD ONLY"
"Bracknell Forest Council","http://opendatacommunities.org/id/unitary-authority/bracknell-forest","Bracknell Forest Council","00MA","Sandhurst Library","Branch Libraries","","Electricity",18/02/2015 00:00:00,"30261227",188.81,"BRITISH GAS TRADING - DD ONLY"
"Bracknell Forest Council","http://opendatacommunities.org/id/unitary-authority/bracknell-forest","Bracknell Forest Council","00MA","The Wayz","Targeted services for young people","","Electricity",18/02/2015 00:00:00,"30261227",96.41,"BRITISH GAS TRADING - DD ONLY"
"Bracknell Forest Council","http://opendatacommunities.org/id/unitary-authority/bracknell-forest","Bracknell Forest Council","00MA","Ranelagh Academy","Holding Codes - net nil","","Electricity",18/02/2015 00:00:00,"30261227",105.19,"BRITISH GAS TRADING - DD ONLY"
"Bracknell Forest Council","http://opendatacommunities.org/id/unitary-authority/bracknell-forest","Bracknell Forest Council","00MA","Ranelagh Academy","Holding Codes - net nil","","Electricity",18/02/2015 00:00:00,"30261227",902.15,"BRITISH GAS TRADING - DD ONLY"
"Bracknell Forest Council","http://opendatacommunities.org/id/unitary-authority/bracknell-forest","Bracknell Forest Council","00MA","College Town - Junior","Delegated Primary School Budgets","","Electricity",18/02/2015 00:00:00,"30261227",790.36,"BRITISH GAS TRADING - DD ONLY"
"Bracknell Forest Council","http://opendatacommunities.org/id/unitary-authority/bracknell-forest","Bracknell Forest Council","00MA","Fox Hill - Primary","Delegated Primary School Budgets","","Electricity",18/02/2015 00:00:00,"30261227",400.37,"BRITISH GAS TRADING - DD ONLY"
"Bracknell Forest Council","http://opendatacommunities.org/id/unitary-authority/bracknell-forest","Bracknell Forest Council","00MA","Primary Resource Centre","De-Delegated Expenditure","","Electricity",18/02/2015 00:00:00,"30261227",560.48,"BRITISH GAS TRADING - DD ONLY"
"Bracknell Forest Council","http://opendatacommunities.org/id/unitary-authority/bracknell-forest","Bracknell Forest Council","00MA","The Willows Children�s Centre","Children�s centres - direct","","Electricity",18/02/2015 00:00:00,"30261227",149.8,"BRITISH GAS TRADING - DD ONLY"
"Bracknell Forest Council","http://opendatacommunities.org/id/unitary-authority/bracknell-forest","Bracknell Forest Council","00MA","St Joseph�s - Catholic Primary","Delegated Primary School Budgets","","Electricity",18/02/2015 00:00:00,"30261227",550.71,"BRITISH GAS TRADING - DD ONLY"
"Bracknell Forest Council","http://opendatacommunities.org/id/unitary-authority/bracknell-forest","Bracknell Forest Council","00MA","Whitegrove - Primary","Delegated Primary School Budgets","","Electricity",18/02/2015 00:00:00,"30261227",915.64,"BRITISH GAS TRADING - DD ONLY"
"Bracknell Forest Council","http://opendatacommunities.org/id/unitary-authority/bracknell-forest","Bracknell Forest Council","00MA","Wildridings - Primary","Delegated Primary School Budgets","","Electricity",18/02/2015 00:00:00,"30261227",544.71,"BRITISH GAS TRADING - DD ONLY"
"Bracknell Forest Council","http://opendatacommunities.org/id/unitary-authority/bracknell-forest","Bracknell Forest Council","00MA","Wildridings - Primary","Delegated Primary School Budgets","","Electricity",18/02/2015 00:00:00,"30261227",585.92,"BRITISH GAS TRADING - DD ONLY"
"Bracknell Forest Council","http://opendatacommunities.org/id/unitary-authority/bracknell-forest","Bracknell Forest Council","00MA","Wooden Hill - Primary","Delegated Primary School Budgets","","Electricity",18/02/2015 00:00:00,"30261227",790.09,"BRITISH GAS TRADING - DD ONLY"
"Bracknell Forest Council","http://opendatacommunities.org/id/unitary-authority/bracknell-forest","Bracknell Forest Council","00MA","Heathlands EPH","Internal Services","","Electricity",18/02/2015 00:00:00,"30261227",1001.89,"BRITISH GAS TRADING - DD ONLY"
"Bracknell Forest Council","http://opendatacommunities.org/id/unitary-authority/bracknell-forest","Bracknell Forest Council","00MA","Off Street Parking","Off Street Parking","","Electricity",18/02/2015 00:00:00,"30261227",2691.06,"BRITISH GAS TRADING - DD ONLY"
"Bracknell Forest Council","http://opendatacommunities.org/id/unitary-authority/bracknell-forest","Bracknell Forest Council","00MA","Off Street Parking","Off Street Parking","","Electricity",18/02/2015 00:00:00,"30261227",1695.52,"BRITISH GAS TRADING - DD ONLY"
"Bracknell Forest Council","http://opendatacommunities.org/id/unitary-authority/bracknell-forest","Bracknell Forest Council","00MA","Off Street Parking","Off Street Parking","","Electricity",18/02/2015 00:00:00,"30261227",142.06,"BRITISH GAS TRADING - DD ONLY"
"Bracknell Forest Council","http://opendatacommunities.org/id/unitary-authority/bracknell-forest","Bracknell Forest Council","00MA","Off Street Parking","Off Street Parking","","Electricity",18/02/2015 00:00:00,"30261227",12.65,"BRITISH GAS TRADING - DD ONLY"
"Bracknell Forest Council","http://opendatacommunities.org/id/unitary-authority/bracknell-forest","Bracknell Forest Council","00MA","Off Street Parking","Off Street Parking","","Electricity",18/02/2015 00:00:00,"30261227",532.09,"BRITISH GAS TRADING - DD ONLY"
"Bracknell Forest Council","http://opendatacommunities.org/id/unitary-authority/bracknell-forest","Bracknell Forest Council","00MA","Great Hollands Primary School","Delegated Primary School Budgets","","Electricity",18/02/2015 00:00:00,"30261227",607.37,"BRITISH GAS TRADING - DD ONLY"
"Bracknell Forest Council","http://opendatacommunities.org/id/unitary-authority/bracknell-forest","Bracknell Forest Council","00MA","Great Hollands Primary School","Delegated Primary School Budgets","","Electricity",18/02/2015 00:00:00,"30261227",458.82,"BRITISH GAS TRADING - DD ONLY"
"Bracknell Forest Council","http://opendatacommunities.org/id/unitary-authority/bracknell-forest","Bracknell Forest Council","00MA","Great Hollands Primary School","Delegated Primary School Budgets","","Electricity",18/02/2015 00:00:00,"30261239",578.83,"BRITISH GAS TRADING - DD ONLY"
"Bracknell Forest Council","http://opendatacommunities.org/id/unitary-authority/bracknell-forest","Bracknell Forest Council","00MA","Great Hollands Primary School","Delegated Primary School Budgets","","Electricity",18/02/2015 00:00:00,"30261239",431.65,"BRITISH GAS TRADING - DD ONLY"
"Bracknell Forest Council","http://opendatacommunities.org/id/unitary-authority/bracknell-forest","Bracknell Forest Council","00MA","Urban Parks  - Maintenance","Community Parks & Open Spaces","","Electricity",18/02/2015 00:00:00,"30261239",89.16,"BRITISH GAS TRADING - DD ONLY"
"Bracknell Forest Council","http://opendatacommunities.org/id/unitary-authority/bracknell-forest","Bracknell Forest Council","00MA","Heathlands EPH","Internal Services","","Electricity",18/02/2015 00:00:00,"30261239",1002.6,"BRITISH GAS TRADING - DD ONLY"
"Bracknell Forest Council","http://opendatacommunities.org/id/unitary-authority/bracknell-forest","Bracknell Forest Council","00MA","Family Centre Running Costs","Targeted Family Support","","Electricity",18/02/2015 00:00:00,"30261239",-42,"BRITISH GAS TRADING - DD ONLY"
"Bracknell Forest Council","http://opendatacommunities.org/id/unitary-authority/bracknell-forest","Bracknell Forest Council","00MA","Primary Resource Centre","De-Delegated Expenditure","","Electricity",18/02/2015 00:00:00,"30261239",349.64,"BRITISH GAS TRADING - DD ONLY"
"Bracknell Forest Council","http://opendatacommunities.org/id/unitary-authority/bracknell-forest","Bracknell Forest Council","00MA","The Willows Children�s Centre","Children�s centres - direct","","Electricity",18/02/2015 00:00:00,"30261239",107.65,"BRITISH GAS TRADING - DD ONLY"
"Bracknell Forest Council","http://opendatacommunities.org/id/unitary-authority/bracknell-forest","Bracknell Forest Council","00MA","Off Street Parking","Off Street Parking","","Electricity",18/02/2015 00:00:00,"30261239",511.13,"BRITISH GAS TRADING - DD ONLY"
"Bracknell Forest Council","http://opendatacommunities.org/id/unitary-authority/bracknell-forest","Bracknell Forest Council","00MA","Wildridings - Primary","Delegated Primary School Budgets","","Electricity",18/02/2015 00:00:00,"30261239",553.49,"BRITISH GAS TRADING - DD ONLY"
"Bracknell Forest Council","http://opendatacommunities.org/id/unitary-authority/bracknell-forest","Bracknell Forest Council","00MA","Wildridings - Primary","Delegated Primary School Budgets","","Electricity",18/02/2015 00:00:00,"30261239",175.72,"BRITISH GAS TRADING - DD ONLY"
"Bracknell Forest Council","http://opendatacommunities.org/id/unitary-authority/bracknell-forest","Bracknell Forest Council","00MA","Wildridings - Primary","Delegated Primary School Budgets","","Electricity",18/02/2015 00:00:00,"30261239",-42,"BRITISH GAS TRADING - DD ONLY"
"Bracknell Forest Council","http://opendatacommunities.org/id/unitary-authority/bracknell-forest","Bracknell Forest Council","00MA","Wildridings - Primary","Delegated Primary School Budgets","","Electricity",18/02/2015 00:00:00,"30261239",32.94,"BRITISH GAS TRADING - DD ONLY"
"Bracknell Forest Council","http://opendatacommunities.org/id/unitary-authority/bracknell-forest","Bracknell Forest Council","00MA","Wooden Hill - Primary","Delegated Primary School Budgets","","Electricity",18/02/2015 00:00:00,"30261239",94.14,"BRITISH GAS TRADING - DD ONLY"
"Bracknell Forest Council","http://opendatacommunities.org/id/unitary-authority/bracknell-forest","Bracknell Forest Council","00MA","Off Street Parking","Off Street Parking","","Electricity",18/02/2015 00:00:00,"30261239",2848.13,"BRITISH GAS TRADING - DD ONLY"
"Bracknell Forest Council","http://opendatacommunities.org/id/unitary-authority/bracknell-forest","Bracknell Forest Council","00MA","Off Street Parking","Off Street Parking","","Electricity",18/02/2015 00:00:00,"30261239",1956.34,"BRITISH GAS TRADING - DD ONLY"
"Bracknell Forest Council","http://opendatacommunities.org/id/unitary-authority/bracknell-forest","Bracknell Forest Council","00MA","Wooden Hill - Primary","Delegated Primary School Budgets","","Electricity",18/02/2015 00:00:00,"30261239",805.17,"BRITISH GAS TRADING - DD ONLY"
"Bracknell Forest Council","http://opendatacommunities.org/id/unitary-authority/bracknell-forest","Bracknell Forest Council","00MA","Owlsmoor - Primary","Delegated Primary School Budgets","","Electricity",18/02/2015 00:00:00,"30261239",1331.45,"BRITISH GAS TRADING - DD ONLY"
"Bracknell Forest Council","http://opendatacommunities.org/id/unitary-authority/bracknell-forest","Bracknell Forest Council","00MA","The Pines School","Delegated Primary School Budgets","","Electricity",18/02/2015 00:00:00,"30261239",659.67,"BRITISH GAS TRADING - DD ONLY"
"Bracknell Forest Council","http://opendatacommunities.org/id/unitary-authority/bracknell-forest","Bracknell Forest Council","00MA","St Joseph�s - Catholic Primary","Delegated Primary School Budgets","","Electricity",18/02/2015 00:00:00,"30261239",490.83,"BRITISH GAS TRADING - DD ONLY"
"Bracknell Forest Council","http://opendatacommunities.org/id/unitary-authority/bracknell-forest","Bracknell Forest Council","00MA","Ranelagh Academy","Holding Codes - net nil","","Electricity",18/02/2015 00:00:00,"30261239",50,"BRITISH GAS TRADING - DD ONLY"
"Bracknell Forest Council","http://opendatacommunities.org/id/unitary-authority/bracknell-forest","Bracknell Forest Council","00MA","Ranelagh Academy","Holding Codes - net nil","","Electricity",18/02/2015 00:00:00,"30261239",559.9,"BRITISH GAS TRADING - DD ONLY"
"Bracknell Forest Council","http://opendatacommunities.org/id/unitary-authority/bracknell-forest","Bracknell Forest Council","00MA","Public Conveniences","Public Conveniences","","Electricity",18/02/2015 00:00:00,"30261239",101.71,"BRITISH GAS TRADING - DD ONLY"
"Bracknell Forest Council","http://opendatacommunities.org/id/unitary-authority/bracknell-forest","Bracknell Forest Council","00MA","Lily Hill Park Maintenance","Community Parks & Open Spaces","","Electricity",18/02/2015 00:00:00,"30261239",47.61,"BRITISH GAS TRADING - DD ONLY"
"Bracknell Forest Council","http://opendatacommunities.org/id/unitary-authority/bracknell-forest","Bracknell Forest Council","00MA","Lily Hill Park Maintenance","Community Parks & Open Spaces","","Electricity",18/02/2015 00:00:00,"30261239",-42,"BRITISH GAS TRADING - DD ONLY"
"Bracknell Forest Council","http://opendatacommunities.org/id/unitary-authority/bracknell-forest","Bracknell Forest Council","00MA","College Town - Junior","Delegated Primary School Budgets","","Electricity",18/02/2015 00:00:00,"30261239",802.68,"BRITISH GAS TRADING - DD ONLY"
"Bracknell Forest Council","http://opendatacommunities.org/id/unitary-authority/bracknell-forest","Bracknell Forest Council","00MA","Whitegrove - Primary","Delegated Primary School Budgets","","Electricity",18/02/2015 00:00:00,"30261239",898.14,"BRITISH GAS TRADING - DD ONLY"
"Bracknell Forest Council","http://opendatacommunities.org/id/unitary-authority/bracknell-forest","Bracknell Forest Council","00MA","Wildridings - Primary","Delegated Primary School Budgets","","Electricity",18/02/2015 00:00:00,"30261239",1089.08,"BRITISH GAS TRADING - DD ONLY"
"Bracknell Forest Council","http://opendatacommunities.org/id/unitary-authority/bracknell-forest","Bracknell Forest Council","00MA","Public Conveniences","Public Conveniences","","Electricity",18/02/2015 00:00:00,"30261239",290.41,"BRITISH GAS TRADING - DD ONLY"
"Bracknell Forest Council","http://opendatacommunities.org/id/unitary-authority/bracknell-forest","Bracknell Forest Council","00MA","Meadow Vale - Primary","Delegated Primary School Budgets","","Electricity",18/02/2015 00:00:00,"30261239",1338.39,"BRITISH GAS TRADING - DD ONLY"
"Bracknell Forest Council","http://opendatacommunities.org/id/unitary-authority/bracknell-forest","Bracknell Forest Council","00MA","Off Street Parking","Off Street Parking","","Electricity",18/02/2015 00:00:00,"30261239",119.19,"BRITISH GAS TRADING - DD ONLY"
"Bracknell Forest Council","http://opendatacommunities.org/id/unitary-authority/bracknell-forest","Bracknell Forest Council","00MA","Off Street Parking","Off Street Parking","","Electricity",18/02/2015 00:00:00,"30261239",13.06,"BRITISH GAS TRADING - DD ONLY"
"Bracknell Forest Council","http://opendatacommunities.org/id/unitary-authority/bracknell-forest","Bracknell Forest Council","00MA","Off Street Parking","Off Street Parking","","Electricity",18/02/2015 00:00:00,"30261239",-42,"BRITISH GAS TRADING - DD ONLY"
"Bracknell Forest Council","http://opendatacommunities.org/id/unitary-authority/bracknell-forest","Bracknell Forest Council","00MA","Leisure DSO - Leisure Centre","Indoor Sports & Recreation Facilities","","Electricity",18/02/2015 00:00:00,"30261239",106.54,"BRITISH GAS TRADING - DD ONLY"
"Bracknell Forest Council","http://opendatacommunities.org/id/unitary-authority/bracknell-forest","Bracknell Forest Council","00MA","Leisure DSO - Leisure Centre","Indoor Sports & Recreation Facilities","","Electricity",18/02/2015 00:00:00,"30261239",-42,"BRITISH GAS TRADING - DD ONLY"
"Bracknell Forest Council","http://opendatacommunities.org/id/unitary-authority/bracknell-forest","Bracknell Forest Council","00MA","Ranelagh Academy","Holding Codes - net nil","","Electricity",18/02/2015 00:00:00,"30261239",883.36,"BRITISH GAS TRADING - DD ONLY"
"Bracknell Forest Council","http://opendatacommunities.org/id/unitary-authority/bracknell-forest","Bracknell Forest Council","00MA","The Wayz","Targeted services for young people","","Electricity",18/02/2015 00:00:00,"30261239",117.17,"BRITISH GAS TRADING - DD ONLY"
"Bracknell Forest Council","http://opendatacommunities.org/id/unitary-authority/bracknell-forest","Bracknell Forest Council","00MA","Public Conveniences","Public Conveniences","","Electricity",18/02/2015 00:00:00,"30261239",-42,"BRITISH GAS TRADING - DD ONLY"
"Bracknell Forest Council","http://opendatacommunities.org/id/unitary-authority/bracknell-forest","Bracknell Forest Council","00MA","Public Conveniences","Public Conveniences","","Electricity",18/02/2015 00:00:00,"30261239",117.93,"BRITISH GAS TRADING - DD ONLY"
"Bracknell Forest Council","http://opendatacommunities.org/id/unitary-authority/bracknell-forest","Bracknell Forest Council","00MA","The Wayz","Targeted services for young people","","Electricity",18/02/2015 00:00:00,"30261239",-42,"BRITISH GAS TRADING - DD ONLY"
"Bracknell Forest Council","http://opendatacommunities.org/id/unitary-authority/bracknell-forest","Bracknell Forest Council","00MA","Coopers Hill Youth Centre","Universal services for young people","","Electricity",18/02/2015 00:00:00,"30261239",313.79,"BRITISH GAS TRADING - DD ONLY"
"Bracknell Forest Council","http://opendatacommunities.org/id/unitary-authority/bracknell-forest","Bracknell Forest Council","00MA","Great Hollands Youth Centre","Universal services for young people","","Electricity",18/02/2015 00:00:00,"30261239",61.24,"BRITISH GAS TRADING - DD ONLY"
"Bracknell Forest Council","http://opendatacommunities.org/id/unitary-authority/bracknell-forest","Bracknell Forest Council","00MA","Great Hollands Youth Centre","Universal services for young people","","Electricity",18/02/2015 00:00:00,"30261239",-42,"BRITISH GAS TRADING - DD ONLY"
"Bracknell Forest Council","http://opendatacommunities.org/id/unitary-authority/bracknell-forest","Bracknell Forest Council","00MA","Sandhurst Library","Branch Libraries","","Electricity",18/02/2015 00:00:00,"30261239",125.75,"BRITISH GAS TRADING - DD ONLY"
"Bracknell Forest Council","http://opendatacommunities.org/id/unitary-authority/bracknell-forest","Bracknell Forest Council","00MA","Ranelagh Academy","Holding Codes - net nil","","Electricity",18/02/2015 00:00:00,"30261239",195.87,"BRITISH GAS TRADING - DD ONLY"
"Bracknell Forest Council","http://opendatacommunities.org/id/unitary-authority/bracknell-forest","Bracknell Forest Council","00MA","Fox Hill - Primary","Delegated Primary School Budgets","","Electricity",18/02/2015 00:00:00,"30261239",341.44,"BRITISH GAS TRADING - DD ONLY"
"Bracknell Forest Council","http://opendatacommunities.org/id/unitary-authority/bracknell-forest","Bracknell Forest Council","00MA","Family Centre Running Costs","Targeted Family Support","","Electricity",18/02/2015 00:00:00,"30261239",65.89,"BRITISH GAS TRADING - DD ONLY"
"Bracknell Forest Council","http://opendatacommunities.org/id/unitary-authority/bracknell-forest","Bracknell Forest Council","00MA","Family Centre Running Costs","Targeted Family Support","","Electricity",18/02/2015 00:00:00,"30261239",47.02,"BRITISH GAS TRADING - DD ONLY"
"Bracknell Forest Council","http://opendatacommunities.org/id/unitary-authority/bracknell-forest","Bracknell Forest Council","00MA","Great Hollands Primary School","Delegated Primary School Budgets","","Electricity",18/02/2015 00:00:00,"30261239",38.66,"BRITISH GAS TRADING - DD ONLY"
"Bracknell Forest Council","http://opendatacommunities.org/id/unitary-authority/bracknell-forest","Bracknell Forest Council","00MA","Great Hollands Primary School","Delegated Primary School Budgets","","Electricity",18/02/2015 00:00:00,"30261239",-42,"BRITISH GAS TRADING - DD ONLY"
"Bracknell Forest Council","http://opendatacommunities.org/id/unitary-authority/bracknell-forest","Bracknell Forest Council","00MA","Recreation Staff Accommodation","Indoor Sports & Recreation Facilities","","Electricity",18/02/2015 00:00:00,"30261239",10.8,"BRITISH GAS TRADING - DD ONLY"
"Bracknell Forest Council","http://opendatacommunities.org/id/unitary-authority/bracknell-forest","Bracknell Forest Council","00MA","Recreation Staff Accommodation","Indoor Sports & Recreation Facilities","","Electricity",18/02/2015 00:00:00,"30261239",55.48,"BRITISH GAS TRADING - DD ONLY"
"Bracknell Forest Council","http://opendatacommunities.org/id/unitary-authority/bracknell-forest","Bracknell Forest Council","00MA","Recreation Staff Accommodation","Indoor Sports & Recreation Facilities","","Electricity",18/02/2015 00:00:00,"30261239",49.46,"BRITISH GAS TRADING - DD ONLY"
"Bracknell Forest Council","http://opendatacommunities.org/id/unitary-authority/bracknell-forest","Bracknell Forest Council","00MA","Recreation Staff Accommodation","Indoor Sports & Recreation Facilities","","Electricity",18/02/2015 00:00:00,"30261239",-42,"BRITISH GAS TRADING - DD ONLY"
"Bracknell Forest Council","http://opendatacommunities.org/id/unitary-authority/bracknell-forest","Bracknell Forest Council","00MA","Easthampstead Park Centre - Catering","Premises Development","","Cost of Goods - Bar",14/05/2015 00:00:00,"30268663",889.2,"MATTHEW CLARK WHOLESALE"
"Bracknell Forest Council","http://opendatacommunities.org/id/unitary-authority/bracknell-forest","Bracknell Forest Council","00MA","Easthampstead Park Centre - Catering","Premises Development","","Cost of Goods Sold",13/05/2015 00:00:00,"30268663",123.38,"THE QUALITY MEAT"
"Bracknell Forest Council","http://opendatacommunities.org/id/unitary-authority/bracknell-forest","Bracknell Forest Council","00MA","Easthampstead Park Centre - Catering","Premises Development","","Cost of Goods Sold",14/05/2015 00:00:00,"30268663",182.76,"THE QUALITY MEAT"
"Bracknell Forest Council","http://opendatacommunities.org/id/unitary-authority/bracknell-forest","Bracknell Forest Council","00MA","Leisure DSO - Downshire Catering","Golf Courses","","Cost of Goods Sold",19/05/2015 00:00:00,"30268663",11.78,"CHRISTMAS BARKERY LTD"
"Bracknell Forest Council","http://opendatacommunities.org/id/unitary-authority/bracknell-forest","Bracknell Forest Council","00MA","Leisure DSO - Downshire Catering","Golf Courses","","Cost of Goods Sold",19/05/2015 00:00:00,"30268663",9.22,"CHRISTMAS BARKERY LTD"
"Bracknell Forest Council","http://opendatacommunities.org/id/unitary-authority/bracknell-forest","Bracknell Forest Council","00MA","Leisure DSO - Downshire Catering","Golf Courses","","Cost of Goods Sold",19/05/2015 00:00:00,"30268663",12.92,"CHRISTMAS BARKERY LTD"
"Bracknell Forest Council","http://opendatacommunities.org/id/unitary-authority/bracknell-forest","Bracknell Forest Council","00MA","Leisure DSO - Downshire Catering","Golf Courses","","Cost of Goods Sold",19/05/2015 00:00:00,"30268663",29.96,"CHRISTMAS BARKERY LTD"
"Bracknell Forest Council","http://opendatacommunities.org/id/unitary-authority/bracknell-forest","Bracknell Forest Council","00MA","Leisure DSO - Downshire Catering","Golf Courses","","Cost of Goods Sold",19/05/2015 00:00:00,"30268663",7.94,"CHRISTMAS BARKERY LTD"
"Bracknell Forest Council","http://opendatacommunities.org/id/unitary-authority/bracknell-forest","Bracknell Forest Council","00MA","Leisure DSO - Downshire Catering","Golf Courses","","Cost of Goods Sold",19/05/2015 00:00:00,"30268663",9.22,"CHRISTMAS BARKERY LTD"
"Bracknell Forest Council","http://opendatacommunities.org/id/unitary-authority/bracknell-forest","Bracknell Forest Council","00MA","Leisure DSO - Downshire Catering","Golf Courses","","Cost of Goods Sold",19/05/2015 00:00:00,"30268663",9.22,"CHRISTMAS BARKERY LTD"
"Bracknell Forest Council","http://opendatacommunities.org/id/unitary-authority/bracknell-forest","Bracknell Forest Council","00MA","Heathlands EPH","Internal Services","","Cost of Goods Sold",13/05/2015 00:00:00,"30268663",478.37,"3663"
"Bracknell Forest Council","http://opendatacommunities.org/id/unitary-authority/bracknell-forest","Bracknell Forest Council","00MA","Heathlands EPH","Internal Services","","Cost of Goods Sold",13/05/2015 00:00:00,"30268663",116.05,"3663"
"Bracknell Forest Council","http://opendatacommunities.org/id/unitary-authority/bracknell-forest","Bracknell Forest Council","00MA","Easthampstead Park Centre - Catering","Premises Development","","Cost of Goods Sold",14/05/2015 00:00:00,"30268663",682.67,"3663"
"Bracknell Forest Council","http://opendatacommunities.org/id/unitary-authority/bracknell-forest","Bracknell Forest Council","00MA","Easthampstead Park Centre - Catering","Premises Development","","Cost of Goods Sold",14/05/2015 00:00:00,"30268663",58.31,"3663"
"Bracknell Forest Council","http://opendatacommunities.org/id/unitary-authority/bracknell-forest","Bracknell Forest Council","00MA","Easthampstead Park Centre - Catering","Premises Development","","Cost of Goods Sold",15/05/2015 00:00:00,"30268663",219.68,"3663"
"Bracknell Forest Council","http://opendatacommunities.org/id/unitary-authority/bracknell-forest","Bracknell Forest Council","00MA","Easthampstead Park Centre - Catering","Premises Development","","Cost of Goods Sold",15/05/2015 00:00:00,"30268663",32.78,"3663"
"Bracknell Forest Council","http://opendatacommunities.org/id/unitary-authority/bracknell-forest","Bracknell Forest Council","00MA","Leisure DSO - Downshire Catering","Golf Courses","","Cost of Goods Sold",19/05/2015 00:00:00,"30268663",92.73,"3663"
"Bracknell Forest Council","http://opendatacommunities.org/id/unitary-authority/bracknell-forest","Bracknell Forest Council","00MA","LD Employment Service","Management & Administration","","Electricity",18/02/2015 00:00:00,"30261239",28.42,"BRITISH GAS TRADING - DD ONLY"
"Bracknell Forest Council","http://opendatacommunities.org/id/unitary-authority/bracknell-forest","Bracknell Forest Council","00MA","LD Employment Service","Management & Administration","","Electricity",18/02/2015 00:00:00,"30261239",-42,"BRITISH GAS TRADING - DD ONLY"
"Bracknell Forest Council","http://opendatacommunities.org/id/unitary-authority/bracknell-forest","Bracknell Forest Council","00MA","Waymead - Short Stay","Internal Services","","Electricity",18/02/2015 00:00:00,"30261239",511.63,"BRITISH GAS TRADING - DD ONLY"
"Bracknell Forest Council","http://opendatacommunities.org/id/unitary-authority/bracknell-forest","Bracknell Forest Council","00MA","Harmans Water Library","Branch Libraries","","Electricity",18/02/2015 00:00:00,"30261239",84.41,"BRITISH GAS TRADING - DD ONLY"
"Bracknell Forest Council","http://opendatacommunities.org/id/unitary-authority/bracknell-forest","Bracknell Forest Council","00MA","Harmans Water Library","Branch Libraries","","Electricity",18/02/2015 00:00:00,"30261239",-42,"BRITISH GAS TRADING - DD ONLY"
"Bracknell Forest Council","http://opendatacommunities.org/id/unitary-authority/bracknell-forest","Bracknell Forest Council","00MA","Brakenhale - Secondary","Delegated Secondary Schools Budgets","","Electricity",18/02/2015 00:00:00,"30261239",481.16,"BRITISH GAS TRADING - DD ONLY"
"Bracknell Forest Council","http://opendatacommunities.org/id/unitary-authority/bracknell-forest","Bracknell Forest Council","00MA","Brakenhale - Secondary","Delegated Secondary Schools Budgets","","Electricity",18/02/2015 00:00:00,"30261239",87.03,"BRITISH GAS TRADING - DD ONLY"
"Bracknell Forest Council","http://opendatacommunities.org/id/unitary-authority/bracknell-forest","Bracknell Forest Council","00MA","Brakenhale - Secondary","Delegated Secondary Schools Budgets","","Electricity",18/02/2015 00:00:00,"30261239",177.84,"BRITISH GAS TRADING - DD ONLY"
"Bracknell Forest Council","http://opendatacommunities.org/id/unitary-authority/bracknell-forest","Bracknell Forest Council","00MA","Recreation Staff Accommodation","Indoor Sports & Recreation Facilities","","Electricity",18/02/2015 00:00:00,"30261239",-2.75,"BRITISH GAS TRADING - DD ONLY"
"Bracknell Forest Council","http://opendatacommunities.org/id/unitary-authority/bracknell-forest","Bracknell Forest Council","00MA","Recreation Staff Accommodation","Indoor Sports & Recreation Facilities","","Electricity",18/02/2015 00:00:00,"30261239",16.12,"BRITISH GAS TRADING - DD ONLY"
"Bracknell Forest Council","http://opendatacommunities.org/id/unitary-authority/bracknell-forest","Bracknell Forest Council","00MA","Crowthorne Library","Branch Libraries","","Electricity",18/02/2015 00:00:00,"30261239",290.8,"BRITISH GAS TRADING - DD ONLY"
"Bracknell Forest Council","http://opendatacommunities.org/id/unitary-authority/bracknell-forest","Bracknell Forest Council","00MA","Waymead - Short Stay","Internal Services","","Electricity",18/02/2015 00:00:00,"30261239",270.22,"BRITISH GAS TRADING - DD ONLY"
"Bracknell Forest Council","http://opendatacommunities.org/id/unitary-authority/bracknell-forest","Bracknell Forest Council","00MA","Sandy Lane Primary School","Delegated Primary School Budgets","","Electricity",18/02/2015 00:00:00,"30261239",1060.64,"BRITISH GAS TRADING - DD ONLY"
"Bracknell Forest Council","http://opendatacommunities.org/id/unitary-authority/bracknell-forest","Bracknell Forest Council","00MA","Kennel Lane","Delegated Special and Alternative Provision Budgets","","Electricity",18/02/2015 00:00:00,"30261239",1498.69,"BRITISH GAS TRADING - DD ONLY"
"Bracknell Forest Council","http://opendatacommunities.org/id/unitary-authority/bracknell-forest","Bracknell Forest Council","00MA","Lighting","Street Lighting","","Electricity",18/02/2015 00:00:00,"30261239",175.69,"BRITISH GAS TRADING - DD ONLY"
"Bracknell Forest Council","http://opendatacommunities.org/id/unitary-authority/bracknell-forest","Bracknell Forest Council","00MA","Lighting","Street Lighting","","Electricity",18/02/2015 00:00:00,"30261239",190.19,"BRITISH GAS TRADING - DD ONLY"
"Bracknell Forest Council","http://opendatacommunities.org/id/unitary-authority/bracknell-forest","Bracknell Forest Council","00MA","Leisure DSO - Downshire Catering","Golf Courses","","Cost of Goods Sold",19/05/2015 00:00:00,"30268663",72.64,"3663"
"Bracknell Forest Council","http://opendatacommunities.org/id/unitary-authority/bracknell-forest","Bracknell Forest Council","00MA","Leisure DSO - Downshire Catering","Golf Courses","","Cost of Goods Sold",19/05/2015 00:00:00,"30268663",21.88,"CHRISTMAS BARKERY LTD"
"Bracknell Forest Council","http://opendatacommunities.org/id/unitary-authority/bracknell-forest","Bracknell Forest Council","00MA","Leisure DSO - Downshire Catering","Golf Courses","","Cost of Goods Sold",19/05/2015 00:00:00,"30268663",37.81,"CHRISTMAS BARKERY LTD"
"Bracknell Forest Council","http://opendatacommunities.org/id/unitary-authority/bracknell-forest","Bracknell Forest Council","00MA","Leisure DSO - Downshire Catering","Golf Courses","","Cost of Goods Sold",19/05/2015 00:00:00,"30268663",13.1,"CHRISTMAS BARKERY LTD"
"Bracknell Forest Council","http://opendatacommunities.org/id/unitary-authority/bracknell-forest","Bracknell Forest Council","00MA","Leisure DSO - Downshire Catering","Golf Courses","","Cost of Goods Sold",19/05/2015 00:00:00,"30268663",7.94,"CHRISTMAS BARKERY LTD"
"Bracknell Forest Council","http://opendatacommunities.org/id/unitary-authority/bracknell-forest","Bracknell Forest Council","00MA","Leisure DSO - Downshire Catering","Golf Courses","","Cost of Goods Sold",12/05/2015 00:00:00,"30268663",46.5,"J&S MEATS (ASCOT)"
"Bracknell Forest Council","http://opendatacommunities.org/id/unitary-authority/bracknell-forest","Bracknell Forest Council","00MA","Leisure DSO - Downshire Catering","Golf Courses","","Cost of Goods Sold",13/05/2015 00:00:00,"30268663",115.45,"J&S MEATS (ASCOT)"
"Bracknell Forest Council","http://opendatacommunities.org/id/unitary-authority/bracknell-forest","Bracknell Forest Council","00MA","Easthampstead Park Centre - Catering","Premises Development","","Cost of Goods Sold",19/05/2015 00:00:00,"30268663",299.6,"3663"
"Bracknell Forest Council","http://opendatacommunities.org/id/unitary-authority/bracknell-forest","Bracknell Forest Council","00MA","Easthampstead Park Centre - Catering","Premises Development","","Cost of Goods Sold",19/05/2015 00:00:00,"30268663",219.34,"3663"
"Bracknell Forest Council","http://opendatacommunities.org/id/unitary-authority/bracknell-forest","Bracknell Forest Council","00MA","Easthampstead Park Centre - Catering","Premises Development","","Cost of Goods Sold",19/05/2015 00:00:00,"30268663",413.2,"3663"
"Bracknell Forest Council","http://opendatacommunities.org/id/unitary-authority/bracknell-forest","Bracknell Forest Council","00MA","Easthampstead Park Centre - Catering","Premises Development","","Cost of Goods Sold",19/05/2015 00:00:00,"30268663",24.17,"3663"
"Bracknell Forest Council","http://opendatacommunities.org/id/unitary-authority/bracknell-forest","Bracknell Forest Council","00MA","Easthampstead Park Centre - Catering","Premises Development","","Cleaning materials",06/05/2015 00:00:00,"30268663",806.07,"ALLIANCE DISPOSABLES LTD"
"Bracknell Forest Council","http://opendatacommunities.org/id/unitary-authority/bracknell-forest","Bracknell Forest Council","00MA","Easthampstead Park Centre - Catering","Premises Development","","Cleaning materials",11/05/2015 00:00:00,"30268663",37.23,"ALLIANCE DISPOSABLES LTD"
"Bracknell Forest Council","http://opendatacommunities.org/id/unitary-authority/bracknell-forest","Bracknell Forest Council","00MA","Easthampstead Park Centre - Catering","Premises Development","","Cleaning materials",13/05/2015 00:00:00,"30268663",89.91,"ALLIANCE DISPOSABLES LTD"
"Bracknell Forest Council","http://opendatacommunities.org/id/unitary-authority/bracknell-forest","Bracknell Forest Council","00MA","Heathlands EPH","Internal Services","","Cost of Goods Sold",08/05/2015 00:00:00,"30268663",68.74,"THE QUALITY MEAT"
"Bracknell Forest Council","http://opendatacommunities.org/id/unitary-authority/bracknell-forest","Bracknell Forest Council","00MA","Easthampstead Park Centre - Catering","Premises Development","","Cost of Goods Sold",08/05/2015 00:00:00,"30268663",428.64,"THE QUALITY MEAT"
"Bracknell Forest Council","http://opendatacommunities.org/id/unitary-authority/bracknell-forest","Bracknell Forest Council","00MA","Easthampstead Park Centre - Catering","Premises Development","","Cost of Goods Sold",08/05/2015 00:00:00,"30268663",63.12,"THE QUALITY MEAT"
"Bracknell Forest Council","http://opendatacommunities.org/id/unitary-authority/bracknell-forest","Bracknell Forest Council","00MA","Ascot Heath - Junior","Delegated Primary School Budgets","","Electricity",18/02/2015 00:00:00,"30261239",1216.38,"BRITISH GAS TRADING - DD ONLY"
"Bracknell Forest Council","http://opendatacommunities.org/id/unitary-authority/bracknell-forest","Bracknell Forest Council","00MA","Ascot Heath - Junior","Delegated Primary School Budgets","","Electricity",18/02/2015 00:00:00,"30261239",1.22,"BRITISH GAS TRADING - DD ONLY"
"Bracknell Forest Council","http://opendatacommunities.org/id/unitary-authority/bracknell-forest","Bracknell Forest Council","00MA","Ascot Heath - Junior","Delegated Primary School Budgets","","Electricity",18/02/2015 00:00:00,"30261239",43.27,"BRITISH GAS TRADING - DD ONLY"
"Bracknell Forest Council","http://opendatacommunities.org/id/unitary-authority/bracknell-forest","Bracknell Forest Council","00MA","Ascot Heath - Junior","Delegated Primary School Budgets","","Electricity",18/02/2015 00:00:00,"30261239",-399.81,"BRITISH GAS TRADING - DD ONLY"
"Bracknell Forest Council","http://opendatacommunities.org/id/unitary-authority/bracknell-forest","Bracknell Forest Council","00MA","Ascot Heath - Junior","Delegated Primary School Budgets","","Electricity",18/02/2015 00:00:00,"30261239",16.74,"BRITISH GAS TRADING - DD ONLY"
"Bracknell Forest Council","http://opendatacommunities.org/id/unitary-authority/bracknell-forest","Bracknell Forest Council","00MA","St Michael�s (Sandhurst) - Primary","Delegated Primary School Budgets","","Electricity",18/02/2015 00:00:00,"30261239",165.39,"BRITISH GAS TRADING - DD ONLY"
"Bracknell Forest Council","http://opendatacommunities.org/id/unitary-authority/bracknell-forest","Bracknell Forest Council","00MA","St Michael�s (Sandhurst) - Primary","Delegated Primary School Budgets","","Electricity",18/02/2015 00:00:00,"30261239",445.72,"BRITISH GAS TRADING - DD ONLY"
"Bracknell Forest Council","http://opendatacommunities.org/id/unitary-authority/bracknell-forest","Bracknell Forest Council","00MA","Leisure DSO - Downshire Golf Course","Golf Courses","","Electricity",18/02/2015 00:00:00,"30261239",239.36,"BRITISH GAS TRADING - DD ONLY"
"Bracknell Forest Council","http://opendatacommunities.org/id/unitary-authority/bracknell-forest","Bracknell Forest Council","00MA","Lighting","Street Lighting","","Electricity",18/02/2015 00:00:00,"30261239",-42,"BRITISH GAS TRADING - DD ONLY"
"Bracknell Forest Council","http://opendatacommunities.org/id/unitary-authority/bracknell-forest","Bracknell Forest Council","00MA","Lighting","Street Lighting","","Electricity",18/02/2015 00:00:00,"30261239",19.84,"BRITISH GAS TRADING - DD ONLY"
"Bracknell Forest Council","http://opendatacommunities.org/id/unitary-authority/bracknell-forest","Bracknell Forest Council","00MA","Lighting","Street Lighting","","Electricity",18/02/2015 00:00:00,"30261239",25.62,"BRITISH GAS TRADING - DD ONLY"
"Bracknell Forest Council","http://opendatacommunities.org/id/unitary-authority/bracknell-forest","Bracknell Forest Council","00MA","Lighting","Street Lighting","","Electricity",18/02/2015 00:00:00,"30261239",-42,"BRITISH GAS TRADING - DD ONLY"
"Bracknell Forest Council","http://opendatacommunities.org/id/unitary-authority/bracknell-forest","Bracknell Forest Council","00MA","Lighting","Street Lighting","","Electricity",18/02/2015 00:00:00,"30261239",39.29,"BRITISH GAS TRADING - DD ONLY"
"Bracknell Forest Council","http://opendatacommunities.org/id/unitary-authority/bracknell-forest","Bracknell Forest Council","00MA","Wildmoor Heath School","Delegated Primary School Budgets","","Electricity",18/02/2015 00:00:00,"30261239",413.25,"BRITISH GAS TRADING - DD ONLY"
"Bracknell Forest Council","http://opendatacommunities.org/id/unitary-authority/bracknell-forest","Bracknell Forest Council","00MA","Depot Facilities","Construction and Property","","Electricity",18/02/2015 00:00:00,"30261239",1093.28,"BRITISH GAS TRADING - DD ONLY"
"Bracknell Forest Council","http://opendatacommunities.org/id/unitary-authority/bracknell-forest","Bracknell Forest Council","00MA","Depot Facilities","Construction and Property","","Electricity",18/02/2015 00:00:00,"30261239",1044.96,"BRITISH GAS TRADING - DD ONLY"
"Bracknell Forest Council","http://opendatacommunities.org/id/unitary-authority/bracknell-forest","Bracknell Forest Council","00MA","Kennel Lane","Delegated Special and Alternative Provision Budgets","","Electricity",18/02/2015 00:00:00,"30261239",840.08,"BRITISH GAS TRADING - DD ONLY"
"Bracknell Forest Council","http://opendatacommunities.org/id/unitary-authority/bracknell-forest","Bracknell Forest Council","00MA","Lighting","Street Lighting","","Electricity",18/02/2015 00:00:00,"30261239",-42,"BRITISH GAS TRADING - DD ONLY"
"Bracknell Forest Council","http://opendatacommunities.org/id/unitary-authority/bracknell-forest","Bracknell Forest Council","00MA","Lighting","Street Lighting","","Electricity",18/02/2015 00:00:00,"30261239",13.06,"BRITISH GAS TRADING - DD ONLY"
"Bracknell Forest Council","http://opendatacommunities.org/id/unitary-authority/bracknell-forest","Bracknell Forest Council","00MA","Lighting","Street Lighting","","Electricity",18/02/2015 00:00:00,"30261239",-42,"BRITISH GAS TRADING - DD ONLY"
"Bracknell Forest Council","http://opendatacommunities.org/id/unitary-authority/bracknell-forest","Bracknell Forest Council","00MA","Lighting","Street Lighting","","Electricity",18/02/2015 00:00:00,"30261239",423.06,"BRITISH GAS TRADING - DD ONLY"
"Bracknell Forest Council","http://opendatacommunities.org/id/unitary-authority/bracknell-forest","Bracknell Forest Council","00MA","Lighting","Street Lighting","","Electricity",18/02/2015 00:00:00,"30261239",31.31,"BRITISH GAS TRADING - DD ONLY"
"Bracknell Forest Council","http://opendatacommunities.org/id/unitary-authority/bracknell-forest","Bracknell Forest Council","00MA","Lighting","Street Lighting","","Electricity",18/02/2015 00:00:00,"30261239",-42,"BRITISH GAS TRADING - DD ONLY"
"Bracknell Forest Council","http://opendatacommunities.org/id/unitary-authority/bracknell-forest","Bracknell Forest Council","00MA","Lighting","Street Lighting","","Electricity",18/02/2015 00:00:00,"30261239",180.42,"BRITISH GAS TRADING - DD ONLY"
"Bracknell Forest Council","http://opendatacommunities.org/id/unitary-authority/bracknell-forest","Bracknell Forest Council","00MA","Great Hollands Library","Branch Libraries","","Electricity",18/02/2015 00:00:00,"30261239",73.9,"BRITISH GAS TRADING - DD ONLY"
"Bracknell Forest Council","http://opendatacommunities.org/id/unitary-authority/bracknell-forest","Bracknell Forest Council","00MA","Great Hollands Library","Branch Libraries","","Electricity",18/02/2015 00:00:00,"30261239",-42,"BRITISH GAS TRADING - DD ONLY"
"Bracknell Forest Council","http://opendatacommunities.org/id/unitary-authority/bracknell-forest","Bracknell Forest Council","00MA","Jennets Park Primary School","Delegated Primary School Budgets","","Electricity",18/02/2015 00:00:00,"30261239",485.12,"BRITISH GAS TRADING - DD ONLY"
"Bracknell Forest Council","http://opendatacommunities.org/id/unitary-authority/bracknell-forest","Bracknell Forest Council","00MA","Bridgewell Unit","Short Term Support Other","","Electricity",18/02/2015 00:00:00,"30261239",733.84,"BRITISH GAS TRADING - DD ONLY"
"Bracknell Forest Council","http://opendatacommunities.org/id/unitary-authority/bracknell-forest","Bracknell Forest Council","00MA","The Look Out","Heritage Museums & Galleries","","Electricity",18/02/2015 00:00:00,"30261239",-42,"BRITISH GAS TRADING - DD ONLY"
"Bracknell Forest Council","http://opendatacommunities.org/id/unitary-authority/bracknell-forest","Bracknell Forest Council","00MA","The Look Out","Heritage Museums & Galleries","","Electricity",18/02/2015 00:00:00,"30261239",1784.49,"BRITISH GAS TRADING - DD ONLY"
"Bracknell Forest Council","http://opendatacommunities.org/id/unitary-authority/bracknell-forest","Bracknell Forest Council","00MA","Sandhurst - Secondary","Delegated Secondary Schools Budgets","","Electricity",18/02/2015 00:00:00,"30261239",489.15,"BRITISH GAS TRADING - DD ONLY"
"Bracknell Forest Council","http://opendatacommunities.org/id/unitary-authority/bracknell-forest","Bracknell Forest Council","00MA","Whitegrove Library","Branch Libraries","","Electricity",18/02/2015 00:00:00,"30261239",244.3,"BRITISH GAS TRADING - DD ONLY"
"Bracknell Forest Council","http://opendatacommunities.org/id/unitary-authority/bracknell-forest","Bracknell Forest Council","00MA","Birch Hill Library","Branch Libraries","","Electricity",18/02/2015 00:00:00,"30261239",89.19,"BRITISH GAS TRADING - DD ONLY"
"Bracknell Forest Council","http://opendatacommunities.org/id/unitary-authority/bracknell-forest","Bracknell Forest Council","00MA","Birch Hill Library","Branch Libraries","","Electricity",18/02/2015 00:00:00,"30261239",-42,"BRITISH GAS TRADING - DD ONLY"
"Bracknell Forest Council","http://opendatacommunities.org/id/unitary-authority/bracknell-forest","Bracknell Forest Council","00MA","College Town - Infant & Nursery","Delegated Primary School Budgets","","Electricity",18/02/2015 00:00:00,"30261239",506.5,"BRITISH GAS TRADING - DD ONLY"
"Bracknell Forest Council","http://opendatacommunities.org/id/unitary-authority/bracknell-forest","Bracknell Forest Council","00MA","College Town - Infant & Nursery","Delegated Primary School Budgets","","Electricity",18/02/2015 00:00:00,"30261239",163.81,"BRITISH GAS TRADING - DD ONLY"
"Bracknell Forest Council","http://opendatacommunities.org/id/unitary-authority/bracknell-forest","Bracknell Forest Council","00MA","Cranbourne - Primary","Delegated Primary School Budgets","","Electricity",18/02/2015 00:00:00,"30261239",481.69,"BRITISH GAS TRADING - DD ONLY"
"Bracknell Forest Council","http://opendatacommunities.org/id/unitary-authority/bracknell-forest","Bracknell Forest Council","00MA","Town Centre Fountains","Community Parks & Open Spaces","","Electricity",18/02/2015 00:00:00,"30261239",66.19,"BRITISH GAS TRADING - DD ONLY"
"Bracknell Forest Council","http://opendatacommunities.org/id/unitary-authority/bracknell-forest","Bracknell Forest Council","00MA","Town Centre Fountains","Community Parks & Open Spaces","","Electricity",18/02/2015 00:00:00,"30261239",-42,"BRITISH GAS TRADING - DD ONLY"
"Bracknell Forest Council","http://opendatacommunities.org/id/unitary-authority/bracknell-forest","Bracknell Forest Council","00MA","Town Centre Fountains","Community Parks & Open Spaces","","Electricity",18/02/2015 00:00:00,"30261239",145.87,"BRITISH GAS TRADING - DD ONLY"
"Bracknell Forest Council","http://opendatacommunities.org/id/unitary-authority/bracknell-forest","Bracknell Forest Council","00MA","Great Hollands Library","Branch Libraries","","Electricity",18/02/2015 00:00:00,"30261239",55,"BRITISH GAS TRADING - DD ONLY"
"Bracknell Forest Council","http://opendatacommunities.org/id/unitary-authority/bracknell-forest","Bracknell Forest Council","00MA","Great Hollands Library","Branch Libraries","","Electricity",18/02/2015 00:00:00,"30261239",-42,"BRITISH GAS TRADING - DD ONLY"
"Bracknell Forest Council","http://opendatacommunities.org/id/unitary-authority/bracknell-forest","Bracknell Forest Council","00MA","Great Hollands Library","Branch Libraries","","Electricity",18/02/2015 00:00:00,"30261239",14.96,"BRITISH GAS TRADING - DD ONLY"
"Bracknell Forest Council","http://opendatacommunities.org/id/unitary-authority/bracknell-forest","Bracknell Forest Council","00MA","Great Hollands Library","Branch Libraries","","Electricity",18/02/2015 00:00:00,"30261239",17.72,"BRITISH GAS TRADING - DD ONLY"
"Bracknell Forest Council","http://opendatacommunities.org/id/unitary-authority/bracknell-forest","Bracknell Forest Council","00MA","Cranbourne - Primary","Delegated Primary School Budgets","","Electricity",18/02/2015 00:00:00,"30261239",138.71,"BRITISH GAS TRADING - DD ONLY"
"Bracknell Forest Council","http://opendatacommunities.org/id/unitary-authority/bracknell-forest","Bracknell Forest Council","00MA","Cranbourne - Primary","Delegated Primary School Budgets","","Electricity",18/02/2015 00:00:00,"30261239",-42,"BRITISH GAS TRADING - DD ONLY"
"Bracknell Forest Council","http://opendatacommunities.org/id/unitary-authority/bracknell-forest","Bracknell Forest Council","00MA","Harmans Water - Primary","Delegated Primary School Budgets","","Electricity",18/02/2015 00:00:00,"30261239",75.45,"BRITISH GAS TRADING - DD ONLY"
"Bracknell Forest Council","http://opendatacommunities.org/id/unitary-authority/bracknell-forest","Bracknell Forest Council","00MA","Harmans Water - Primary","Delegated Primary School Budgets","","Electricity",18/02/2015 00:00:00,"30261239",1297.08,"BRITISH GAS TRADING - DD ONLY"
"Bracknell Forest Council","http://opendatacommunities.org/id/unitary-authority/bracknell-forest","Bracknell Forest Council","00MA","New Scotland Hill - Primary","Delegated Primary School Budgets","","Electricity",18/02/2015 00:00:00,"30261239",687.32,"BRITISH GAS TRADING - DD ONLY"
"Bracknell Forest Council","http://opendatacommunities.org/id/unitary-authority/bracknell-forest","Bracknell Forest Council","00MA","New Scotland Hill - Primary","Delegated Primary School Budgets","","Electricity",18/02/2015 00:00:00,"30261239",0.72,"BRITISH GAS TRADING - DD ONLY"
"Bracknell Forest Council","http://opendatacommunities.org/id/unitary-authority/bracknell-forest","Bracknell Forest Council","00MA","Sandhurst - Secondary","Delegated Secondary Schools Budgets","","Electricity",18/02/2015 00:00:00,"30261239",164.86,"BRITISH GAS TRADING - DD ONLY"
"Bracknell Forest Council","http://opendatacommunities.org/id/unitary-authority/bracknell-forest","Bracknell Forest Council","00MA","St Margaret Clitherow - Catholic Primary","Delegated Primary School Budgets","","Electricity",18/02/2015 00:00:00,"30261239",519.61,"BRITISH GAS TRADING - DD ONLY"
"Bracknell Forest Council","http://opendatacommunities.org/id/unitary-authority/bracknell-forest","Bracknell Forest Council","00MA","Winkfield St Mary�s - Primary","Delegated Primary School Budgets","","Electricity",18/02/2015 00:00:00,"30261239",314.74,"BRITISH GAS TRADING - DD ONLY"
"Bracknell Forest Council","http://opendatacommunities.org/id/unitary-authority/bracknell-forest","Bracknell Forest Council","00MA","St Michael�s (Easthampstead) - Primary","Delegated Primary School Budgets","","Electricity",18/02/2015 00:00:00,"30261239",406.53,"BRITISH GAS TRADING - DD ONLY"
"Bracknell Forest Council","http://opendatacommunities.org/id/unitary-authority/bracknell-forest","Bracknell Forest Council","00MA","St Michael�s (Easthampstead) - Primary","Delegated Primary School Budgets","","Electricity",18/02/2015 00:00:00,"30261239",43.06,"BRITISH GAS TRADING - DD ONLY"
"Bracknell Forest Council","http://opendatacommunities.org/id/unitary-authority/bracknell-forest","Bracknell Forest Council","00MA","St Michael�s (Easthampstead) - Primary","Delegated Primary School Budgets","","Electricity",18/02/2015 00:00:00,"30261239",-9.05,"BRITISH GAS TRADING - DD ONLY"
"Bracknell Forest Council","http://opendatacommunities.org/id/unitary-authority/bracknell-forest","Bracknell Forest Council","00MA","Binfield CE - Primary","Delegated Primary School Budgets","","Electricity",18/02/2015 00:00:00,"30261239",1135.62,"BRITISH GAS TRADING - DD ONLY"
"Bracknell Forest Council","http://opendatacommunities.org/id/unitary-authority/bracknell-forest","Bracknell Forest Council","00MA","Birch Hill - Primary","Delegated Primary School Budgets","","Electricity",18/02/2015 00:00:00,"30261239",2439.28,"BRITISH GAS TRADING - DD ONLY"
"Bracknell Forest Council","http://opendatacommunities.org/id/unitary-authority/bracknell-forest","Bracknell Forest Council","00MA","Golf Course Management & Administration","Golf Courses","","Electricity",18/02/2015 00:00:00,"30261239",2371.25,"BRITISH GAS TRADING - DD ONLY"
"Bracknell Forest Council","http://opendatacommunities.org/id/unitary-authority/bracknell-forest","Bracknell Forest Council","00MA","Easthampstead Park Cemetery & Crematorium","Cemeteries & Crematorium","","Electricity",18/02/2015 00:00:00,"30261239",31.45,"BRITISH GAS TRADING - DD ONLY"
"Bracknell Forest Council","http://opendatacommunities.org/id/unitary-authority/bracknell-forest","Bracknell Forest Council","00MA","Larchwood Running Costs","Short breaks for LAC","","Electricity",18/02/2015 00:00:00,"30261239",278.19,"BRITISH GAS TRADING - DD ONLY"
"Bracknell Forest Council","http://opendatacommunities.org/id/unitary-authority/bracknell-forest","Bracknell Forest Council","00MA","Edgbarrow - Secondary","Delegated Secondary Schools Budgets","","Electricity",18/02/2015 00:00:00,"30261239",119.01,"BRITISH GAS TRADING - DD ONLY"
"Bracknell Forest Council","http://opendatacommunities.org/id/unitary-authority/bracknell-forest","Bracknell Forest Council","00MA","Edgbarrow - Secondary","Delegated Secondary Schools Budgets","","Electricity",18/02/2015 00:00:00,"30261239",904.73,"BRITISH GAS TRADING - DD ONLY"
"Bracknell Forest Council","http://opendatacommunities.org/id/unitary-authority/bracknell-forest","Bracknell Forest Council","00MA","Great Hollands Library","Branch Libraries","","Electricity",18/02/2015 00:00:00,"30261239",28.11,"BRITISH GAS TRADING - DD ONLY"
"Bracknell Forest Council","http://opendatacommunities.org/id/unitary-authority/bracknell-forest","Bracknell Forest Council","00MA","Great Hollands Library","Branch Libraries","","Electricity",18/02/2015 00:00:00,"30261239",32.31,"BRITISH GAS TRADING - DD ONLY"
"Bracknell Forest Council","http://opendatacommunities.org/id/unitary-authority/bracknell-forest","Bracknell Forest Council","00MA","Great Hollands Library","Branch Libraries","","Electricity",18/02/2015 00:00:00,"30261239",-57.18,"BRITISH GAS TRADING - DD ONLY"
"Bracknell Forest Council","http://opendatacommunities.org/id/unitary-authority/bracknell-forest","Bracknell Forest Council","00MA","Great Hollands Library","Branch Libraries","","Electricity",18/02/2015 00:00:00,"30261239",-42,"BRITISH GAS TRADING - DD ONLY"
"Bracknell Forest Council","http://opendatacommunities.org/id/unitary-authority/bracknell-forest","Bracknell Forest Council","00MA","Crown Wood - Primary","Delegated Primary School Budgets","","Electricity",18/02/2015 00:00:00,"30261239",1121.51,"BRITISH GAS TRADING - DD ONLY"
"Bracknell Forest Council","http://opendatacommunities.org/id/unitary-authority/bracknell-forest","Bracknell Forest Council","00MA","Crowthorne - Primary","Delegated Primary School Budgets","","Electricity",18/02/2015 00:00:00,"30261239",456.35,"BRITISH GAS TRADING - DD ONLY"
"Bracknell Forest Council","http://opendatacommunities.org/id/unitary-authority/bracknell-forest","Bracknell Forest Council","00MA","Crowthorne - Primary","Delegated Primary School Budgets","","Electricity",18/02/2015 00:00:00,"30261239",12.12,"BRITISH GAS TRADING - DD ONLY"
"Bracknell Forest Council","http://opendatacommunities.org/id/unitary-authority/bracknell-forest","Bracknell Forest Council","00MA","Crowthorne - Primary","Delegated Primary School Budgets","","Electricity",18/02/2015 00:00:00,"30261239",-42,"BRITISH GAS TRADING - DD ONLY"
"Bracknell Forest Council","http://opendatacommunities.org/id/unitary-authority/bracknell-forest","Bracknell Forest Council","00MA","Edgbarrow - Secondary","Delegated Secondary Schools Budgets","","Electricity",18/02/2015 00:00:00,"30261239",171.67,"BRITISH GAS TRADING - DD ONLY"
"Bracknell Forest Council","http://opendatacommunities.org/id/unitary-authority/bracknell-forest","Bracknell Forest Council","00MA","Edgbarrow - Secondary","Delegated Secondary Schools Budgets","","Electricity",18/02/2015 00:00:00,"30261239",178.73,"BRITISH GAS TRADING - DD ONLY"
"Bracknell Forest Council","http://opendatacommunities.org/id/unitary-authority/bracknell-forest","Bracknell Forest Council","00MA","Great Hollands Library","Branch Libraries","","Electricity",18/02/2015 00:00:00,"30261239",29.5,"BRITISH GAS TRADING - DD ONLY"
"Bracknell Forest Council","http://opendatacommunities.org/id/unitary-authority/bracknell-forest","Bracknell Forest Council","00MA","Great Hollands Library","Branch Libraries","","Electricity",18/02/2015 00:00:00,"30261239",29.49,"BRITISH GAS TRADING - DD ONLY"
"Bracknell Forest Council","http://opendatacommunities.org/id/unitary-authority/bracknell-forest","Bracknell Forest Council","00MA","Bracknell Market","Bracknell Market","","Electricity",18/02/2015 00:00:00,"30261239",443.98,"BRITISH GAS TRADING - DD ONLY"
"Bracknell Forest Council","http://opendatacommunities.org/id/unitary-authority/bracknell-forest","Bracknell Forest Council","00MA","Bus/Rail Interchange","Co-Ordination","","Electricity",18/02/2015 00:00:00,"30261239",449.88,"BRITISH GAS TRADING - DD ONLY"
"Bracknell Forest Council","http://opendatacommunities.org/id/unitary-authority/bracknell-forest","Bracknell Forest Council","00MA","Binfield Library","Branch Libraries","","Electricity",18/02/2015 00:00:00,"30261239",149.09,"BRITISH GAS TRADING - DD ONLY"
"Bracknell Forest Council","http://opendatacommunities.org/id/unitary-authority/bracknell-forest","Bracknell Forest Council","00MA","Uplands - Primary","Delegated Primary School Budgets","","Electricity",18/02/2015 00:00:00,"30261239",80.58,"BRITISH GAS TRADING - DD ONLY"
"Bracknell Forest Council","http://opendatacommunities.org/id/unitary-authority/bracknell-forest","Bracknell Forest Council","00MA","Uplands - Primary","Delegated Primary School Budgets","","Electricity",18/02/2015 00:00:00,"30261239",-42,"BRITISH GAS TRADING - DD ONLY"
"Bracknell Forest Council","http://opendatacommunities.org/id/unitary-authority/bracknell-forest","Bracknell Forest Council","00MA","Uplands - Primary","Delegated Primary School Budgets","","Electricity",18/02/2015 00:00:00,"30261239",221.27,"BRITISH GAS TRADING - DD ONLY"
"Bracknell Forest Council","http://opendatacommunities.org/id/unitary-authority/bracknell-forest","Bracknell Forest Council","00MA","Uplands - Primary","Delegated Primary School Budgets","","Electricity",18/02/2015 00:00:00,"30261239",221.18,"BRITISH GAS TRADING - DD ONLY"
"Bracknell Forest Council","http://opendatacommunities.org/id/unitary-authority/bracknell-forest","Bracknell Forest Council","00MA","Warfield CE - Primary","Delegated Primary School Budgets","","Electricity",18/02/2015 00:00:00,"30261239",640.21,"BRITISH GAS TRADING - DD ONLY"
"Bracknell Forest Council","http://opendatacommunities.org/id/unitary-authority/bracknell-forest","Bracknell Forest Council","00MA","Forest Park - Service Charges","Premises Development","","Electricity",18/02/2015 00:00:00,"30261239",-42,"BRITISH GAS TRADING - DD ONLY"
"Bracknell Forest Council","http://opendatacommunities.org/id/unitary-authority/bracknell-forest","Bracknell Forest Council","00MA","Liscombe - Service Charges","Premises Development","","Electricity",18/02/2015 00:00:00,"30261239",261.26,"BRITISH GAS TRADING - DD ONLY"
"Bracknell Forest Council","http://opendatacommunities.org/id/unitary-authority/bracknell-forest","Bracknell Forest Council","00MA","The Look Out","Heritage Museums & Galleries","","Electricity",18/02/2015 00:00:00,"30261239",38.43,"BRITISH GAS TRADING - DD ONLY"
"Bracknell Forest Council","http://opendatacommunities.org/id/unitary-authority/bracknell-forest","Bracknell Forest Council","00MA","Portman Close Running Costs","Universal services for young people","","Electricity",18/02/2015 00:00:00,"30261239",246.51,"BRITISH GAS TRADING - DD ONLY"
"Bracknell Forest Council","http://opendatacommunities.org/id/unitary-authority/bracknell-forest","Bracknell Forest Council","00MA","Christmas Lights and Decorations","Street Lighting","","Electricity",18/02/2015 00:00:00,"30261239",45.19,"BRITISH GAS TRADING - DD ONLY"
"Bracknell Forest Council","http://opendatacommunities.org/id/unitary-authority/bracknell-forest","Bracknell Forest Council","00MA","Christmas Lights and Decorations","Street Lighting","","Electricity",18/02/2015 00:00:00,"30261239",-42,"BRITISH GAS TRADING - DD ONLY"
"Bracknell Forest Council","http://opendatacommunities.org/id/unitary-authority/bracknell-forest","Bracknell Forest Council","00MA","Christmas Lights and Decorations","Street Lighting","","Electricity",18/02/2015 00:00:00,"30261239",15.43,"BRITISH GAS TRADING - DD ONLY"
"Bracknell Forest Council","http://opendatacommunities.org/id/unitary-authority/bracknell-forest","Bracknell Forest Council","00MA","Christmas Lights and Decorations","Street Lighting","","Electricity",18/02/2015 00:00:00,"30261239",24.83,"BRITISH GAS TRADING - DD ONLY"
"Bracknell Forest Council","http://opendatacommunities.org/id/unitary-authority/bracknell-forest","Bracknell Forest Council","00MA","Christmas Lights and Decorations","Street Lighting","","Electricity",18/02/2015 00:00:00,"30261239",-42,"BRITISH GAS TRADING - DD ONLY"
"Bracknell Forest Council","http://opendatacommunities.org/id/unitary-authority/bracknell-forest","Bracknell Forest Council","00MA","Easthampstead Park Cemetery & Crematorium","Cemeteries & Crematorium","","Electricity",18/02/2015 00:00:00,"30261239",-42,"BRITISH GAS TRADING - DD ONLY"
"Bracknell Forest Council","http://opendatacommunities.org/id/unitary-authority/bracknell-forest","Bracknell Forest Council","00MA","Christmas Lights and Decorations","Street Lighting","","Electricity",18/02/2015 00:00:00,"30261239",13.88,"BRITISH GAS TRADING - DD ONLY"
"Bracknell Forest Council","http://opendatacommunities.org/id/unitary-authority/bracknell-forest","Bracknell Forest Council","00MA","Christmas Lights and Decorations","Street Lighting","","Electricity",18/02/2015 00:00:00,"30261239",-42,"BRITISH GAS TRADING - DD ONLY"
"Bracknell Forest Council","http://opendatacommunities.org/id/unitary-authority/bracknell-forest","Bracknell Forest Council","00MA","Christmas Lights and Decorations","Street Lighting","","Electricity",18/02/2015 00:00:00,"30261239",16.17,"BRITISH GAS TRADING - DD ONLY"
"Bracknell Forest Council","http://opendatacommunities.org/id/unitary-authority/bracknell-forest","Bracknell Forest Council","00MA","Christmas Lights and Decorations","Street Lighting","","Electricity",18/02/2015 00:00:00,"30261239",-42,"BRITISH GAS TRADING - DD ONLY"
"Bracknell Forest Council","http://opendatacommunities.org/id/unitary-authority/bracknell-forest","Bracknell Forest Council","00MA","Preliminaries - Other Roads","Winter Maintenance","","Electricity",18/02/2015 00:00:00,"30261239",303.89,"BRITISH GAS TRADING - DD ONLY"
"Bracknell Forest Council","http://opendatacommunities.org/id/unitary-authority/bracknell-forest","Bracknell Forest Council","00MA","Town Centre Fountains","Community Parks & Open Spaces","","Electricity",18/02/2015 00:00:00,"30261239",72.64,"BRITISH GAS TRADING - DD ONLY"
"Bracknell Forest Council","http://opendatacommunities.org/id/unitary-authority/bracknell-forest","Bracknell Forest Council","00MA","Town Centre Fountains","Community Parks & Open Spaces","","Electricity",18/02/2015 00:00:00,"30261239",-42,"BRITISH GAS TRADING - DD ONLY"
"Bracknell Forest Council","http://opendatacommunities.org/id/unitary-authority/bracknell-forest","Bracknell Forest Council","00MA","Ascot Library","Branch Libraries","","Electricity",18/02/2015 00:00:00,"30261239",75.68,"BRITISH GAS TRADING - DD ONLY"
"Bracknell Forest Council","http://opendatacommunities.org/id/unitary-authority/bracknell-forest","Bracknell Forest Council","00MA","Ascot Library","Branch Libraries","","Electricity",18/02/2015 00:00:00,"30261239",-42,"BRITISH GAS TRADING - DD ONLY"
"Bracknell Forest Council","http://opendatacommunities.org/id/unitary-authority/bracknell-forest","Bracknell Forest Council","00MA","Open Learning Centre - Brakenhale","Adult and Community Learning","","Electricity",18/02/2015 00:00:00,"30261239",775.72,"BRITISH GAS TRADING - DD ONLY"
"Bracknell Forest Council","http://opendatacommunities.org/id/unitary-authority/bracknell-forest","Bracknell Forest Council","00MA","Longshot Lane  - Service Charges","Premises Development","","Electricity",18/02/2015 00:00:00,"30261239",17.53,"BRITISH GAS TRADING - DD ONLY"
"Bracknell Forest Council","http://opendatacommunities.org/id/unitary-authority/bracknell-forest","Bracknell Forest Council","00MA","New Scotland Hill - Primary","Delegated Primary School Budgets","","Electricity",18/02/2015 00:00:00,"30261239",-42,"BRITISH GAS TRADING - DD ONLY"
"Bracknell Forest Council","http://opendatacommunities.org/id/unitary-authority/bracknell-forest","Bracknell Forest Council","00MA","New Scotland Hill - Primary","Delegated Primary School Budgets","","Electricity",18/02/2015 00:00:00,"30261239",19.16,"BRITISH GAS TRADING - DD ONLY"
"Bracknell Forest Council","http://opendatacommunities.org/id/unitary-authority/bracknell-forest","Bracknell Forest Council","00MA","St Margaret Clitherow - Catholic Primary","Delegated Primary School Budgets","","Electricity",18/02/2015 00:00:00,"30261239",-29.71,"BRITISH GAS TRADING - DD ONLY"
"Bracknell Forest Council","http://opendatacommunities.org/id/unitary-authority/bracknell-forest","Bracknell Forest Council","00MA","Longshot Lane  - Service Charges","Premises Development","","Electricity",18/02/2015 00:00:00,"30261239",-42,"BRITISH GAS TRADING - DD ONLY"
"Bracknell Forest Council","http://opendatacommunities.org/id/unitary-authority/bracknell-forest","Bracknell Forest Council","00MA","Forest Park - Service Charges","Premises Development","","Electricity",18/02/2015 00:00:00,"30261239",16.14,"BRITISH GAS TRADING - DD ONLY"
"Bracknell Forest Council","http://opendatacommunities.org/id/unitary-authority/bracknell-forest","Bracknell Forest Council","00MA","College Hall PRU","Pupil Referral Units","","Electricity",18/02/2015 00:00:00,"30261239",481.06,"BRITISH GAS TRADING - DD ONLY"
"Bracknell Forest Council","http://opendatacommunities.org/id/unitary-authority/bracknell-forest","Bracknell Forest Council","00MA","The Rowans Children�s Centre","Children�s centres - direct","","Electricity",18/02/2015 00:00:00,"30261239",511.75,"BRITISH GAS TRADING - DD ONLY"
"Bracknell Forest Council","http://opendatacommunities.org/id/unitary-authority/bracknell-forest","Bracknell Forest Council","00MA","Great Hollands Primary School","Delegated Primary School Budgets","","Electricity",11/03/2015 00:00:00,"30263904",11.43,"BRITISH GAS TRADING - DD ONLY"
"Bracknell Forest Council","http://opendatacommunities.org/id/unitary-authority/bracknell-forest","Bracknell Forest Council","00MA","Great Hollands Primary School","Delegated Primary School Budgets","","Electricity",11/03/2015 00:00:00,"30263904",715.65,"BRITISH GAS TRADING - DD ONLY"
"Bracknell Forest Council","http://opendatacommunities.org/id/unitary-authority/bracknell-forest","Bracknell Forest Council","00MA","Great Hollands Primary School","Delegated Primary School Budgets","","Electricity",11/03/2015 00:00:00,"30263904",606.11,"BRITISH GAS TRADING - DD ONLY"
"Bracknell Forest Council","http://opendatacommunities.org/id/unitary-authority/bracknell-forest","Bracknell Forest Council","00MA","Great Hollands Primary School","Delegated Primary School Budgets","","Electricity",11/03/2015 00:00:00,"30263904",57.9,"BRITISH GAS TRADING - DD ONLY"
"Bracknell Forest Council","http://opendatacommunities.org/id/unitary-authority/bracknell-forest","Bracknell Forest Council","00MA","Urban Parks  - Maintenance","Community Parks & Open Spaces","","Electricity",11/03/2015 00:00:00,"30263904",150.14,"BRITISH GAS TRADING - DD ONLY"
"Bracknell Forest Council","http://opendatacommunities.org/id/unitary-authority/bracknell-forest","Bracknell Forest Council","00MA","The Willows Children�s Centre","Children�s centres - direct","","Electricity",11/03/2015 00:00:00,"30263904",140.51,"BRITISH GAS TRADING - DD ONLY"
"Bracknell Forest Council","http://opendatacommunities.org/id/unitary-authority/bracknell-forest","Bracknell Forest Council","00MA","Meadow Vale - Primary","Delegated Primary School Budgets","","Electricity",11/03/2015 00:00:00,"30263904",1583.29,"BRITISH GAS TRADING - DD ONLY"
"Bracknell Forest Council","http://opendatacommunities.org/id/unitary-authority/bracknell-forest","Bracknell Forest Council","00MA","Owlsmoor - Primary","Delegated Primary School Budgets","","Electricity",11/03/2015 00:00:00,"30263904",1597.38,"BRITISH GAS TRADING - DD ONLY"
"Bracknell Forest Council","http://opendatacommunities.org/id/unitary-authority/bracknell-forest","Bracknell Forest Council","00MA","The Pines School","Delegated Primary School Budgets","","Electricity",11/03/2015 00:00:00,"30263904",776.95,"BRITISH GAS TRADING - DD ONLY"
"Bracknell Forest Council","http://opendatacommunities.org/id/unitary-authority/bracknell-forest","Bracknell Forest Council","00MA","St Joseph�s - Catholic Primary","Delegated Primary School Budgets","","Electricity",11/03/2015 00:00:00,"30263904",655.52,"BRITISH GAS TRADING - DD ONLY"
"Bracknell Forest Council","http://opendatacommunities.org/id/unitary-authority/bracknell-forest","Bracknell Forest Council","00MA","Lily Hill Park Maintenance","Community Parks & Open Spaces","","Electricity",11/03/2015 00:00:00,"30263904",37.51,"BRITISH GAS TRADING - DD ONLY"
"Bracknell Forest Council","http://opendatacommunities.org/id/unitary-authority/bracknell-forest","Bracknell Forest Council","00MA","The Wayz","Targeted services for young people","","Electricity",11/03/2015 00:00:00,"30263904",389.49,"BRITISH GAS TRADING - DD ONLY"
"Bracknell Forest Council","http://opendatacommunities.org/id/unitary-authority/bracknell-forest","Bracknell Forest Council","00MA","Ranelagh Academy","Holding Codes - net nil","","Electricity",11/03/2015 00:00:00,"30263904",155.08,"BRITISH GAS TRADING - DD ONLY"
"Bracknell Forest Council","http://opendatacommunities.org/id/unitary-authority/bracknell-forest","Bracknell Forest Council","00MA","Ranelagh Academy","Holding Codes - net nil","","Electricity",11/03/2015 00:00:00,"30263904",72.38,"BRITISH GAS TRADING - DD ONLY"
"Bracknell Forest Council","http://opendatacommunities.org/id/unitary-authority/bracknell-forest","Bracknell Forest Council","00MA","Ranelagh Academy","Holding Codes - net nil","","Electricity",11/03/2015 00:00:00,"30263904",710.89,"BRITISH GAS TRADING - DD ONLY"
"Bracknell Forest Council","http://opendatacommunities.org/id/unitary-authority/bracknell-forest","Bracknell Forest Council","00MA","Fox Hill - Primary","Delegated Primary School Budgets","","Electricity",11/03/2015 00:00:00,"30263904",483.42,"BRITISH GAS TRADING - DD ONLY"
"Bracknell Forest Council","http://opendatacommunities.org/id/unitary-authority/bracknell-forest","Bracknell Forest Council","00MA","Coopers Hill Youth Centre","Universal services for young people","","Electricity",11/03/2015 00:00:00,"30263904",369.46,"BRITISH GAS TRADING - DD ONLY"
"Bracknell Forest Council","http://opendatacommunities.org/id/unitary-authority/bracknell-forest","Bracknell Forest Council","00MA","Great Hollands Youth Centre","Universal services for young people","","Electricity",11/03/2015 00:00:00,"30263904",46.09,"BRITISH GAS TRADING - DD ONLY"
"Bracknell Forest Council","http://opendatacommunities.org/id/unitary-authority/bracknell-forest","Bracknell Forest Council","00MA","Leisure DSO - Leisure Centre","Indoor Sports & Recreation Facilities","","Electricity",11/03/2015 00:00:00,"30263904",136.55,"BRITISH GAS TRADING - DD ONLY"
"Bracknell Forest Council","http://opendatacommunities.org/id/unitary-authority/bracknell-forest","Bracknell Forest Council","00MA","Sandhurst Library","Branch Libraries","","Electricity",11/03/2015 00:00:00,"30263904",107.27,"BRITISH GAS TRADING - DD ONLY"
"Bracknell Forest Council","http://opendatacommunities.org/id/unitary-authority/bracknell-forest","Bracknell Forest Council","00MA","Public Conveniences","Public Conveniences","","Electricity",11/03/2015 00:00:00,"30263904",432.39,"BRITISH GAS TRADING - DD ONLY"
"Bracknell Forest Council","http://opendatacommunities.org/id/unitary-authority/bracknell-forest","Bracknell Forest Council","00MA","Public Conveniences","Public Conveniences","","Electricity",11/03/2015 00:00:00,"30263904",169.08,"BRITISH GAS TRADING - DD ONLY"
"Bracknell Forest Council","http://opendatacommunities.org/id/unitary-authority/bracknell-forest","Bracknell Forest Council","00MA","Public Conveniences","Public Conveniences","","Electricity",11/03/2015 00:00:00,"30263904",183.59,"BRITISH GAS TRADING - DD ONLY"
"Bracknell Forest Council","http://opendatacommunities.org/id/unitary-authority/bracknell-forest","Bracknell Forest Council","00MA","Off Street Parking","Off Street Parking","","Electricity",11/03/2015 00:00:00,"30263904",170.34,"BRITISH GAS TRADING - DD ONLY"
"Bracknell Forest Council","http://opendatacommunities.org/id/unitary-authority/bracknell-forest","Bracknell Forest Council","00MA","Off Street Parking","Off Street Parking","","Electricity",11/03/2015 00:00:00,"30263904",12.65,"BRITISH GAS TRADING - DD ONLY"
"Bracknell Forest Council","http://opendatacommunities.org/id/unitary-authority/bracknell-forest","Bracknell Forest Council","00MA","Whitegrove - Primary","Delegated Primary School Budgets","","Electricity",11/03/2015 00:00:00,"30263904",1068.89,"BRITISH GAS TRADING - DD ONLY"
"Bracknell Forest Council","http://opendatacommunities.org/id/unitary-authority/bracknell-forest","Bracknell Forest Council","00MA","Wildridings - Primary","Delegated Primary School Budgets","","Electricity",11/03/2015 00:00:00,"30263904",624.09,"BRITISH GAS TRADING - DD ONLY"
"Bracknell Forest Council","http://opendatacommunities.org/id/unitary-authority/bracknell-forest","Bracknell Forest Council","00MA","Wildridings - Primary","Delegated Primary School Budgets","","Electricity",11/03/2015 00:00:00,"30263904",636.28,"BRITISH GAS TRADING - DD ONLY"
"Bracknell Forest Council","http://opendatacommunities.org/id/unitary-authority/bracknell-forest","Bracknell Forest Council","00MA","Off Street Parking","Off Street Parking","","Electricity",11/03/2015 00:00:00,"30263904",607.14,"BRITISH GAS TRADING - DD ONLY"
"Bracknell Forest Council","http://opendatacommunities.org/id/unitary-authority/bracknell-forest","Bracknell Forest Council","00MA","Off Street Parking","Off Street Parking","","Electricity",11/03/2015 00:00:00,"30263904",2911.84,"BRITISH GAS TRADING - DD ONLY"
"Bracknell Forest Council","http://opendatacommunities.org/id/unitary-authority/bracknell-forest","Bracknell Forest Council","00MA","Off Street Parking","Off Street Parking","","Electricity",11/03/2015 00:00:00,"30263904",1915.79,"BRITISH GAS TRADING - DD ONLY"
"Bracknell Forest Council","http://opendatacommunities.org/id/unitary-authority/bracknell-forest","Bracknell Forest Council","00MA","Wooden Hill - Primary","Delegated Primary School Budgets","","Electricity",11/03/2015 00:00:00,"30263904",90.09,"BRITISH GAS TRADING - DD ONLY"
"Bracknell Forest Council","http://opendatacommunities.org/id/unitary-authority/bracknell-forest","Bracknell Forest Council","00MA","Wooden Hill - Primary","Delegated Primary School Budgets","","Electricity",11/03/2015 00:00:00,"30263904",1056.38,"BRITISH GAS TRADING - DD ONLY"
"Bracknell Forest Council","http://opendatacommunities.org/id/unitary-authority/bracknell-forest","Bracknell Forest Council","00MA","Ranelagh Academy","Holding Codes - net nil","","Electricity",11/03/2015 00:00:00,"30263904",1083.15,"BRITISH GAS TRADING - DD ONLY"
"Bracknell Forest Council","http://opendatacommunities.org/id/unitary-authority/bracknell-forest","Bracknell Forest Council","00MA","College Town - Junior","Delegated Primary School Budgets","","Electricity",11/03/2015 00:00:00,"30263904",949.53,"BRITISH GAS TRADING - DD ONLY"
"Bracknell Forest Council","http://opendatacommunities.org/id/unitary-authority/bracknell-forest","Bracknell Forest Council","00MA","Heathlands EPH","Internal Services","","Electricity",11/03/2015 00:00:00,"30263904",1044.12,"BRITISH GAS TRADING - DD ONLY"
"Bracknell Forest Council","http://opendatacommunities.org/id/unitary-authority/bracknell-forest","Bracknell Forest Council","00MA","Family Centre Running Costs","Targeted Family Support","","Electricity",11/03/2015 00:00:00,"30263904",111.74,"BRITISH GAS TRADING - DD ONLY"
"Bracknell Forest Council","http://opendatacommunities.org/id/unitary-authority/bracknell-forest","Bracknell Forest Council","00MA","Family Centre Running Costs","Targeted Family Support","","Electricity",11/03/2015 00:00:00,"30263904",61.21,"BRITISH GAS TRADING - DD ONLY"
"Bracknell Forest Council","http://opendatacommunities.org/id/unitary-authority/bracknell-forest","Bracknell Forest Council","00MA","Primary Resource Centre","De-Delegated Expenditure","","Electricity",11/03/2015 00:00:00,"30263904",430.75,"BRITISH GAS TRADING - DD ONLY"
"Bracknell Forest Council","http://opendatacommunities.org/id/unitary-authority/bracknell-forest","Bracknell Forest Council","00MA","LD Employment Service","Management & Administration","","Electricity",11/03/2015 00:00:00,"30263904",29,"BRITISH GAS TRADING - DD ONLY"
"Bracknell Forest Council","http://opendatacommunities.org/id/unitary-authority/bracknell-forest","Bracknell Forest Council","00MA","Harmans Water Library","Branch Libraries","","Electricity",11/03/2015 00:00:00,"30263904",58.45,"BRITISH GAS TRADING - DD ONLY"
"Bracknell Forest Council","http://opendatacommunities.org/id/unitary-authority/bracknell-forest","Bracknell Forest Council","00MA","Brakenhale - Secondary","Delegated Secondary Schools Budgets","","Electricity",11/03/2015 00:00:00,"30263904",635.44,"BRITISH GAS TRADING - DD ONLY"
"Bracknell Forest Council","http://opendatacommunities.org/id/unitary-authority/bracknell-forest","Bracknell Forest Council","00MA","Brakenhale - Secondary","Delegated Secondary Schools Budgets","","Electricity",11/03/2015 00:00:00,"30263904",183.49,"BRITISH GAS TRADING - DD ONLY"
"Bracknell Forest Council","http://opendatacommunities.org/id/unitary-authority/bracknell-forest","Bracknell Forest Council","00MA","Brakenhale - Secondary","Delegated Secondary Schools Budgets","","Electricity",11/03/2015 00:00:00,"30263904",287.61,"BRITISH GAS TRADING - DD ONLY"
"Bracknell Forest Council","http://opendatacommunities.org/id/unitary-authority/bracknell-forest","Bracknell Forest Council","00MA","Waymead - Short Stay","Internal Services","","Electricity",11/03/2015 00:00:00,"30263904",566.2,"BRITISH GAS TRADING - DD ONLY"
"Bracknell Forest Council","http://opendatacommunities.org/id/unitary-authority/bracknell-forest","Bracknell Forest Council","00MA","Waymead - Short Stay","Internal Services","","Electricity",11/03/2015 00:00:00,"30263904",78.15,"BRITISH GAS TRADING - DD ONLY"
"Bracknell Forest Council","http://opendatacommunities.org/id/unitary-authority/bracknell-forest","Bracknell Forest Council","00MA","Recreation Staff Accommodation","Indoor Sports & Recreation Facilities","","Electricity",11/03/2015 00:00:00,"30263904",62.45,"BRITISH GAS TRADING - DD ONLY"
"Bracknell Forest Council","http://opendatacommunities.org/id/unitary-authority/bracknell-forest","Bracknell Forest Council","00MA","Recreation Staff Accommodation","Indoor Sports & Recreation Facilities","","Electricity",11/03/2015 00:00:00,"30263904",86.89,"BRITISH GAS TRADING - DD ONLY"
"Bracknell Forest Council","http://opendatacommunities.org/id/unitary-authority/bracknell-forest","Bracknell Forest Council","00MA","Recreation Staff Accommodation","Indoor Sports & Recreation Facilities","","Electricity",11/03/2015 00:00:00,"30263904",96.44,"BRITISH GAS TRADING - DD ONLY"
"Bracknell Forest Council","http://opendatacommunities.org/id/unitary-authority/bracknell-forest","Bracknell Forest Council","00MA","Crowthorne Library","Branch Libraries","","Electricity",11/03/2015 00:00:00,"30263904",162.98,"BRITISH GAS TRADING - DD ONLY"
"Bracknell Forest Council","http://opendatacommunities.org/id/unitary-authority/bracknell-forest","Bracknell Forest Council","00MA","Depot Facilities","Construction and Property","","Electricity",11/03/2015 00:00:00,"30263904",1241.32,"BRITISH GAS TRADING - DD ONLY"
"Bracknell Forest Council","http://opendatacommunities.org/id/unitary-authority/bracknell-forest","Bracknell Forest Council","00MA","Depot Facilities","Construction and Property","","Electricity",11/03/2015 00:00:00,"30263904",1168.23,"BRITISH GAS TRADING - DD ONLY"
"Bracknell Forest Council","http://opendatacommunities.org/id/unitary-authority/bracknell-forest","Bracknell Forest Council","00MA","Leisure DSO - Downshire Golf Course","Golf Courses","","Electricity",11/03/2015 00:00:00,"30263904",315,"BRITISH GAS TRADING - DD ONLY"
"Bracknell Forest Council","http://opendatacommunities.org/id/unitary-authority/bracknell-forest","Bracknell Forest Council","00MA","St Michael�s (Sandhurst) - Primary","Delegated Primary School Budgets","","Electricity",11/03/2015 00:00:00,"30263904",20.34,"BRITISH GAS TRADING - DD ONLY"
"Bracknell Forest Council","http://opendatacommunities.org/id/unitary-authority/bracknell-forest","Bracknell Forest Council","00MA","St Michael�s (Sandhurst) - Primary","Delegated Primary School Budgets","","Electricity",11/03/2015 00:00:00,"30263904",543.56,"BRITISH GAS TRADING - DD ONLY"
"Bracknell Forest Council","http://opendatacommunities.org/id/unitary-authority/bracknell-forest","Bracknell Forest Council","00MA","St Michael�s (Sandhurst) - Primary","Delegated Primary School Budgets","","Electricity",11/03/2015 00:00:00,"30263904",-165.39,"BRITISH GAS TRADING - DD ONLY"
"Bracknell Forest Council","http://opendatacommunities.org/id/unitary-authority/bracknell-forest","Bracknell Forest Council","00MA","St Michael�s (Sandhurst) - Primary","Delegated Primary School Budgets","","Electricity",11/03/2015 00:00:00,"30263904",-195.3,"BRITISH GAS TRADING - DD ONLY"
"Bracknell Forest Council","http://opendatacommunities.org/id/unitary-authority/bracknell-forest","Bracknell Forest Council","00MA","Ascot Heath - Junior","Delegated Primary School Budgets","","Electricity",11/03/2015 00:00:00,"30263904",1428.8,"BRITISH GAS TRADING - DD ONLY"
"Bracknell Forest Council","http://opendatacommunities.org/id/unitary-authority/bracknell-forest","Bracknell Forest Council","00MA","Ascot Heath - Junior","Delegated Primary School Budgets","","Electricity",11/03/2015 00:00:00,"30263904",17.15,"BRITISH GAS TRADING - DD ONLY"
"Bracknell Forest Council","http://opendatacommunities.org/id/unitary-authority/bracknell-forest","Bracknell Forest Council","00MA","Wildmoor Heath School","Delegated Primary School Budgets","","Electricity",11/03/2015 00:00:00,"30263904",565.21,"BRITISH GAS TRADING - DD ONLY"
"Bracknell Forest Council","http://opendatacommunities.org/id/unitary-authority/bracknell-forest","Bracknell Forest Council","00MA","Lighting","Street Lighting","","Electricity",11/03/2015 00:00:00,"30263904",26.01,"BRITISH GAS TRADING - DD ONLY"
"Bracknell Forest Council","http://opendatacommunities.org/id/unitary-authority/bracknell-forest","Bracknell Forest Council","00MA","Lighting","Street Lighting","","Electricity",11/03/2015 00:00:00,"30263904",40.57,"BRITISH GAS TRADING - DD ONLY"
"Bracknell Forest Council","http://opendatacommunities.org/id/unitary-authority/bracknell-forest","Bracknell Forest Council","00MA","Lighting","Street Lighting","","Electricity",11/03/2015 00:00:00,"30263904",19.93,"BRITISH GAS TRADING - DD ONLY"
"Bracknell Forest Council","http://opendatacommunities.org/id/unitary-authority/bracknell-forest","Bracknell Forest Council","00MA","Lighting","Street Lighting","","Electricity",11/03/2015 00:00:00,"30263904",12.65,"BRITISH GAS TRADING - DD ONLY"
"Bracknell Forest Council","http://opendatacommunities.org/id/unitary-authority/bracknell-forest","Bracknell Forest Council","00MA","Lighting","Street Lighting","","Electricity",11/03/2015 00:00:00,"30263904",272.74,"BRITISH GAS TRADING - DD ONLY"
"Bracknell Forest Council","http://opendatacommunities.org/id/unitary-authority/bracknell-forest","Bracknell Forest Council","00MA","Lighting","Street Lighting","","Electricity",11/03/2015 00:00:00,"30263904",32.1,"BRITISH GAS TRADING - DD ONLY"
"Bracknell Forest Council","http://opendatacommunities.org/id/unitary-authority/bracknell-forest","Bracknell Forest Council","00MA","Lighting","Street Lighting","","Electricity",11/03/2015 00:00:00,"30263904",133.44,"BRITISH GAS TRADING - DD ONLY"
"Bracknell Forest Council","http://opendatacommunities.org/id/unitary-authority/bracknell-forest","Bracknell Forest Council","00MA","Lighting","Street Lighting","","Electricity",11/03/2015 00:00:00,"30263904",130.29,"BRITISH GAS TRADING - DD ONLY"
"Bracknell Forest Council","http://opendatacommunities.org/id/unitary-authority/bracknell-forest","Bracknell Forest Council","00MA","Lighting","Street Lighting","","Electricity",11/03/2015 00:00:00,"30263904",137.96,"BRITISH GAS TRADING - DD ONLY"
"Bracknell Forest Council","http://opendatacommunities.org/id/unitary-authority/bracknell-forest","Bracknell Forest Council","00MA","Easthampstead Park Centre - Catering","Premises Development","","Cost of Goods Sold",13/05/2015 00:00:00,"30268663",46.92,"BRAKE BROS"
"Bracknell Forest Council","http://opendatacommunities.org/id/unitary-authority/bracknell-forest","Bracknell Forest Council","00MA","Easthampstead Park Centre - Catering","Premises Development","","Cost of Goods Sold",18/05/2015 00:00:00,"30268663",51.22,"BRAKE BROS"
"Bracknell Forest Council","http://opendatacommunities.org/id/unitary-authority/bracknell-forest","Bracknell Forest Council","00MA","Easthampstead Park Centre - Catering","Premises Development","","Cost of Goods Sold",18/05/2015 00:00:00,"30268663",72.7,"BRAKE BROS"
"Bracknell Forest Council","http://opendatacommunities.org/id/unitary-authority/bracknell-forest","Bracknell Forest Council","00MA","Easthampstead Park Centre - Catering","Premises Development","","Cost of Goods Sold",14/05/2015 00:00:00,"30268663",307.01,"CROWN WATER & COFFEE"
"Bracknell Forest Council","http://opendatacommunities.org/id/unitary-authority/bracknell-forest","Bracknell Forest Council","00MA","Easthampstead Park Centre - Catering","Premises Development","","Cost of Goods Sold",14/05/2015 00:00:00,"30268663",89.4,"CROWN WATER & COFFEE"
"Bracknell Forest Council","http://opendatacommunities.org/id/unitary-authority/bracknell-forest","Bracknell Forest Council","00MA","Heathlands EPH","Internal Services","","Cost of Goods Sold",11/05/2015 00:00:00,"30268663",23.72,"THE QUALITY MEAT"
"Bracknell Forest Council","http://opendatacommunities.org/id/unitary-authority/bracknell-forest","Bracknell Forest Council","00MA","Easthampstead Park Centre - Catering","Premises Development","","Cost of Goods Sold",11/05/2015 00:00:00,"30268663",165.35,"THE QUALITY MEAT"
"Bracknell Forest Council","http://opendatacommunities.org/id/unitary-authority/bracknell-forest","Bracknell Forest Council","00MA","Easthampstead Park Centre - Catering","Premises Development","","Cost of Goods Sold",12/05/2015 00:00:00,"30268663",100.85,"THE QUALITY MEAT"
"Bracknell Forest Council","http://opendatacommunities.org/id/unitary-authority/bracknell-forest","Bracknell Forest Council","00MA","Leisure DSO - Downshire Catering","Golf Courses","","Cost of Goods Sold",19/05/2015 00:00:00,"30268663",7.94,"CHRISTMAS BARKERY LTD"
"Bracknell Forest Council","http://opendatacommunities.org/id/unitary-authority/bracknell-forest","Bracknell Forest Council","00MA","Leisure DSO - Downshire Catering","Golf Courses","","Cost of Goods Sold",19/05/2015 00:00:00,"30268663",15.02,"CHRISTMAS BARKERY LTD"
"Bracknell Forest Council","http://opendatacommunities.org/id/unitary-authority/bracknell-forest","Bracknell Forest Council","00MA","Leisure DSO - Downshire Catering","Golf Courses","","Cost of Goods Sold",19/05/2015 00:00:00,"30268663",15.66,"CHRISTMAS BARKERY LTD"
"Bracknell Forest Council","http://opendatacommunities.org/id/unitary-authority/bracknell-forest","Bracknell Forest Council","00MA","Leisure DSO - Downshire Catering","Golf Courses","","Cost of Goods Sold",19/05/2015 00:00:00,"30268663",9.22,"CHRISTMAS BARKERY LTD"
"Bracknell Forest Council","http://opendatacommunities.org/id/unitary-authority/bracknell-forest","Bracknell Forest Council","00MA","Leisure DSO - Downshire Catering","Golf Courses","","Cost of Goods Sold",19/05/2015 00:00:00,"30268663",9.22,"CHRISTMAS BARKERY LTD"
"Bracknell Forest Council","http://opendatacommunities.org/id/unitary-authority/bracknell-forest","Bracknell Forest Council","00MA","Leisure DSO - Downshire Catering","Golf Courses","","Cost of Goods Sold",19/05/2015 00:00:00,"30268663",84.3,"CHRISTMAS BARKERY LTD"
"Bracknell Forest Council","http://opendatacommunities.org/id/unitary-authority/bracknell-forest","Bracknell Forest Council","00MA","Leisure DSO - Downshire Catering","Golf Courses","","Cost of Goods Sold",19/05/2015 00:00:00,"30268663",7.94,"CHRISTMAS BARKERY LTD"
"Bracknell Forest Council","http://opendatacommunities.org/id/unitary-authority/bracknell-forest","Bracknell Forest Council","00MA","Easthampstead Park Centre - Catering","Premises Development","","Cleaning materials",14/05/2015 00:00:00,"30268663",63.82,"ALLIANCE DISPOSABLES LTD"
"Bracknell Forest Council","http://opendatacommunities.org/id/unitary-authority/bracknell-forest","Bracknell Forest Council","00MA","Kennel Lane","Delegated Special and Alternative Provision Budgets","","Electricity",11/03/2015 00:00:00,"30263904",995.51,"BRITISH GAS TRADING - DD ONLY"
"Bracknell Forest Council","http://opendatacommunities.org/id/unitary-authority/bracknell-forest","Bracknell Forest Council","00MA","Kennel Lane","Delegated Special and Alternative Provision Budgets","","Electricity",11/03/2015 00:00:00,"30263904",1882.73,"BRITISH GAS TRADING - DD ONLY"
"Bracknell Forest Council","http://opendatacommunities.org/id/unitary-authority/bracknell-forest","Bracknell Forest Council","00MA","Sandy Lane Primary School","Delegated Primary School Budgets","","Electricity",11/03/2015 00:00:00,"30263904",1330.88,"BRITISH GAS TRADING - DD ONLY"
"Bracknell Forest Council","http://opendatacommunities.org/id/unitary-authority/bracknell-forest","Bracknell Forest Council","00MA","St Michael�s (Sandhurst) - Primary","Delegated Primary School Budgets","","Electricity",11/03/2015 00:00:00,"30263904",40.14,"BRITISH GAS TRADING - DD ONLY"
"Bracknell Forest Council","http://opendatacommunities.org/id/unitary-authority/bracknell-forest","Bracknell Forest Council","00MA","Open Learning Centre - Brakenhale","Adult and Community Learning","","Electricity",11/03/2015 00:00:00,"30263904",949.64,"BRITISH GAS TRADING - DD ONLY"
"Bracknell Forest Council","http://opendatacommunities.org/id/unitary-authority/bracknell-forest","Bracknell Forest Council","00MA","Longshot Lane  - Service Charges","Premises Development","","Electricity",11/03/2015 00:00:00,"30263904",38.27,"BRITISH GAS TRADING - DD ONLY"
"Bracknell Forest Council","http://opendatacommunities.org/id/unitary-authority/bracknell-forest","Bracknell Forest Council","00MA","Edgbarrow - Secondary","Delegated Secondary Schools Budgets","","Electricity",11/03/2015 00:00:00,"30263904",187.9,"BRITISH GAS TRADING - DD ONLY"
"Bracknell Forest Council","http://opendatacommunities.org/id/unitary-authority/bracknell-forest","Bracknell Forest Council","00MA","Edgbarrow - Secondary","Delegated Secondary Schools Budgets","","Electricity",11/03/2015 00:00:00,"30263904",128.6,"BRITISH GAS TRADING - DD ONLY"
"Bracknell Forest Council","http://opendatacommunities.org/id/unitary-authority/bracknell-forest","Bracknell Forest Council","00MA","Edgbarrow - Secondary","Delegated Secondary Schools Budgets","","Electricity",11/03/2015 00:00:00,"30263904",1144.69,"BRITISH GAS TRADING - DD ONLY"
"Bracknell Forest Council","http://opendatacommunities.org/id/unitary-authority/bracknell-forest","Bracknell Forest Council","00MA","Preliminaries - Other Roads","Winter Maintenance","","Electricity",11/03/2015 00:00:00,"30263904",503.25,"BRITISH GAS TRADING - DD ONLY"
"Bracknell Forest Council","http://opendatacommunities.org/id/unitary-authority/bracknell-forest","Bracknell Forest Council","00MA","Town Centre Fountains","Community Parks & Open Spaces","","Electricity",11/03/2015 00:00:00,"30263904",47.38,"BRITISH GAS TRADING - DD ONLY"
"Bracknell Forest Council","http://opendatacommunities.org/id/unitary-authority/bracknell-forest","Bracknell Forest Council","00MA","Town Centre Fountains","Community Parks & Open Spaces","","Electricity",11/03/2015 00:00:00,"30263904",81.51,"BRITISH GAS TRADING - DD ONLY"
"Bracknell Forest Council","http://opendatacommunities.org/id/unitary-authority/bracknell-forest","Bracknell Forest Council","00MA","Town Centre Fountains","Community Parks & Open Spaces","","Electricity",11/03/2015 00:00:00,"30263904",149.58,"BRITISH GAS TRADING - DD ONLY"
"Bracknell Forest Council","http://opendatacommunities.org/id/unitary-authority/bracknell-forest","Bracknell Forest Council","00MA","Portman Close Running Costs","Universal services for young people","","Electricity",11/03/2015 00:00:00,"30263904",227.23,"BRITISH GAS TRADING - DD ONLY"
"Bracknell Forest Council","http://opendatacommunities.org/id/unitary-authority/bracknell-forest","Bracknell Forest Council","00MA","Great Hollands Library","Branch Libraries","","Electricity",11/03/2015 00:00:00,"30263904",17.79,"BRITISH GAS TRADING - DD ONLY"
"Bracknell Forest Council","http://opendatacommunities.org/id/unitary-authority/bracknell-forest","Bracknell Forest Council","00MA","Easthampstead Park Centre - Catering","Premises Development","","Cost of Goods Sold",08/05/2015 00:00:00,"30268663",-8.18,"BRAKE BROS"
"Bracknell Forest Council","http://opendatacommunities.org/id/unitary-authority/bracknell-forest","Bracknell Forest Council","00MA","Easthampstead Park Centre - Catering","Premises Development","","Cost of Goods Sold",08/05/2015 00:00:00,"30268663",191.23,"BRAKE BROS"
"Bracknell Forest Council","http://opendatacommunities.org/id/unitary-authority/bracknell-forest","Bracknell Forest Council","00MA","Easthampstead Park Centre - Catering","Premises Development","","Cost of Goods Sold",11/05/2015 00:00:00,"30268663",148.59,"BRAKE BROS"
"Bracknell Forest Council","http://opendatacommunities.org/id/unitary-authority/bracknell-forest","Bracknell Forest Council","00MA","Easthampstead Park Centre - Catering","Premises Development","","Cost of Goods Sold",11/05/2015 00:00:00,"30268663",37.46,"BRAKE BROS"
"Bracknell Forest Council","http://opendatacommunities.org/id/unitary-authority/bracknell-forest","Bracknell Forest Council","00MA","Coral Reef - Catering & Bar","Indoor Sports & Recreation Facilities","","Cost of Goods Sold",12/05/2015 00:00:00,"30268663",276.37,"BRAKE BROS"
"Bracknell Forest Council","http://opendatacommunities.org/id/unitary-authority/bracknell-forest","Bracknell Forest Council","00MA","Easthampstead Park Centre - Catering","Premises Development","","Cost of Goods Sold",12/05/2015 00:00:00,"30268663",60.63,"BRAKE BROS"
"Bracknell Forest Council","http://opendatacommunities.org/id/unitary-authority/bracknell-forest","Bracknell Forest Council","00MA","Leisure DSO - Downshire Catering","Golf Courses","","Cost of Goods Sold",14/05/2015 00:00:00,"30268663",48.68,"BRAKE BROS"
"Bracknell Forest Council","http://opendatacommunities.org/id/unitary-authority/bracknell-forest","Bracknell Forest Council","00MA","Coral Reef - Catering & Bar","Indoor Sports & Recreation Facilities","","Cost of Goods Sold",14/05/2015 00:00:00,"30268663",24.24,"BRAKE BROS"
"Bracknell Forest Council","http://opendatacommunities.org/id/unitary-authority/bracknell-forest","Bracknell Forest Council","00MA","Leisure DSO - Downshire Catering","Golf Courses","","Cost of Goods Sold",19/05/2015 00:00:00,"30268663",8.78,"CHRISTMAS BARKERY LTD"
"Bracknell Forest Council","http://opendatacommunities.org/id/unitary-authority/bracknell-forest","Bracknell Forest Council","00MA","Leisure DSO - Downshire Catering","Golf Courses","","Cost of Goods Sold",19/05/2015 00:00:00,"30268663",9.22,"CHRISTMAS BARKERY LTD"
"Bracknell Forest Council","http://opendatacommunities.org/id/unitary-authority/bracknell-forest","Bracknell Forest Council","00MA","Leisure DSO - Downshire Catering","Golf Courses","","Cost of Goods Sold",19/05/2015 00:00:00,"30268663",16.96,"CHRISTMAS BARKERY LTD"
"Bracknell Forest Council","http://opendatacommunities.org/id/unitary-authority/bracknell-forest","Bracknell Forest Council","00MA","Leisure DSO - Downshire Catering","Golf Courses","","Cost of Goods Sold",19/05/2015 00:00:00,"30268663",9.22,"CHRISTMAS BARKERY LTD"
"Bracknell Forest Council","http://opendatacommunities.org/id/unitary-authority/bracknell-forest","Bracknell Forest Council","00MA","Leisure DSO - Downshire Catering","Golf Courses","","Cost of Goods Sold",16/05/2015 00:00:00,"30268663",174.96,"BRAKE BROS"
"Bracknell Forest Council","http://opendatacommunities.org/id/unitary-authority/bracknell-forest","Bracknell Forest Council","00MA","Coral Reef - Catering & Bar","Indoor Sports & Recreation Facilities","","Cost of Goods Sold",18/05/2015 00:00:00,"30268663",38.36,"J&S MEATS (ASCOT)"
"Bracknell Forest Council","http://opendatacommunities.org/id/unitary-authority/bracknell-forest","Bracknell Forest Council","00MA","Leisure DSO - Downshire Catering","Golf Courses","","Cost of Goods Sold",19/05/2015 00:00:00,"30268663",37.44,"J&S MEATS (ASCOT)"
"Bracknell Forest Council","http://opendatacommunities.org/id/unitary-authority/bracknell-forest","Bracknell Forest Council","00MA","Coral Reef - Catering & Bar","Indoor Sports & Recreation Facilities","","Cost of Goods Sold",13/05/2015 00:00:00,"30268663",181.42,"KENT FROZEN FOODS"
"Bracknell Forest Council","http://opendatacommunities.org/id/unitary-authority/bracknell-forest","Bracknell Forest Council","00MA","Coral Reef - Catering & Bar","Indoor Sports & Recreation Facilities","","Cost of Goods Sold",15/05/2015 00:00:00,"30268663",150,"KENT FROZEN FOODS"
"Bracknell Forest Council","http://opendatacommunities.org/id/unitary-authority/bracknell-forest","Bracknell Forest Council","00MA","Leisure DSO - Downshire Catering","Golf Courses","","Cost of Goods Sold",19/05/2015 00:00:00,"30268663",89.38,"KENT FROZEN FOODS"
"Bracknell Forest Council","http://opendatacommunities.org/id/unitary-authority/bracknell-forest","Bracknell Forest Council","00MA","Easthampstead Park Centre - Catering","Premises Development","","Cost of Goods Sold",12/05/2015 00:00:00,"30268663",52.4,"M&J SEAFOOD"
"Bracknell Forest Council","http://opendatacommunities.org/id/unitary-authority/bracknell-forest","Bracknell Forest Council","00MA","Easthampstead Park Centre - Catering","Premises Development","","Cost of Goods Sold",15/05/2015 00:00:00,"30268663",552.5,"M&J SEAFOOD"
"Bracknell Forest Council","http://opendatacommunities.org/id/unitary-authority/bracknell-forest","Bracknell Forest Council","00MA","Easthampstead Park Centre - Catering","Premises Development","","Cost of Goods Sold",18/05/2015 00:00:00,"30268663",30.31,"M&J SEAFOOD"
"Bracknell Forest Council","http://opendatacommunities.org/id/unitary-authority/bracknell-forest","Bracknell Forest Council","00MA","Easthampstead Park Centre - Catering","Premises Development","","Cost of Goods Sold",13/05/2015 00:00:00,"30268663",81.91,"BRAKE BROS"
"Bracknell Forest Council","http://opendatacommunities.org/id/unitary-authority/bracknell-forest","Bracknell Forest Council","00MA","Coral Reef - Catering & Bar","Indoor Sports & Recreation Facilities","","Cost of Goods Sold",14/05/2015 00:00:00,"30268663",258.14,"BRAKE BROS"
"Bracknell Forest Council","http://opendatacommunities.org/id/unitary-authority/bracknell-forest","Bracknell Forest Council","00MA","Easthampstead Park Centre - Catering","Premises Development","","Cost of Goods Sold",14/05/2015 00:00:00,"30268663",278.18,"BRAKE BROS"
"Bracknell Forest Council","http://opendatacommunities.org/id/unitary-authority/bracknell-forest","Bracknell Forest Council","00MA","Easthampstead Park Centre - Catering","Premises Development","","Cost of Goods Sold",15/05/2015 00:00:00,"30268663",169.47,"BRAKE BROS"
"Bracknell Forest Council","http://opendatacommunities.org/id/unitary-authority/bracknell-forest","Bracknell Forest Council","00MA","Easthampstead Park Centre - Catering","Premises Development","","Cost of Goods Sold",15/05/2015 00:00:00,"30268663",1109.24,"BRAKE BROS"
"Bracknell Forest Council","http://opendatacommunities.org/id/unitary-authority/bracknell-forest","Bracknell Forest Council","00MA","Easthampstead Park Centre - Catering","Premises Development","","Cost of Goods Sold",15/05/2015 00:00:00,"30268663",346.88,"BRAKE BROS"
"Bracknell Forest Council","http://opendatacommunities.org/id/unitary-authority/bracknell-forest","Bracknell Forest Council","00MA","Leisure DSO - Downshire Catering","Golf Courses","","Cost of Goods - Bar",14/05/2015 00:00:00,"30268663",374.09,"MATTHEW CLARK WHOLESALE"
"Bracknell Forest Council","http://opendatacommunities.org/id/unitary-authority/bracknell-forest","Bracknell Forest Council","00MA","Financial Adjustments - Cheques W/Back","Other Services","","Other Expenses",19/05/2015 00:00:00,"30269190",287.25,"EDF ENERGY"
"Bracknell Forest Council","http://opendatacommunities.org/id/unitary-authority/bracknell-forest","Bracknell Forest Council","00MA","MH Adults 18-64 Long Term Support - Residential","Long term Support - Residential","","Contracted Services",10/02/2015 00:00:00,"30260613",2388.24,"2 CARE"
"Bracknell Forest Council","http://opendatacommunities.org/id/unitary-authority/bracknell-forest","Bracknell Forest Council","00MA","MH Adults 18-64 Long Term Support - Residential","Long term Support - Residential","","Contracted Services",10/02/2015 00:00:00,"30260613",2388.32,"2 CARE"
"Bracknell Forest Council","http://opendatacommunities.org/id/unitary-authority/bracknell-forest","Bracknell Forest Council","00MA","MH Adults 18-64 Long Term Support - Residential","Long term Support - Residential","","Contracted Services",10/03/2015 00:00:00,"30262613",2388.24,"2 CARE"
"Bracknell Forest Council","http://opendatacommunities.org/id/unitary-authority/bracknell-forest","Bracknell Forest Council","00MA","MH Adults 18-64 Long Term Support - Residential","Long term Support - Residential","","Contracted Services",10/03/2015 00:00:00,"30262613",2388.32,"2 CARE"
"Bracknell Forest Council","http://opendatacommunities.org/id/unitary-authority/bracknell-forest","Bracknell Forest Council","00MA","MH Adults 18-64 Long Term Support - Residential","Long term Support - Residential","","Contracted Services",03/04/2015 00:00:00,"30264610",2388.24,"2 CARE"
"Bracknell Forest Council","http://opendatacommunities.org/id/unitary-authority/bracknell-forest","Bracknell Forest Council","00MA","MH Adults 18-64 Long Term Support - Residential","Long term Support - Residential","","Contracted Services",03/04/2015 00:00:00,"30264610",2388.32,"2 CARE"
"Bracknell Forest Council","http://opendatacommunities.org/id/unitary-authority/bracknell-forest","Bracknell Forest Council","00MA","MH Adults 18-64 Long Term Support - Residential","Long term Support - Residential","","Contracted Services",05/05/2015 00:00:00,"30267673",2388.24,"2 CARE"
"Bracknell Forest Council","http://opendatacommunities.org/id/unitary-authority/bracknell-forest","Bracknell Forest Council","00MA","MH Adults 18-64 Long Term Support - Residential","Long term Support - Residential","","Contracted Services",05/05/2015 00:00:00,"30267673",2388.32,"2 CARE"
"Bracknell Forest Council","http://opendatacommunities.org/id/unitary-authority/bracknell-forest","Bracknell Forest Council","00MA","MH Adults 18-64 Long Term Support - Residential","Long term Support - Residential","","Contracted Services",02/06/2015 00:00:00,"30269401",2388.24,"2 CARE"
"Bracknell Forest Council","http://opendatacommunities.org/id/unitary-authority/bracknell-forest","Bracknell Forest Council","00MA","MH Adults 18-64 Long Term Support - Residential","Long term Support - Residential","","Contracted Services",02/06/2015 00:00:00,"30269401",2388.32,"2 CARE"
"Bracknell Forest Council","http://opendatacommunities.org/id/unitary-authority/bracknell-forest","Bracknell Forest Council","00MA","Bridgewell Unit","Short Term Support Other","","Cost of Goods Sold",04/02/2015 00:00:00,"30260762",326.37,"3663"
"Bracknell Forest Council","http://opendatacommunities.org/id/unitary-authority/bracknell-forest","Bracknell Forest Council","00MA","Leisure Centre - Catering General","Indoor Sports & Recreation Facilities","","Cost of Goods Sold",06/02/2015 00:00:00,"30260762",302.56,"3663"
"Bracknell Forest Council","http://opendatacommunities.org/id/unitary-authority/bracknell-forest","Bracknell Forest Council","00MA","Leisure Centre - Catering General","Indoor Sports & Recreation Facilities","","Cost of Goods Sold",06/02/2015 00:00:00,"30260762",9.53,"3663"
"Bracknell Forest Council","http://opendatacommunities.org/id/unitary-authority/bracknell-forest","Bracknell Forest Council","00MA","Leisure Centre - Catering General","Indoor Sports & Recreation Facilities","","Cost of Goods Sold",06/02/2015 00:00:00,"30260762",39.12,"3663"
"Bracknell Forest Council","http://opendatacommunities.org/id/unitary-authority/bracknell-forest","Bracknell Forest Council","00MA","Bridgewell Unit","Short Term Support Other","","Cost of Goods Sold",04/02/2015 00:00:00,"30260762",4.88,"3663"
"Bracknell Forest Council","http://opendatacommunities.org/id/unitary-authority/bracknell-forest","Bracknell Forest Council","00MA","Easthampstead Park Centre - Catering","Premises Development","","Cost of Goods Sold",04/02/2015 00:00:00,"30260762",550.14,"3663"
"Bracknell Forest Council","http://opendatacommunities.org/id/unitary-authority/bracknell-forest","Bracknell Forest Council","00MA","Easthampstead Park Centre - Catering","Premises Development","","Cost of Goods Sold",04/02/2015 00:00:00,"30260762",51.33,"3663"
"Bracknell Forest Council","http://opendatacommunities.org/id/unitary-authority/bracknell-forest","Bracknell Forest Council","00MA","Easthampstead Park Centre - Catering","Premises Development","","Cost of Goods Sold",06/02/2015 00:00:00,"30260762",179.68,"3663"
"Bracknell Forest Council","http://opendatacommunities.org/id/unitary-authority/bracknell-forest","Bracknell Forest Council","00MA","Easthampstead Park Centre - Catering","Premises Development","","Cost of Goods Sold",06/02/2015 00:00:00,"30260762",211.35,"3663"
"Bracknell Forest Council","http://opendatacommunities.org/id/unitary-authority/bracknell-forest","Bracknell Forest Council","00MA","Easthampstead Park Centre - Catering","Premises Development","","Cost of Goods Sold",06/02/2015 00:00:00,"30260762",7.69,"3663"
"Bracknell Forest Council","http://opendatacommunities.org/id/unitary-authority/bracknell-forest","Bracknell Forest Council","00MA","Leisure DSO - Downshire Catering","Golf Courses","","Cost of Goods Sold",10/02/2015 00:00:00,"30260762",22.79,"3663"
"Bracknell Forest Council","http://opendatacommunities.org/id/unitary-authority/bracknell-forest","Bracknell Forest Council","00MA","Leisure DSO - Downshire Catering","Golf Courses","","Cost of Goods Sold",10/02/2015 00:00:00,"30260762",14.75,"3663"
"Bracknell Forest Council","http://opendatacommunities.org/id/unitary-authority/bracknell-forest","Bracknell Forest Council","00MA","Easthampstead Park Centre - Catering","Premises Development","","Cost of Goods Sold",10/02/2015 00:00:00,"30260762",156.06,"3663"
"Bracknell Forest Council","http://opendatacommunities.org/id/unitary-authority/bracknell-forest","Bracknell Forest Council","00MA","Leisure DSO - Downshire Catering","Golf Courses","","Cost of Goods Sold",03/02/2015 00:00:00,"30260762",41.94,"3663"
"Bracknell Forest Council","http://opendatacommunities.org/id/unitary-authority/bracknell-forest","Bracknell Forest Council","00MA","Leisure DSO - Downshire Catering","Golf Courses","","Cost of Goods Sold",03/02/2015 00:00:00,"30260762",12.99,"3663"
"Bracknell Forest Council","http://opendatacommunities.org/id/unitary-authority/bracknell-forest","Bracknell Forest Council","00MA","Leisure DSO - Downshire Catering","Golf Courses","","Cost of Goods Sold",03/02/2015 00:00:00,"30260762",553.17,"3663"
"Bracknell Forest Council","http://opendatacommunities.org/id/unitary-authority/bracknell-forest","Bracknell Forest Council","00MA","Leisure DSO - Downshire Catering","Golf Courses","","Cost of Goods Sold",03/02/2015 00:00:00,"30260762",41.86,"3663"
"Bracknell Forest Council","http://opendatacommunities.org/id/unitary-authority/bracknell-forest","Bracknell Forest Council","00MA","Easthampstead Park Centre - Catering","Premises Development","","Cost of Goods Sold",04/02/2015 00:00:00,"30260762",107.23,"3663"
"Bracknell Forest Council","http://opendatacommunities.org/id/unitary-authority/bracknell-forest","Bracknell Forest Council","00MA","Easthampstead Park Centre - Catering","Premises Development","","Cost of Goods Sold",04/02/2015 00:00:00,"30260762",144.26,"3663"
"Bracknell Forest Council","http://opendatacommunities.org/id/unitary-authority/bracknell-forest","Bracknell Forest Council","00MA","Easthampstead Park Centre - Catering","Premises Development","","Cost of Goods Sold",10/02/2015 00:00:00,"30260762",127.37,"3663"
"Bracknell Forest Council","http://opendatacommunities.org/id/unitary-authority/bracknell-forest","Bracknell Forest Council","00MA","Leisure DSO - Downshire Catering","Golf Courses","","Cost of Goods Sold",10/02/2015 00:00:00,"30260762",686.28,"3663"
"Bracknell Forest Council","http://opendatacommunities.org/id/unitary-authority/bracknell-forest","Bracknell Forest Council","00MA","Heathlands EPH","Internal Services","","Cost of Goods Sold",04/02/2015 00:00:00,"30260762",417.05,"3663"
"Bracknell Forest Council","http://opendatacommunities.org/id/unitary-authority/bracknell-forest","Bracknell Forest Council","00MA","Heathlands EPH","Internal Services","","Cost of Goods Sold",04/02/2015 00:00:00,"30260762",114.87,"3663"
"Bracknell Forest Council","http://opendatacommunities.org/id/unitary-authority/bracknell-forest","Bracknell Forest Council","00MA","Easthampstead Park Centre - Catering","Premises Development","","Cost of Goods Sold",12/02/2015 00:00:00,"30261221",1.62,"3663"
"Bracknell Forest Council","http://opendatacommunities.org/id/unitary-authority/bracknell-forest","Bracknell Forest Council","00MA","Leisure DSO - Downshire Catering","Golf Courses","","Cost of Goods Sold",17/02/2015 00:00:00,"30261221",57.03,"3663"
"Bracknell Forest Council","http://opendatacommunities.org/id/unitary-authority/bracknell-forest","Bracknell Forest Council","00MA","Leisure DSO - Downshire Catering","Golf Courses","","Cost of Goods Sold",17/02/2015 00:00:00,"30261221",34.99,"3663"
"Bracknell Forest Council","http://opendatacommunities.org/id/unitary-authority/bracknell-forest","Bracknell Forest Council","00MA","Easthampstead Park Centre - Catering","Premises Development","","Cost of Goods Sold",17/02/2015 00:00:00,"30261221",310.09,"3663"
"Bracknell Forest Council","http://opendatacommunities.org/id/unitary-authority/bracknell-forest","Bracknell Forest Council","00MA","Easthampstead Park Centre - Catering","Premises Development","","Cost of Goods Sold",11/02/2015 00:00:00,"30261221",274.82,"3663"
"Bracknell Forest Council","http://opendatacommunities.org/id/unitary-authority/bracknell-forest","Bracknell Forest Council","00MA","Easthampstead Park Centre - Catering","Premises Development","","Cost of Goods Sold",11/02/2015 00:00:00,"30261221",57.17,"3663"
"Bracknell Forest Council","http://opendatacommunities.org/id/unitary-authority/bracknell-forest","Bracknell Forest Council","00MA","Easthampstead Park Centre - Catering","Premises Development","","Cost of Goods Sold",17/02/2015 00:00:00,"30261221",57.79,"3663"
"Bracknell Forest Council","http://opendatacommunities.org/id/unitary-authority/bracknell-forest","Bracknell Forest Council","00MA","Easthampstead Park Centre - Catering","Premises Development","","Cost of Goods Sold",12/02/2015 00:00:00,"30261221",218.71,"3663"
"Bracknell Forest Council","http://opendatacommunities.org/id/unitary-authority/bracknell-forest","Bracknell Forest Council","00MA","Leisure Centre - Catering General","Indoor Sports & Recreation Facilities","","Cost of Goods Sold",16/02/2015 00:00:00,"30261221",377.21,"3663"
"Bracknell Forest Council","http://opendatacommunities.org/id/unitary-authority/bracknell-forest","Bracknell Forest Council","00MA","Bridgewell Unit","Short Term Support Other","","Cost of Goods Sold",11/02/2015 00:00:00,"30261221",154.07,"3663"
"Bracknell Forest Council","http://opendatacommunities.org/id/unitary-authority/bracknell-forest","Bracknell Forest Council","00MA","Bridgewell Unit","Short Term Support Other","","Cost of Goods Sold",11/02/2015 00:00:00,"30261221",18.03,"3663"
"Bracknell Forest Council","http://opendatacommunities.org/id/unitary-authority/bracknell-forest","Bracknell Forest Council","00MA","Leisure Centre - Catering General","Indoor Sports & Recreation Facilities","","Cost of Goods Sold",11/02/2015 00:00:00,"30261221",350.5,"3663"
"Bracknell Forest Council","http://opendatacommunities.org/id/unitary-authority/bracknell-forest","Bracknell Forest Council","00MA","Leisure Centre - Catering General","Indoor Sports & Recreation Facilities","","Cost of Goods Sold",11/02/2015 00:00:00,"30261221",18.1,"3663"
"Bracknell Forest Council","http://opendatacommunities.org/id/unitary-authority/bracknell-forest","Bracknell Forest Council","00MA","Heathlands EPH","Internal Services","","Cost of Goods Sold",11/02/2015 00:00:00,"30261602",264.32,"3663"
"Bracknell Forest Council","http://opendatacommunities.org/id/unitary-authority/bracknell-forest","Bracknell Forest Council","00MA","Heathlands EPH","Internal Services","","Cost of Goods Sold",11/02/2015 00:00:00,"30261602",37.52,"3663"
"Bracknell Forest Council","http://opendatacommunities.org/id/unitary-authority/bracknell-forest","Bracknell Forest Council","00MA","Easthampstead Park Centre - Catering","Premises Development","","Cost of Goods Sold",18/02/2015 00:00:00,"30261602",175.18,"3663"
"Bracknell Forest Council","http://opendatacommunities.org/id/unitary-authority/bracknell-forest","Bracknell Forest Council","00MA","Easthampstead Park Centre - Catering","Premises Development","","Cost of Goods Sold",18/02/2015 00:00:00,"30261602",128.36,"3663"
"Bracknell Forest Council","http://opendatacommunities.org/id/unitary-authority/bracknell-forest","Bracknell Forest Council","00MA","Heathlands EPH","Internal Services","","Cost of Goods Sold",18/02/2015 00:00:00,"30261602",527.85,"3663"
"Bracknell Forest Council","http://opendatacommunities.org/id/unitary-authority/bracknell-forest","Bracknell Forest Council","00MA","Heathlands EPH","Internal Services","","Cost of Goods Sold",18/02/2015 00:00:00,"30261602",71.07,"3663"
"Bracknell Forest Council","http://opendatacommunities.org/id/unitary-authority/bracknell-forest","Bracknell Forest Council","00MA","Easthampstead Park Centre - Catering","Premises Development","","Cost of Goods Sold",20/02/2015 00:00:00,"30261602",281.35,"3663"
"Bracknell Forest Council","http://opendatacommunities.org/id/unitary-authority/bracknell-forest","Bracknell Forest Council","00MA","Easthampstead Park Centre - Catering","Premises Development","","Cost of Goods Sold",20/02/2015 00:00:00,"30261602",28.49,"3663"
"Bracknell Forest Council","http://opendatacommunities.org/id/unitary-authority/bracknell-forest","Bracknell Forest Council","00MA","Leisure DSO - Downshire Catering","Golf Courses","","Cost of Goods Sold",24/02/2015 00:00:00,"30261602",40.94,"3663"
"Bracknell Forest Council","http://opendatacommunities.org/id/unitary-authority/bracknell-forest","Bracknell Forest Council","00MA","Birch Hill - Primary","Delegated Primary School Budgets","","Electricity",11/03/2015 00:00:00,"30263904",1347.06,"BRITISH GAS TRADING - DD ONLY"
"Bracknell Forest Council","http://opendatacommunities.org/id/unitary-authority/bracknell-forest","Bracknell Forest Council","00MA","College Town - Infant & Nursery","Delegated Primary School Budgets","","Electricity",11/03/2015 00:00:00,"30263904",709.98,"BRITISH GAS TRADING - DD ONLY"
"Bracknell Forest Council","http://opendatacommunities.org/id/unitary-authority/bracknell-forest","Bracknell Forest Council","00MA","Binfield CE - Primary","Delegated Primary School Budgets","","Electricity",11/03/2015 00:00:00,"30263904",1462.47,"BRITISH GAS TRADING - DD ONLY"
"Bracknell Forest Council","http://opendatacommunities.org/id/unitary-authority/bracknell-forest","Bracknell Forest Council","00MA","College Town - Infant & Nursery","Delegated Primary School Budgets","","Electricity",11/03/2015 00:00:00,"30263904",164.14,"BRITISH GAS TRADING - DD ONLY"
"Bracknell Forest Council","http://opendatacommunities.org/id/unitary-authority/bracknell-forest","Bracknell Forest Council","00MA","Uplands - Primary","Delegated Primary School Budgets","","Electricity",11/03/2015 00:00:00,"30263904",117.47,"BRITISH GAS TRADING - DD ONLY"
"Bracknell Forest Council","http://opendatacommunities.org/id/unitary-authority/bracknell-forest","Bracknell Forest Council","00MA","Uplands - Primary","Delegated Primary School Budgets","","Electricity",11/03/2015 00:00:00,"30263904",279.15,"BRITISH GAS TRADING - DD ONLY"
"Bracknell Forest Council","http://opendatacommunities.org/id/unitary-authority/bracknell-forest","Bracknell Forest Council","00MA","Uplands - Primary","Delegated Primary School Budgets","","Electricity",11/03/2015 00:00:00,"30263904",406.64,"BRITISH GAS TRADING - DD ONLY"
"Bracknell Forest Council","http://opendatacommunities.org/id/unitary-authority/bracknell-forest","Bracknell Forest Council","00MA","Golf Course Management & Administration","Golf Courses","","Electricity",11/03/2015 00:00:00,"30263904",2105.39,"BRITISH GAS TRADING - DD ONLY"
"Bracknell Forest Council","http://opendatacommunities.org/id/unitary-authority/bracknell-forest","Bracknell Forest Council","00MA","Easthampstead Park Cemetery & Crematorium","Cemeteries & Crematorium","","Electricity",11/03/2015 00:00:00,"30263904",32.64,"BRITISH GAS TRADING - DD ONLY"
"Bracknell Forest Council","http://opendatacommunities.org/id/unitary-authority/bracknell-forest","Bracknell Forest Council","00MA","Warfield CE - Primary","Delegated Primary School Budgets","","Electricity",11/03/2015 00:00:00,"30263904",828.94,"BRITISH GAS TRADING - DD ONLY"
"Bracknell Forest Council","http://opendatacommunities.org/id/unitary-authority/bracknell-forest","Bracknell Forest Council","00MA","Bracknell Market","Bracknell Market","","Electricity",11/03/2015 00:00:00,"30263904",682.18,"BRITISH GAS TRADING - DD ONLY"
"Bracknell Forest Council","http://opendatacommunities.org/id/unitary-authority/bracknell-forest","Bracknell Forest Council","00MA","Jennets Park Primary School","Delegated Primary School Budgets","","Electricity",11/03/2015 00:00:00,"30263904",553.49,"BRITISH GAS TRADING - DD ONLY"
"Bracknell Forest Council","http://opendatacommunities.org/id/unitary-authority/bracknell-forest","Bracknell Forest Council","00MA","Bus/Rail Interchange","Co-Ordination","","Electricity",11/03/2015 00:00:00,"30263904",630.46,"BRITISH GAS TRADING - DD ONLY"
"Bracknell Forest Council","http://opendatacommunities.org/id/unitary-authority/bracknell-forest","Bracknell Forest Council","00MA","Edgbarrow - Secondary","Delegated Secondary Schools Budgets","","Electricity",11/03/2015 00:00:00,"30263904",233.95,"BRITISH GAS TRADING - DD ONLY"
"Bracknell Forest Council","http://opendatacommunities.org/id/unitary-authority/bracknell-forest","Bracknell Forest Council","00MA","Christmas Lights and Decorations","Street Lighting","","Electricity",11/03/2015 00:00:00,"30263904",21.89,"BRITISH GAS TRADING - DD ONLY"
"Bracknell Forest Council","http://opendatacommunities.org/id/unitary-authority/bracknell-forest","Bracknell Forest Council","00MA","Christmas Lights and Decorations","Street Lighting","","Electricity",11/03/2015 00:00:00,"30263904",33.27,"BRITISH GAS TRADING - DD ONLY"
"Bracknell Forest Council","http://opendatacommunities.org/id/unitary-authority/bracknell-forest","Bracknell Forest Council","00MA","Christmas Lights and Decorations","Street Lighting","","Electricity",11/03/2015 00:00:00,"30263904",11.02,"BRITISH GAS TRADING - DD ONLY"
"Bracknell Forest Council","http://opendatacommunities.org/id/unitary-authority/bracknell-forest","Bracknell Forest Council","00MA","Christmas Lights and Decorations","Street Lighting","","Electricity",11/03/2015 00:00:00,"30263904",11.02,"BRITISH GAS TRADING - DD ONLY"
"Bracknell Forest Council","http://opendatacommunities.org/id/unitary-authority/bracknell-forest","Bracknell Forest Council","00MA","Bridgewell Unit","Short Term Support Other","","Electricity",11/03/2015 00:00:00,"30263904",774.28,"BRITISH GAS TRADING - DD ONLY"
"Bracknell Forest Council","http://opendatacommunities.org/id/unitary-authority/bracknell-forest","Bracknell Forest Council","00MA","Cranbourne - Primary","Delegated Primary School Budgets","","Electricity",11/03/2015 00:00:00,"30263904",608,"BRITISH GAS TRADING - DD ONLY"
"Bracknell Forest Council","http://opendatacommunities.org/id/unitary-authority/bracknell-forest","Bracknell Forest Council","00MA","Cranbourne - Primary","Delegated Primary School Budgets","","Electricity",11/03/2015 00:00:00,"30263904",2.3,"BRITISH GAS TRADING - DD ONLY"
"Bracknell Forest Council","http://opendatacommunities.org/id/unitary-authority/bracknell-forest","Bracknell Forest Council","00MA","Cranbourne - Primary","Delegated Primary School Budgets","","Electricity",11/03/2015 00:00:00,"30263904",90.99,"BRITISH GAS TRADING - DD ONLY"
"Bracknell Forest Council","http://opendatacommunities.org/id/unitary-authority/bracknell-forest","Bracknell Forest Council","00MA","Sandhurst - Secondary","Delegated Secondary Schools Budgets","","Electricity",11/03/2015 00:00:00,"30263904",608.95,"BRITISH GAS TRADING - DD ONLY"
"Bracknell Forest Council","http://opendatacommunities.org/id/unitary-authority/bracknell-forest","Bracknell Forest Council","00MA","Sandhurst - Secondary","Delegated Secondary Schools Budgets","","Electricity",11/03/2015 00:00:00,"30263904",170.13,"BRITISH GAS TRADING - DD ONLY"
"Bracknell Forest Council","http://opendatacommunities.org/id/unitary-authority/bracknell-forest","Bracknell Forest Council","00MA","Crown Wood - Primary","Delegated Primary School Budgets","","Electricity",11/03/2015 00:00:00,"30263904",1248.03,"BRITISH GAS TRADING - DD ONLY"
"Bracknell Forest Council","http://opendatacommunities.org/id/unitary-authority/bracknell-forest","Bracknell Forest Council","00MA","Crowthorne - Primary","Delegated Primary School Budgets","","Electricity",11/03/2015 00:00:00,"30263904",596.02,"BRITISH GAS TRADING - DD ONLY"
"Bracknell Forest Council","http://opendatacommunities.org/id/unitary-authority/bracknell-forest","Bracknell Forest Council","00MA","Crowthorne - Primary","Delegated Primary School Budgets","","Electricity",11/03/2015 00:00:00,"30263904",23.9,"BRITISH GAS TRADING - DD ONLY"
"Bracknell Forest Council","http://opendatacommunities.org/id/unitary-authority/bracknell-forest","Bracknell Forest Council","00MA","Larchwood Running Costs","Short breaks for LAC","","Electricity",11/03/2015 00:00:00,"30263904",320.78,"BRITISH GAS TRADING - DD ONLY"
"Bracknell Forest Council","http://opendatacommunities.org/id/unitary-authority/bracknell-forest","Bracknell Forest Council","00MA","College Hall PRU","Pupil Referral Units","","Electricity",11/03/2015 00:00:00,"30263904",573.73,"BRITISH GAS TRADING - DD ONLY"
"Bracknell Forest Council","http://opendatacommunities.org/id/unitary-authority/bracknell-forest","Bracknell Forest Council","00MA","The Rowans Children�s Centre","Children�s centres - direct","","Electricity",11/03/2015 00:00:00,"30263904",610.31,"BRITISH GAS TRADING - DD ONLY"
"Bracknell Forest Council","http://opendatacommunities.org/id/unitary-authority/bracknell-forest","Bracknell Forest Council","00MA","Harmans Water - Primary","Delegated Primary School Budgets","","Electricity",11/03/2015 00:00:00,"30263904",277.2,"BRITISH GAS TRADING - DD ONLY"
"Bracknell Forest Council","http://opendatacommunities.org/id/unitary-authority/bracknell-forest","Bracknell Forest Council","00MA","Harmans Water - Primary","Delegated Primary School Budgets","","Electricity",11/03/2015 00:00:00,"30263904",1665.19,"BRITISH GAS TRADING - DD ONLY"
"Bracknell Forest Council","http://opendatacommunities.org/id/unitary-authority/bracknell-forest","Bracknell Forest Council","00MA","Forest Park - Service Charges","Premises Development","","Electricity",11/03/2015 00:00:00,"30263904",39.1,"BRITISH GAS TRADING - DD ONLY"
"Bracknell Forest Council","http://opendatacommunities.org/id/unitary-authority/bracknell-forest","Bracknell Forest Council","00MA","Liscombe - Service Charges","Premises Development","","Electricity",11/03/2015 00:00:00,"30263904",570.26,"BRITISH GAS TRADING - DD ONLY"
"Bracknell Forest Council","http://opendatacommunities.org/id/unitary-authority/bracknell-forest","Bracknell Forest Council","00MA","The Look Out","Heritage Museums & Galleries","","Electricity",11/03/2015 00:00:00,"30263904",27.44,"BRITISH GAS TRADING - DD ONLY"
"Bracknell Forest Council","http://opendatacommunities.org/id/unitary-authority/bracknell-forest","Bracknell Forest Council","00MA","The Look Out","Heritage Museums & Galleries","","Electricity",11/03/2015 00:00:00,"30263904",1804.01,"BRITISH GAS TRADING - DD ONLY"
"Bracknell Forest Council","http://opendatacommunities.org/id/unitary-authority/bracknell-forest","Bracknell Forest Council","00MA","New Scotland Hill - Primary","Delegated Primary School Budgets","","Electricity",11/03/2015 00:00:00,"30263904",849.91,"BRITISH GAS TRADING - DD ONLY"
"Bracknell Forest Council","http://opendatacommunities.org/id/unitary-authority/bracknell-forest","Bracknell Forest Council","00MA","New Scotland Hill - Primary","Delegated Primary School Budgets","","Electricity",11/03/2015 00:00:00,"30263904",14.46,"BRITISH GAS TRADING - DD ONLY"
"Bracknell Forest Council","http://opendatacommunities.org/id/unitary-authority/bracknell-forest","Bracknell Forest Council","00MA","Ascot Library","Branch Libraries","","Electricity",11/03/2015 00:00:00,"30263904",6.3,"BRITISH GAS TRADING - DD ONLY"
"Bracknell Forest Council","http://opendatacommunities.org/id/unitary-authority/bracknell-forest","Bracknell Forest Council","00MA","Ascot Library","Branch Libraries","","Electricity",11/03/2015 00:00:00,"30263904",137.91,"BRITISH GAS TRADING - DD ONLY"
"Bracknell Forest Council","http://opendatacommunities.org/id/unitary-authority/bracknell-forest","Bracknell Forest Council","00MA","St Margaret Clitherow - Catholic Primary","Delegated Primary School Budgets","","Electricity",11/03/2015 00:00:00,"30263904",9.4,"BRITISH GAS TRADING - DD ONLY"
"Bracknell Forest Council","http://opendatacommunities.org/id/unitary-authority/bracknell-forest","Bracknell Forest Council","00MA","St Margaret Clitherow - Catholic Primary","Delegated Primary School Budgets","","Electricity",11/03/2015 00:00:00,"30263904",634.9,"BRITISH GAS TRADING - DD ONLY"
"Bracknell Forest Council","http://opendatacommunities.org/id/unitary-authority/bracknell-forest","Bracknell Forest Council","00MA","Winkfield St Mary�s - Primary","Delegated Primary School Budgets","","Electricity",11/03/2015 00:00:00,"30263904",403.63,"BRITISH GAS TRADING - DD ONLY"
"Bracknell Forest Council","http://opendatacommunities.org/id/unitary-authority/bracknell-forest","Bracknell Forest Council","00MA","St Michael�s (Easthampstead) - Primary","Delegated Primary School Budgets","","Electricity",11/03/2015 00:00:00,"30263904",513.24,"BRITISH GAS TRADING - DD ONLY"
"Bracknell Forest Council","http://opendatacommunities.org/id/unitary-authority/bracknell-forest","Bracknell Forest Council","00MA","Binfield Library","Branch Libraries","","Electricity",11/03/2015 00:00:00,"30263904",139.86,"BRITISH GAS TRADING - DD ONLY"
"Bracknell Forest Council","http://opendatacommunities.org/id/unitary-authority/bracknell-forest","Bracknell Forest Council","00MA","Birch Hill Library","Branch Libraries","","Electricity",11/03/2015 00:00:00,"30263904",58.15,"BRITISH GAS TRADING - DD ONLY"
"Bracknell Forest Council","http://opendatacommunities.org/id/unitary-authority/bracknell-forest","Bracknell Forest Council","00MA","St Michael�s (Easthampstead) - Primary","Delegated Primary School Budgets","","Electricity",11/03/2015 00:00:00,"30263904",312.09,"BRITISH GAS TRADING - DD ONLY"
"Bracknell Forest Council","http://opendatacommunities.org/id/unitary-authority/bracknell-forest","Bracknell Forest Council","00MA","St Michael�s (Easthampstead) - Primary","Delegated Primary School Budgets","","Electricity",11/03/2015 00:00:00,"30263904",21.95,"BRITISH GAS TRADING - DD ONLY"
"Bracknell Forest Council","http://opendatacommunities.org/id/unitary-authority/bracknell-forest","Bracknell Forest Council","00MA","Great Hollands Library","Branch Libraries","","Electricity",11/03/2015 00:00:00,"30263904",24.21,"BRITISH GAS TRADING - DD ONLY"
"Bracknell Forest Council","http://opendatacommunities.org/id/unitary-authority/bracknell-forest","Bracknell Forest Council","00MA","Great Hollands Library","Branch Libraries","","Electricity",11/03/2015 00:00:00,"30263904",59.79,"BRITISH GAS TRADING - DD ONLY"
"Bracknell Forest Council","http://opendatacommunities.org/id/unitary-authority/bracknell-forest","Bracknell Forest Council","00MA","Great Hollands Library","Branch Libraries","","Electricity",11/03/2015 00:00:00,"30263904",16.59,"BRITISH GAS TRADING - DD ONLY"
"Bracknell Forest Council","http://opendatacommunities.org/id/unitary-authority/bracknell-forest","Bracknell Forest Council","00MA","Great Hollands Library","Branch Libraries","","Electricity",11/03/2015 00:00:00,"30263904",25.43,"BRITISH GAS TRADING - DD ONLY"
"Bracknell Forest Council","http://opendatacommunities.org/id/unitary-authority/bracknell-forest","Bracknell Forest Council","00MA","Whitegrove Library","Branch Libraries","","Electricity",11/03/2015 00:00:00,"30263904",312.59,"BRITISH GAS TRADING - DD ONLY"
"Bracknell Forest Council","http://opendatacommunities.org/id/unitary-authority/bracknell-forest","Bracknell Forest Council","00MA","Crowthorne Library","Branch Libraries","","Electricity",31/03/2015 00:00:00,"30264929",214.39,"BRITISH GAS TRADING - DD ONLY"
"Bracknell Forest Council","http://opendatacommunities.org/id/unitary-authority/bracknell-forest","Bracknell Forest Council","00MA","LD Employment Service","Management & Administration","","Electricity",31/03/2015 00:00:00,"30264929",26.79,"BRITISH GAS TRADING - DD ONLY"
"Bracknell Forest Council","http://opendatacommunities.org/id/unitary-authority/bracknell-forest","Bracknell Forest Council","00MA","Harmans Water Library","Branch Libraries","","Electricity",31/03/2015 00:00:00,"30264929",74.68,"BRITISH GAS TRADING - DD ONLY"
"Bracknell Forest Council","http://opendatacommunities.org/id/unitary-authority/bracknell-forest","Bracknell Forest Council","00MA","Waymead - Short Stay","Internal Services","","Electricity",31/03/2015 00:00:00,"30264929",550.22,"BRITISH GAS TRADING - DD ONLY"
"Bracknell Forest Council","http://opendatacommunities.org/id/unitary-authority/bracknell-forest","Bracknell Forest Council","00MA","Waymead - Short Stay","Internal Services","","Electricity",31/03/2015 00:00:00,"30264929",99.7,"BRITISH GAS TRADING - DD ONLY"
"Bracknell Forest Council","http://opendatacommunities.org/id/unitary-authority/bracknell-forest","Bracknell Forest Council","00MA","Recreation Staff Accommodation","Indoor Sports & Recreation Facilities","","Electricity",31/03/2015 00:00:00,"30264929",48.71,"BRITISH GAS TRADING - DD ONLY"
"Bracknell Forest Council","http://opendatacommunities.org/id/unitary-authority/bracknell-forest","Bracknell Forest Council","00MA","Recreation Staff Accommodation","Indoor Sports & Recreation Facilities","","Electricity",31/03/2015 00:00:00,"30264929",75.73,"BRITISH GAS TRADING - DD ONLY"
"Bracknell Forest Council","http://opendatacommunities.org/id/unitary-authority/bracknell-forest","Bracknell Forest Council","00MA","Recreation Staff Accommodation","Indoor Sports & Recreation Facilities","","Electricity",31/03/2015 00:00:00,"30264929",76.62,"BRITISH GAS TRADING - DD ONLY"
"Bracknell Forest Council","http://opendatacommunities.org/id/unitary-authority/bracknell-forest","Bracknell Forest Council","00MA","Brakenhale - Secondary","Delegated Secondary Schools Budgets","","Electricity",31/03/2015 00:00:00,"30264929",606.36,"BRITISH GAS TRADING - DD ONLY"
"Bracknell Forest Council","http://opendatacommunities.org/id/unitary-authority/bracknell-forest","Bracknell Forest Council","00MA","Brakenhale - Secondary","Delegated Secondary Schools Budgets","","Electricity",31/03/2015 00:00:00,"30264929",113.93,"BRITISH GAS TRADING - DD ONLY"
"Bracknell Forest Council","http://opendatacommunities.org/id/unitary-authority/bracknell-forest","Bracknell Forest Council","00MA","Brakenhale - Secondary","Delegated Secondary Schools Budgets","","Electricity",31/03/2015 00:00:00,"30264929",305.41,"BRITISH GAS TRADING - DD ONLY"
"Bracknell Forest Council","http://opendatacommunities.org/id/unitary-authority/bracknell-forest","Bracknell Forest Council","00MA","Depot Facilities","Construction and Property","","Electricity",31/03/2015 00:00:00,"30264929",1188.48,"BRITISH GAS TRADING - DD ONLY"
"Bracknell Forest Council","http://opendatacommunities.org/id/unitary-authority/bracknell-forest","Bracknell Forest Council","00MA","Depot Facilities","Construction and Property","","Electricity",31/03/2015 00:00:00,"30264929",1058.2,"BRITISH GAS TRADING - DD ONLY"
"Bracknell Forest Council","http://opendatacommunities.org/id/unitary-authority/bracknell-forest","Bracknell Forest Council","00MA","Sandy Lane Primary School","Delegated Primary School Budgets","","Electricity",31/03/2015 00:00:00,"30264929",1211.17,"BRITISH GAS TRADING - DD ONLY"
"Bracknell Forest Council","http://opendatacommunities.org/id/unitary-authority/bracknell-forest","Bracknell Forest Council","00MA","Leisure DSO - Downshire Golf Course","Golf Courses","","Electricity",31/03/2015 00:00:00,"30264929",384.43,"BRITISH GAS TRADING - DD ONLY"
"Bracknell Forest Council","http://opendatacommunities.org/id/unitary-authority/bracknell-forest","Bracknell Forest Council","00MA","St Michael�s (Sandhurst) - Primary","Delegated Primary School Budgets","","Electricity",31/03/2015 00:00:00,"30264929",17.11,"BRITISH GAS TRADING - DD ONLY"
"Bracknell Forest Council","http://opendatacommunities.org/id/unitary-authority/bracknell-forest","Bracknell Forest Council","00MA","St Michael�s (Sandhurst) - Primary","Delegated Primary School Budgets","","Electricity",31/03/2015 00:00:00,"30264929",441.71,"BRITISH GAS TRADING - DD ONLY"
"Bracknell Forest Council","http://opendatacommunities.org/id/unitary-authority/bracknell-forest","Bracknell Forest Council","00MA","Lighting","Street Lighting","","Electricity",31/03/2015 00:00:00,"30264929",23.99,"BRITISH GAS TRADING - DD ONLY"
"Bracknell Forest Council","http://opendatacommunities.org/id/unitary-authority/bracknell-forest","Bracknell Forest Council","00MA","Lighting","Street Lighting","","Electricity",31/03/2015 00:00:00,"30264929",37.56,"BRITISH GAS TRADING - DD ONLY"
"Bracknell Forest Council","http://opendatacommunities.org/id/unitary-authority/bracknell-forest","Bracknell Forest Council","00MA","Lighting","Street Lighting","","Electricity",31/03/2015 00:00:00,"30264929",18.21,"BRITISH GAS TRADING - DD ONLY"
"Bracknell Forest Council","http://opendatacommunities.org/id/unitary-authority/bracknell-forest","Bracknell Forest Council","00MA","Lighting","Street Lighting","","Electricity",31/03/2015 00:00:00,"30264929",11.43,"BRITISH GAS TRADING - DD ONLY"
"Bracknell Forest Council","http://opendatacommunities.org/id/unitary-authority/bracknell-forest","Bracknell Forest Council","00MA","Lighting","Street Lighting","","Electricity",31/03/2015 00:00:00,"30264929",333.4,"BRITISH GAS TRADING - DD ONLY"
"Bracknell Forest Council","http://opendatacommunities.org/id/unitary-authority/bracknell-forest","Bracknell Forest Council","00MA","Kennel Lane","Delegated Special and Alternative Provision Budgets","","Electricity",31/03/2015 00:00:00,"30264929",833.55,"BRITISH GAS TRADING - DD ONLY"
"Bracknell Forest Council","http://opendatacommunities.org/id/unitary-authority/bracknell-forest","Bracknell Forest Council","00MA","Kennel Lane","Delegated Special and Alternative Provision Budgets","","Electricity",31/03/2015 00:00:00,"30264929",1643.33,"BRITISH GAS TRADING - DD ONLY"
"Bracknell Forest Council","http://opendatacommunities.org/id/unitary-authority/bracknell-forest","Bracknell Forest Council","00MA","Lighting","Street Lighting","","Electricity",31/03/2015 00:00:00,"30264929",29.58,"BRITISH GAS TRADING - DD ONLY"
"Bracknell Forest Council","http://opendatacommunities.org/id/unitary-authority/bracknell-forest","Bracknell Forest Council","00MA","Lighting","Street Lighting","","Electricity",31/03/2015 00:00:00,"30264929",173.81,"BRITISH GAS TRADING - DD ONLY"
"Bracknell Forest Council","http://opendatacommunities.org/id/unitary-authority/bracknell-forest","Bracknell Forest Council","00MA","Lighting","Street Lighting","","Electricity",31/03/2015 00:00:00,"30264929",159.83,"BRITISH GAS TRADING - DD ONLY"
"Bracknell Forest Council","http://opendatacommunities.org/id/unitary-authority/bracknell-forest","Bracknell Forest Council","00MA","Lighting","Street Lighting","","Electricity",31/03/2015 00:00:00,"30264929",168.77,"BRITISH GAS TRADING - DD ONLY"
"Bracknell Forest Council","http://opendatacommunities.org/id/unitary-authority/bracknell-forest","Bracknell Forest Council","00MA","Ascot Heath - Junior","Delegated Primary School Budgets","","Electricity",31/03/2015 00:00:00,"30264929",1138.55,"BRITISH GAS TRADING - DD ONLY"
"Bracknell Forest Council","http://opendatacommunities.org/id/unitary-authority/bracknell-forest","Bracknell Forest Council","00MA","Ascot Heath - Junior","Delegated Primary School Budgets","","Electricity",31/03/2015 00:00:00,"30264929",11.02,"BRITISH GAS TRADING - DD ONLY"
"Bracknell Forest Council","http://opendatacommunities.org/id/unitary-authority/bracknell-forest","Bracknell Forest Council","00MA","Wildmoor Heath School","Delegated Primary School Budgets","","Electricity",31/03/2015 00:00:00,"30264929",434.18,"BRITISH GAS TRADING - DD ONLY"
"Bracknell Forest Council","http://opendatacommunities.org/id/unitary-authority/bracknell-forest","Bracknell Forest Council","00MA","New Scotland Hill - Primary","Delegated Primary School Budgets","","Electricity",31/03/2015 00:00:00,"30264929",681.55,"BRITISH GAS TRADING - DD ONLY"
"Bracknell Forest Council","http://opendatacommunities.org/id/unitary-authority/bracknell-forest","Bracknell Forest Council","00MA","New Scotland Hill - Primary","Delegated Primary School Budgets","","Electricity",31/03/2015 00:00:00,"30264929",9.76,"BRITISH GAS TRADING - DD ONLY"
"Bracknell Forest Council","http://opendatacommunities.org/id/unitary-authority/bracknell-forest","Bracknell Forest Council","00MA","Sandhurst - Secondary","Delegated Secondary Schools Budgets","","Electricity",31/03/2015 00:00:00,"30264929",516.58,"BRITISH GAS TRADING - DD ONLY"
"Bracknell Forest Council","http://opendatacommunities.org/id/unitary-authority/bracknell-forest","Bracknell Forest Council","00MA","Sandhurst - Secondary","Delegated Secondary Schools Budgets","","Electricity",31/03/2015 00:00:00,"30264929",212.5,"BRITISH GAS TRADING - DD ONLY"
"Bracknell Forest Council","http://opendatacommunities.org/id/unitary-authority/bracknell-forest","Bracknell Forest Council","00MA","College Hall PRU","Pupil Referral Units","","Electricity",31/03/2015 00:00:00,"30264929",524.04,"BRITISH GAS TRADING - DD ONLY"
"Bracknell Forest Council","http://opendatacommunities.org/id/unitary-authority/bracknell-forest","Bracknell Forest Council","00MA","Christmas Lights and Decorations","Street Lighting","","Electricity",31/03/2015 00:00:00,"30264929",11.43,"BRITISH GAS TRADING - DD ONLY"
"Bracknell Forest Council","http://opendatacommunities.org/id/unitary-authority/bracknell-forest","Bracknell Forest Council","00MA","Christmas Lights and Decorations","Street Lighting","","Electricity",31/03/2015 00:00:00,"30264929",12.65,"BRITISH GAS TRADING - DD ONLY"
"Bracknell Forest Council","http://opendatacommunities.org/id/unitary-authority/bracknell-forest","Bracknell Forest Council","00MA","Christmas Lights and Decorations","Street Lighting","","Electricity",31/03/2015 00:00:00,"30264929",11.43,"BRITISH GAS TRADING - DD ONLY"
"Bracknell Forest Council","http://opendatacommunities.org/id/unitary-authority/bracknell-forest","Bracknell Forest Council","00MA","Jennets Park Primary School","Delegated Primary School Budgets","","Electricity",31/03/2015 00:00:00,"30264929",-511.49,"BRITISH GAS TRADING - DD ONLY"
"Bracknell Forest Council","http://opendatacommunities.org/id/unitary-authority/bracknell-forest","Bracknell Forest Council","00MA","Binfield CE - Primary","Delegated Primary School Budgets","","Electricity",31/03/2015 00:00:00,"30264929",1138.2,"BRITISH GAS TRADING - DD ONLY"
"Bracknell Forest Council","http://opendatacommunities.org/id/unitary-authority/bracknell-forest","Bracknell Forest Council","00MA","Birch Hill - Primary","Delegated Primary School Budgets","","Electricity",31/03/2015 00:00:00,"30264929",1122.74,"BRITISH GAS TRADING - DD ONLY"
"Bracknell Forest Council","http://opendatacommunities.org/id/unitary-authority/bracknell-forest","Bracknell Forest Council","00MA","Jennets Park Primary School","Delegated Primary School Budgets","","Electricity",31/03/2015 00:00:00,"30264929",1515.52,"BRITISH GAS TRADING - DD ONLY"
"Bracknell Forest Council","http://opendatacommunities.org/id/unitary-authority/bracknell-forest","Bracknell Forest Council","00MA","Jennets Park Primary School","Delegated Primary School Budgets","","Electricity",31/03/2015 00:00:00,"30264929",598.83,"BRITISH GAS TRADING - DD ONLY"
"Bracknell Forest Council","http://opendatacommunities.org/id/unitary-authority/bracknell-forest","Bracknell Forest Council","00MA","College Town - Infant & Nursery","Delegated Primary School Budgets","","Electricity",31/03/2015 00:00:00,"30264929",563.05,"BRITISH GAS TRADING - DD ONLY"
"Bracknell Forest Council","http://opendatacommunities.org/id/unitary-authority/bracknell-forest","Bracknell Forest Council","00MA","College Town - Infant & Nursery","Delegated Primary School Budgets","","Electricity",31/03/2015 00:00:00,"30264929",218.39,"BRITISH GAS TRADING - DD ONLY"
"Bracknell Forest Council","http://opendatacommunities.org/id/unitary-authority/bracknell-forest","Bracknell Forest Council","00MA","Cranbourne - Primary","Delegated Primary School Budgets","","Electricity",31/03/2015 00:00:00,"30264929",508.8,"BRITISH GAS TRADING - DD ONLY"
"Bracknell Forest Council","http://opendatacommunities.org/id/unitary-authority/bracknell-forest","Bracknell Forest Council","00MA","Cranbourne - Primary","Delegated Primary School Budgets","","Electricity",31/03/2015 00:00:00,"30264929",67.35,"BRITISH GAS TRADING - DD ONLY"
"Bracknell Forest Council","http://opendatacommunities.org/id/unitary-authority/bracknell-forest","Bracknell Forest Council","00MA","Crown Wood - Primary","Delegated Primary School Budgets","","Electricity",31/03/2015 00:00:00,"30264929",945.93,"BRITISH GAS TRADING - DD ONLY"
"Bracknell Forest Council","http://opendatacommunities.org/id/unitary-authority/bracknell-forest","Bracknell Forest Council","00MA","Crowthorne - Primary","Delegated Primary School Budgets","","Electricity",31/03/2015 00:00:00,"30264929",534.66,"BRITISH GAS TRADING - DD ONLY"
"Bracknell Forest Council","http://opendatacommunities.org/id/unitary-authority/bracknell-forest","Bracknell Forest Council","00MA","Bus/Rail Interchange","Co-Ordination","","Electricity",31/03/2015 00:00:00,"30264929",609.44,"BRITISH GAS TRADING - DD ONLY"
"Bracknell Forest Council","http://opendatacommunities.org/id/unitary-authority/bracknell-forest","Bracknell Forest Council","00MA","Edgbarrow - Secondary","Delegated Secondary Schools Budgets","","Electricity",31/03/2015 00:00:00,"30264929",199.51,"BRITISH GAS TRADING - DD ONLY"
"Bracknell Forest Council","http://opendatacommunities.org/id/unitary-authority/bracknell-forest","Bracknell Forest Council","00MA","Edgbarrow - Secondary","Delegated Secondary Schools Budgets","","Electricity",31/03/2015 00:00:00,"30264929",199.78,"BRITISH GAS TRADING - DD ONLY"
"Bracknell Forest Council","http://opendatacommunities.org/id/unitary-authority/bracknell-forest","Bracknell Forest Council","00MA","Edgbarrow - Secondary","Delegated Secondary Schools Budgets","","Electricity",31/03/2015 00:00:00,"30264929",138.59,"BRITISH GAS TRADING - DD ONLY"
"Bracknell Forest Council","http://opendatacommunities.org/id/unitary-authority/bracknell-forest","Bracknell Forest Council","00MA","Edgbarrow - Secondary","Delegated Secondary Schools Budgets","","Electricity",31/03/2015 00:00:00,"30264929",882.85,"BRITISH GAS TRADING - DD ONLY"
"Bracknell Forest Council","http://opendatacommunities.org/id/unitary-authority/bracknell-forest","Bracknell Forest Council","00MA","Harmans Water - Primary","Delegated Primary School Budgets","","Electricity",31/03/2015 00:00:00,"30264929",197.62,"BRITISH GAS TRADING - DD ONLY"
"Bracknell Forest Council","http://opendatacommunities.org/id/unitary-authority/bracknell-forest","Bracknell Forest Council","00MA","Harmans Water - Primary","Delegated Primary School Budgets","","Electricity",31/03/2015 00:00:00,"30264929",1336.17,"BRITISH GAS TRADING - DD ONLY"
"Bracknell Forest Council","http://opendatacommunities.org/id/unitary-authority/bracknell-forest","Bracknell Forest Council","00MA","Great Hollands Library","Branch Libraries","","Electricity",31/03/2015 00:00:00,"30264929",31.09,"BRITISH GAS TRADING - DD ONLY"
"Bracknell Forest Council","http://opendatacommunities.org/id/unitary-authority/bracknell-forest","Bracknell Forest Council","00MA","Great Hollands Library","Branch Libraries","","Electricity",31/03/2015 00:00:00,"30264929",7.3,"BRITISH GAS TRADING - DD ONLY"
"Bracknell Forest Council","http://opendatacommunities.org/id/unitary-authority/bracknell-forest","Bracknell Forest Council","00MA","Great Hollands Library","Branch Libraries","","Electricity",31/03/2015 00:00:00,"30264929",61.77,"BRITISH GAS TRADING - DD ONLY"
"Bracknell Forest Council","http://opendatacommunities.org/id/unitary-authority/bracknell-forest","Bracknell Forest Council","00MA","Christmas Lights and Decorations","Street Lighting","","Electricity",31/03/2015 00:00:00,"30264929",11.43,"BRITISH GAS TRADING - DD ONLY"
"Bracknell Forest Council","http://opendatacommunities.org/id/unitary-authority/bracknell-forest","Bracknell Forest Council","00MA","Town Centre Fountains","Community Parks & Open Spaces","","Electricity",31/03/2015 00:00:00,"30264929",63.41,"BRITISH GAS TRADING - DD ONLY"
"Bracknell Forest Council","http://opendatacommunities.org/id/unitary-authority/bracknell-forest","Bracknell Forest Council","00MA","Town Centre Fountains","Community Parks & Open Spaces","","Electricity",31/03/2015 00:00:00,"30264929",93.81,"BRITISH GAS TRADING - DD ONLY"
"Bracknell Forest Council","http://opendatacommunities.org/id/unitary-authority/bracknell-forest","Bracknell Forest Council","00MA","Town Centre Fountains","Community Parks & Open Spaces","","Electricity",31/03/2015 00:00:00,"30264929",146.73,"BRITISH GAS TRADING - DD ONLY"
"Bracknell Forest Council","http://opendatacommunities.org/id/unitary-authority/bracknell-forest","Bracknell Forest Council","00MA","Ascot Library","Branch Libraries","","Electricity",31/03/2015 00:00:00,"30264929",96.28,"BRITISH GAS TRADING - DD ONLY"
"Bracknell Forest Council","http://opendatacommunities.org/id/unitary-authority/bracknell-forest","Bracknell Forest Council","00MA","Ascot Library","Branch Libraries","","Electricity",31/03/2015 00:00:00,"30264929",4.41,"BRITISH GAS TRADING - DD ONLY"
"Bracknell Forest Council","http://opendatacommunities.org/id/unitary-authority/bracknell-forest","Bracknell Forest Council","00MA","Great Hollands Library","Branch Libraries","","Electricity",31/03/2015 00:00:00,"30264929",24.39,"BRITISH GAS TRADING - DD ONLY"
"Bracknell Forest Council","http://opendatacommunities.org/id/unitary-authority/bracknell-forest","Bracknell Forest Council","00MA","Whitegrove Library","Branch Libraries","","Electricity",31/03/2015 00:00:00,"30264929",277.2,"BRITISH GAS TRADING - DD ONLY"
"Bracknell Forest Council","http://opendatacommunities.org/id/unitary-authority/bracknell-forest","Bracknell Forest Council","00MA","Bridgewell Unit","Short Term Support Other","","Electricity",31/03/2015 00:00:00,"30264929",724.39,"BRITISH GAS TRADING - DD ONLY"
"Bracknell Forest Council","http://opendatacommunities.org/id/unitary-authority/bracknell-forest","Bracknell Forest Council","00MA","St Margaret Clitherow - Catholic Primary","Delegated Primary School Budgets","","Electricity",31/03/2015 00:00:00,"30264929",10.12,"BRITISH GAS TRADING - DD ONLY"
"Bracknell Forest Council","http://opendatacommunities.org/id/unitary-authority/bracknell-forest","Bracknell Forest Council","00MA","St Margaret Clitherow - Catholic Primary","Delegated Primary School Budgets","","Electricity",31/03/2015 00:00:00,"30264929",515.02,"BRITISH GAS TRADING - DD ONLY"
"Bracknell Forest Council","http://opendatacommunities.org/id/unitary-authority/bracknell-forest","Bracknell Forest Council","00MA","Winkfield St Mary�s - Primary","Delegated Primary School Budgets","","Electricity",31/03/2015 00:00:00,"30264929",345.43,"BRITISH GAS TRADING - DD ONLY"
"Bracknell Forest Council","http://opendatacommunities.org/id/unitary-authority/bracknell-forest","Bracknell Forest Council","00MA","Portman Close Running Costs","Universal services for young people","","Electricity",31/03/2015 00:00:00,"30264929",268.29,"BRITISH GAS TRADING - DD ONLY"
"Bracknell Forest Council","http://opendatacommunities.org/id/unitary-authority/bracknell-forest","Bracknell Forest Council","00MA","Golf Course Management & Administration","Golf Courses","","Electricity",31/03/2015 00:00:00,"30264929",1943.01,"BRITISH GAS TRADING - DD ONLY"
"Bracknell Forest Council","http://opendatacommunities.org/id/unitary-authority/bracknell-forest","Bracknell Forest Council","00MA","Easthampstead Park Cemetery & Crematorium","Cemeteries & Crematorium","","Electricity",31/03/2015 00:00:00,"30264929",23.42,"BRITISH GAS TRADING - DD ONLY"
"Bracknell Forest Council","http://opendatacommunities.org/id/unitary-authority/bracknell-forest","Bracknell Forest Council","00MA","Larchwood Running Costs","Short breaks for LAC","","Electricity",31/03/2015 00:00:00,"30264929",339.01,"BRITISH GAS TRADING - DD ONLY"
"Bracknell Forest Council","http://opendatacommunities.org/id/unitary-authority/bracknell-forest","Bracknell Forest Council","00MA","The Rowans Children�s Centre","Children�s centres - direct","","Electricity",31/03/2015 00:00:00,"30264929",534.66,"BRITISH GAS TRADING - DD ONLY"
"Bracknell Forest Council","http://opendatacommunities.org/id/unitary-authority/bracknell-forest","Bracknell Forest Council","00MA","St Michael�s (Easthampstead) - Primary","Delegated Primary School Budgets","","Electricity",31/03/2015 00:00:00,"30264929",446.91,"BRITISH GAS TRADING - DD ONLY"
"Bracknell Forest Council","http://opendatacommunities.org/id/unitary-authority/bracknell-forest","Bracknell Forest Council","00MA","St Michael�s (Easthampstead) - Primary","Delegated Primary School Budgets","","Electricity",31/03/2015 00:00:00,"30264929",217.38,"BRITISH GAS TRADING - DD ONLY"
"Bracknell Forest Council","http://opendatacommunities.org/id/unitary-authority/bracknell-forest","Bracknell Forest Council","00MA","St Michael�s (Easthampstead) - Primary","Delegated Primary School Budgets","","Electricity",31/03/2015 00:00:00,"30264929",28.11,"BRITISH GAS TRADING - DD ONLY"
"Bracknell Forest Council","http://opendatacommunities.org/id/unitary-authority/bracknell-forest","Bracknell Forest Council","00MA","Uplands - Primary","Delegated Primary School Budgets","","Electricity",31/03/2015 00:00:00,"30264929",71.44,"BRITISH GAS TRADING - DD ONLY"
"Bracknell Forest Council","http://opendatacommunities.org/id/unitary-authority/bracknell-forest","Bracknell Forest Council","00MA","Uplands - Primary","Delegated Primary School Budgets","","Electricity",31/03/2015 00:00:00,"30264929",261.22,"BRITISH GAS TRADING - DD ONLY"
"Bracknell Forest Council","http://opendatacommunities.org/id/unitary-authority/bracknell-forest","Bracknell Forest Council","00MA","Open Learning Centre - Brakenhale","Adult and Community Learning","","Electricity",31/03/2015 00:00:00,"30264929",841.03,"BRITISH GAS TRADING - DD ONLY"
"Bracknell Forest Council","http://opendatacommunities.org/id/unitary-authority/bracknell-forest","Bracknell Forest Council","00MA","Longshot Lane  - Service Charges","Premises Development","","Electricity",31/03/2015 00:00:00,"30264929",27.61,"BRITISH GAS TRADING - DD ONLY"
"Bracknell Forest Council","http://opendatacommunities.org/id/unitary-authority/bracknell-forest","Bracknell Forest Council","00MA","Forest Park - Service Charges","Premises Development","","Electricity",31/03/2015 00:00:00,"30264929",28.19,"BRITISH GAS TRADING - DD ONLY"
"Bracknell Forest Council","http://opendatacommunities.org/id/unitary-authority/bracknell-forest","Bracknell Forest Council","00MA","Liscombe - Service Charges","Premises Development","","Electricity",31/03/2015 00:00:00,"30264929",590.97,"BRITISH GAS TRADING - DD ONLY"
"Bracknell Forest Council","http://opendatacommunities.org/id/unitary-authority/bracknell-forest","Bracknell Forest Council","00MA","The Look Out","Heritage Museums & Galleries","","Electricity",31/03/2015 00:00:00,"30264929",37.48,"BRITISH GAS TRADING - DD ONLY"
"Bracknell Forest Council","http://opendatacommunities.org/id/unitary-authority/bracknell-forest","Bracknell Forest Council","00MA","The Look Out","Heritage Museums & Galleries","","Electricity",31/03/2015 00:00:00,"30264929",1795.82,"BRITISH GAS TRADING - DD ONLY"
"Bracknell Forest Council","http://opendatacommunities.org/id/unitary-authority/bracknell-forest","Bracknell Forest Council","00MA","Uplands - Primary","Delegated Primary School Budgets","","Electricity",31/03/2015 00:00:00,"30264929",287.31,"BRITISH GAS TRADING - DD ONLY"
"Bracknell Forest Council","http://opendatacommunities.org/id/unitary-authority/bracknell-forest","Bracknell Forest Council","00MA","Warfield CE - Primary","Delegated Primary School Budgets","","Electricity",31/03/2015 00:00:00,"30264929",695.28,"BRITISH GAS TRADING - DD ONLY"
"Bracknell Forest Council","http://opendatacommunities.org/id/unitary-authority/bracknell-forest","Bracknell Forest Council","00MA","Preliminaries - Other Roads","Winter Maintenance","","Electricity",31/03/2015 00:00:00,"30264929",473.26,"BRITISH GAS TRADING - DD ONLY"
"Bracknell Forest Council","http://opendatacommunities.org/id/unitary-authority/bracknell-forest","Bracknell Forest Council","00MA","Crowthorne - Primary","Delegated Primary School Budgets","","Electricity",31/03/2015 00:00:00,"30264929",15.62,"BRITISH GAS TRADING - DD ONLY"
"Bracknell Forest Council","http://opendatacommunities.org/id/unitary-authority/bracknell-forest","Bracknell Forest Council","00MA","Binfield Library","Branch Libraries","","Electricity",31/03/2015 00:00:00,"30264929",176.44,"BRITISH GAS TRADING - DD ONLY"
"Bracknell Forest Council","http://opendatacommunities.org/id/unitary-authority/bracknell-forest","Bracknell Forest Council","00MA","Birch Hill Library","Branch Libraries","","Electricity",31/03/2015 00:00:00,"30264929",77.07,"BRITISH GAS TRADING - DD ONLY"
